Workbook

Sheet FEM
F1: EPREUVE : | Q1: DATE :
F2: LIEU : | L2: REGION :
A5: SEXE | B5: ZONE | C5: REG. | D5: Cl. | E5: LICENCE | F5: NOMS | G5: Prénoms | H5: AN | I5: POIDS | J5: CLUB | K5: NAT | L5: 1 | M5: 2 | N5: 3 | O5: ARR | P5: 1 | Q5: 2 | R5: 3 | S5: EP-J | T5: Total | U5: IWF SMM | V5: SERIE | Y5: Catég | AA5: N.CL. | AB5: REG + | AC5: FRA + | AD5: EUR + | AE5: MON + | AF5: INTB + | AG5: INTA + | AH5: OLY + | AI5: NCL
A6: F | H6: 1975 | I6: 69 | L6: 65 | O6: =IF(I6="","",IF(MAXA(L6:N6)<=0,0,MAXA(L6:N6))) -> 65 | P6: 85 | S6: =IF(I6="","",IF(MAXA(P6:R6)<=0,0,MAXA(P6:R6))) -> 85 | T6: =IF(I6="","",IF(OR(O6=0,S6=0),0,O6+S6)) -> 150 | U6: =IF(I6="","",IF(A6="H",10^(0.794358141*LOG(I6/174.393)^2)*T6*AS6,IF(A6="F",10^(0.89726074 * LOG(I6/148.026)^2)*T6*AS6,""))) -> 218.7221636 | V6: =IF(I6="","",AP6) -> MON + | W6: =IF(I6="","",IF(AH6>=0,AH6,IF(AG6>=0,AG6,IF(AF6>=0,AF6,IF(AE6>=0,AE6,IF(AD6>=0,AD6,IF(AC6>=0,AC6,IF(AB6>=0,AB6,AA6)))))))) -> 53 | X6: =IF(AQ6<95,IF(AQ6<=90,VLOOKUP(AQ6,$AQ$467:$AR$522,2))) -> V2 F40 | Y6: =IF(AND(H6<1936),VLOOKUP(I6,Feuil1!$F$10:$O$24,9),IF(AND(H6>=1942,H6<1947),VLOOKUP(I6,Feuil1!$F$10:$O$24,9),IF(AND(H6>=1947,H6<1952),VLOOKUP(I6,Feuil1!$F$10:$O$24,8),IF(AND(H6>=1952,H6<1957),VLOOKUP(I6,Feuil1!$F$10:$O$24,7),IF(AND(H6>=1957,H6<1962),VLOOKUP(I6,Feuil1!$F$10:$O$24,6),IF(AND(H6>=1962,H6<1967),VLOOKUP(I6,Feuil1!$F$10:$O$24,5),IF(AND(H6>=1967,H6<1972),VLOOKUP(I6,Feuil1!$F$10:$O$24,4),IF(AND(H6>=1972,H6<1977),VLOOKUP(I6,Feuil1!$F$10:$O$24,3),IF(AND(H6>=1977,H6<1982),VLOOKUP(I6,Feuil1!$F$10:$O$24,2),VLOOKUP(I6,Feuil1!$F$10:$O$24,2)))))))))) -> VF40-69 | AA6: =T6-HLOOKUP(Y6,Feuil1!$C$1:$BF$9,2,FALSE) -> 150 | AB6: =T6-HLOOKUP(Y6,Feuil1!$C$1:$BF$9,3,FALSE) -> 85 | AC6: =T6-HLOOKUP(Y6,Feuil1!$C$1:$BF$9,4,FALSE) -> 80 | AD6: =T6-HLOOKUP(Y6,Feuil1!$C$1:$BF$9,5,FALSE) -> 70 | AE6: =T6-HLOOKUP(Y6,Feuil1!$C$1:$BF$9,6,FALSE) -> 53 | AF6: =T6-HLOOKUP(Y6,Feuil1!$C$1:$BF$9,7,FALSE) -> -850 | AG6: =T6-HLOOKUP(Y6,Feuil1!$C$1:$BF$9,8,FALSE) -> -850 | AH6: =T6-HLOOKUP(Y6,Feuil1!$C$1:$BF$9,9,FALSE) -> -850 | AP6: =IF(AH6>=0,$AH$5,IF(AG6>=0,$AG$5,IF(AF6>=0,$AF$5,IF(AE6>=0,$AE$5,IF(AD6>=0,$AD$5,IF(AC6>=0,$AC$5,IF(AB6>=0,$AB$5,IF(AA6>=0,$AA$5,$AI$5)))))))) -> MON + | AQ6: =2017-H6 -> 42 | AS6: =IF(AQ6,VLOOKUP(AQ6,FEM!$AS$468:$AT$523,2)) -> 1.162
A7: F | H7: 1976 | I7: 69 | L7: 39 | O7: =IF(I7="","",IF(MAXA(L7:N7)<=0,0,MAXA(L7:N7))) -> 39 | P7: 50 | S7: =IF(I7="","",IF(MAXA(P7:R7)<=0,0,MAXA(P7:R7))) -> 50 | T7: =IF(I7="","",IF(OR(O7=0,S7=0),0,O7+S7)) -> 89 | U7: =IF(I7="","",IF(A7="H",10^(0.794358141*LOG(I7/174.393)^2)*T7*AS7,IF(A7="F",10^(0.89726074 * LOG(I7/148.026)^2)*T7*AS7,""))) -> 128.3232769 | V7: =IF(I7="","",AP7) -> EUR + | W7: =IF(I7="","",IF(AH7>=0,AH7,IF(AG7>=0,AG7,IF(AF7>=0,AF7,IF(AE7>=0,AE7,IF(AD7>=0,AD7,IF(AC7>=0,AC7,IF(AB7>=0,AB7,AA7)))))))) -> 9 | X7: =IF(AQ7<95,IF(AQ7<=90,VLOOKUP(AQ7,$AQ$467:$AR$522,2))) -> V2 F40 | Y7: =IF(AND(H7<1936),VLOOKUP(I7,Feuil1!$F$10:$O$24,9),IF(AND(H7>=1942,H7<1947),VLOOKUP(I7,Feuil1!$F$10:$O$24,9),IF(AND(H7>=1947,H7<1952),VLOOKUP(I7,Feuil1!$F$10:$O$24,8),IF(AND(H7>=1952,H7<1957),VLOOKUP(I7,Feuil1!$F$10:$O$24,7),IF(AND(H7>=1957,H7<1962),VLOOKUP(I7,Feuil1!$F$10:$O$24,6),IF(AND(H7>=1962,H7<1967),VLOOKUP(I7,Feuil1!$F$10:$O$24,5),IF(AND(H7>=1967,H7<1972),VLOOKUP(I7,Feuil1!$F$10:$O$24,4),IF(AND(H7>=1972,H7<1977),VLOOKUP(I7,Feuil1!$F$10:$O$24,3),IF(AND(H7>=1977,H7<1982),VLOOKUP(I7,Feuil1!$F$10:$O$24,2),VLOOKUP(I7,Feuil1!$F$10:$O$24,2)))))))))) -> VF40-69 | AA7: =T7-HLOOKUP(Y7,Feuil1!$C$1:$BF$9,2,FALSE) -> 89 | AB7: =T7-HLOOKUP(Y7,Feuil1!$C$1:$BF$9,3,FALSE) -> 24 | AC7: =T7-HLOOKUP(Y7,Feuil1!$C$1:$BF$9,4,FALSE) -> 19 | AD7: =T7-HLOOKUP(Y7,Feuil1!$C$1:$BF$9,5,FALSE) -> 9 | AE7: =T7-HLOOKUP(Y7,Feuil1!$C$1:$BF$9,6,FALSE) -> -8 | AF7: =T7-HLOOKUP(Y7,Feuil1!$C$1:$BF$9,7,FALSE) -> -911 | AG7: =T7-HLOOKUP(Y7,Feuil1!$C$1:$BF$9,8,FALSE) -> -911 | AH7: =T7-HLOOKUP(Y7,Feuil1!$C$1:$BF$9,9,FALSE) -> -911 | AP7: =IF(AH7>=0,$AH$5,IF(AG7>=0,$AG$5,IF(AF7>=0,$AF$5,IF(AE7>=0,$AE$5,IF(AD7>=0,$AD$5,IF(AC7>=0,$AC$5,IF(AB7>=0,$AB$5,IF(AA7>=0,$AA$5,$AI$5)))))))) -> EUR + | AQ7: =2017-H7 -> 41 | AS7: =IF(AQ7,VLOOKUP(AQ7,FEM!$AS$468:$AT$523,2)) -> 1.149
A8: F | H8: 1977 | I8: 63 | L8: 30 | O8: 30 | P8: 40 | S8: 40 | T8: 70 | U8: 105.5825319 | V8: FRA + | W8: 0 | X8: V2 F40 | Y8: =IF(AND(H8<1936),VLOOKUP(I8,Feuil1!$F$10:$O$24,9),IF(AND(H8>=1942,H8<1947),VLOOKUP(I8,Feuil1!$F$10:$O$24,9),IF(AND(H8>=1947,H8<1952),VLOOKUP(I8,Feuil1!$F$10:$O$24,8),IF(AND(H8>=1952,H8<1957),VLOOKUP(I8,Feuil1!$F$10:$O$24,7),IF(AND(H8>=1957,H8<1962),VLOOKUP(I8,Feuil1!$F$10:$O$24,6),IF(AND(H8>=1962,H8<1967),VLOOKUP(I8,Feuil1!$F$10:$O$24,5),IF(AND(H8>=1967,H8<1972),VLOOKUP(I8,Feuil1!$F$10:$O$24,4),IF(AND(H8>=1972,H8<1977),VLOOKUP(I8,Feuil1!$F$10:$O$24,3),IF(AND(H8>=1977,H8<1982),VLOOKUP(I8,Feuil1!$F$10:$O$24,2),VLOOKUP(I8,Feuil1!$F$10:$O$24,2)))))))))) -> VF35-63 | AA8: =T8-HLOOKUP(Y8,Feuil1!$C$1:$BF$9,2,FALSE) -> 70 | AB8: =T8-HLOOKUP(Y8,Feuil1!$C$1:$BF$9,3,FALSE) -> 5 | AC8: =T8-HLOOKUP(Y8,Feuil1!$C$1:$BF$9,4,FALSE) -> 0 | AD8: =T8-HLOOKUP(Y8,Feuil1!$C$1:$BF$9,5,FALSE) -> -10 | AE8: =T8-HLOOKUP(Y8,Feuil1!$C$1:$BF$9,6,FALSE) -> -30 | AF8: =T8-HLOOKUP(Y8,Feuil1!$C$1:$BF$9,7,FALSE) -> -930 | AG8: =T8-HLOOKUP(Y8,Feuil1!$C$1:$BF$9,8,FALSE) -> -930 | AH8: =T8-HLOOKUP(Y8,Feuil1!$C$1:$BF$9,9,FALSE) -> -930 | AP8: FRA + | AQ8: =2017-H8 -> 40 | AS8: =IF(AQ8,VLOOKUP(AQ8,FEM!$AS$468:$AT$523,2)) -> 1.135
A9: F | H9: 1978 | I9: 69 | L9: 25 | O9: 25 | P9: 40 | S9: 40 | T9: 65 | U9: 91.51696724 | V9: N.CL. | W9: 65 | X9: V1 F35 | Y9: =IF(AND(H9<1936),VLOOKUP(I9,Feuil1!$F$10:$O$24,9),IF(AND(H9>=1942,H9<1947),VLOOKUP(I9,Feuil1!$F$10:$O$24,9),IF(AND(H9>=1947,H9<1952),VLOOKUP(I9,Feuil1!$F$10:$O$24,8),IF(AND(H9>=1952,H9<1957),VLOOKUP(I9,Feuil1!$F$10:$O$24,7),IF(AND(H9>=1957,H9<1962),VLOOKUP(I9,Feuil1!$F$10:$O$24,6),IF(AND(H9>=1962,H9<1967),VLOOKUP(I9,Feuil1!$F$10:$O$24,5),IF(AND(H9>=1967,H9<1972),VLOOKUP(I9,Feuil1!$F$10:$O$24,4),IF(AND(H9>=1972,H9<1977),VLOOKUP(I9,Feuil1!$F$10:$O$24,3),IF(AND(H9>=1977,H9<1982),VLOOKUP(I9,Feuil1!$F$10:$O$24,2),VLOOKUP(I9,Feuil1!$F$10:$O$24,2)))))))))) -> VF35-69 | AA9: =T9-HLOOKUP(Y9,Feuil1!$C$1:$BF$9,2,FALSE) -> 65 | AB9: =T9-HLOOKUP(Y9,Feuil1!$C$1:$BF$9,3,FALSE) -> -5 | AC9: =T9-HLOOKUP(Y9,Feuil1!$C$1:$BF$9,4,FALSE) -> -10 | AD9: =T9-HLOOKUP(Y9,Feuil1!$C$1:$BF$9,5,FALSE) -> -20 | AE9: =T9-HLOOKUP(Y9,Feuil1!$C$1:$BF$9,6,FALSE) -> -37 | AF9: =T9-HLOOKUP(Y9,Feuil1!$C$1:$BF$9,7,FALSE) -> -935 | AG9: =T9-HLOOKUP(Y9,Feuil1!$C$1:$BF$9,8,FALSE) -> -935 | AH9: =T9-HLOOKUP(Y9,Feuil1!$C$1:$BF$9,9,FALSE) -> -935 | AP9: N.CL. | AQ9: 39 | AS9: =IF(AQ9,VLOOKUP(AQ9,FEM!$AS$468:$AT$523,2)) -> 1.122
A10: F | H10: 1980 | I10: 48 | L10: 25 | O10: =IF(I10="","",IF(MAXA(L10:N10)<=0,0,MAXA(L10:N10))) -> 25 | P10: 40 | S10: 40 | T10: 65 | U10: 116.7784534 | V10: FRA + | W10: 5 | X10: V1 F35 | Y10: =IF(AND(H10<1936),VLOOKUP(I10,Feuil1!$F$10:$O$24,9),IF(AND(H10>=1942,H10<1947),VLOOKUP(I10,Feuil1!$F$10:$O$24,9),IF(AND(H10>=1947,H10<1952),VLOOKUP(I10,Feuil1!$F$10:$O$24,8),IF(AND(H10>=1952,H10<1957),VLOOKUP(I10,Feuil1!$F$10:$O$24,7),IF(AND(H10>=1957,H10<1962),VLOOKUP(I10,Feuil1!$F$10:$O$24,6),IF(AND(H10>=1962,H10<1967),VLOOKUP(I10,Feuil1!$F$10:$O$24,5),IF(AND(H10>=1967,H10<1972),VLOOKUP(I10,Feuil1!$F$10:$O$24,4),IF(AND(H10>=1972,H10<1977),VLOOKUP(I10,Feuil1!$F$10:$O$24,3),IF(AND(H10>=1977,H10<1982),VLOOKUP(I10,Feuil1!$F$10:$O$24,2),VLOOKUP(I10,Feuil1!$F$10:$O$24,2)))))))))) -> VF35-48 | AA10: =T10-HLOOKUP(Y10,Feuil1!$C$1:$BF$9,2,FALSE) -> 65 | AB10: =T10-HLOOKUP(Y10,Feuil1!$C$1:$BF$9,3,FALSE) -> 10 | AC10: =T10-HLOOKUP(Y10,Feuil1!$C$1:$BF$9,4,FALSE) -> 5 | AD10: =T10-HLOOKUP(Y10,Feuil1!$C$1:$BF$9,5,FALSE) -> -5 | AE10: =T10-HLOOKUP(Y10,Feuil1!$C$1:$BF$9,6,FALSE) -> -17 | AF10: =T10-HLOOKUP(Y10,Feuil1!$C$1:$BF$9,7,FALSE) -> -935 | AG10: =T10-HLOOKUP(Y10,Feuil1!$C$1:$BF$9,8,FALSE) -> -935 | AH10: =T10-HLOOKUP(Y10,Feuil1!$C$1:$BF$9,9,FALSE) -> -935 | AP10: FRA + | AQ10: 37 | AS10: =IF(AQ10,VLOOKUP(AQ10,FEM!$AS$468:$AT$523,2)) -> 1.096
A11: F | H11: 1981 | I11: 53 | L11: 25 | O11: 25 | P11: 40 | S11: 40 | T11: 65 | U11: 106.1869296 | V11: FRA + | W11: 3 | X11: V1 F35 | Y11: =IF(AND(H11<1936),VLOOKUP(I11,Feuil1!$F$10:$O$24,9),IF(AND(H11>=1942,H11<1947),VLOOKUP(I11,Feuil1!$F$10:$O$24,9),IF(AND(H11>=1947,H11<1952),VLOOKUP(I11,Feuil1!$F$10:$O$24,8),IF(AND(H11>=1952,H11<1957),VLOOKUP(I11,Feuil1!$F$10:$O$24,7),IF(AND(H11>=1957,H11<1962),VLOOKUP(I11,Feuil1!$F$10:$O$24,6),IF(AND(H11>=1962,H11<1967),VLOOKUP(I11,Feuil1!$F$10:$O$24,5),IF(AND(H11>=1967,H11<1972),VLOOKUP(I11,Feuil1!$F$10:$O$24,4),IF(AND(H11>=1972,H11<1977),VLOOKUP(I11,Feuil1!$F$10:$O$24,3),IF(AND(H11>=1977,H11<1982),VLOOKUP(I11,Feuil1!$F$10:$O$24,2),VLOOKUP(I11,Feuil1!$F$10:$O$24,2)))))))))) -> VF35-53 | AA11: =T11-HLOOKUP(Y11,Feuil1!$C$1:$BF$9,2,FALSE) -> 65 | AB11: =T11-HLOOKUP(Y11,Feuil1!$C$1:$BF$9,3,FALSE) -> 5 | AC11: =T11-HLOOKUP(Y11,Feuil1!$C$1:$BF$9,4,FALSE) -> 3 | AD11: =T11-HLOOKUP(Y11,Feuil1!$C$1:$BF$9,5,FALSE) -> -7 | AE11: =T11-HLOOKUP(Y11,Feuil1!$C$1:$BF$9,6,FALSE) -> -25 | AF11: =T11-HLOOKUP(Y11,Feuil1!$C$1:$BF$9,7,FALSE) -> -935 | AG11: =T11-HLOOKUP(Y11,Feuil1!$C$1:$BF$9,8,FALSE) -> -935 | AH11: =T11-HLOOKUP(Y11,Feuil1!$C$1:$BF$9,9,FALSE) -> -935 | AP11: FRA + | AQ11: 36 | AS11: =IF(AQ11,VLOOKUP(AQ11,FEM!$AS$468:$AT$523,2)) -> 1.083
A12: F | H12: 1972 | I12: 58 | O12: 0 | S12: 0 | T12: 0 | U12: 0 | V12: N.CL. | W12: 0 | X12: V3 F45 | Y12: =IF(AND(H12<1936),VLOOKUP(I12,Feuil1!$F$10:$O$24,9),IF(AND(H12>=1942,H12<1947),VLOOKUP(I12,Feuil1!$F$10:$O$24,9),IF(AND(H12>=1947,H12<1952),VLOOKUP(I12,Feuil1!$F$10:$O$24,8),IF(AND(H12>=1952,H12<1957),VLOOKUP(I12,Feuil1!$F$10:$O$24,7),IF(AND(H12>=1957,H12<1962),VLOOKUP(I12,Feuil1!$F$10:$O$24,6),IF(AND(H12>=1962,H12<1967),VLOOKUP(I12,Feuil1!$F$10:$O$24,5),IF(AND(H12>=1967,H12<1972),VLOOKUP(I12,Feuil1!$F$10:$O$24,4),IF(AND(H12>=1972,H12<1977),VLOOKUP(I12,Feuil1!$F$10:$O$24,3),IF(AND(H12>=1977,H12<1982),VLOOKUP(I12,Feuil1!$F$10:$O$24,2),VLOOKUP(I12,Feuil1!$F$10:$O$24,2)))))))))) -> VF40-58 | AA12: =T12-HLOOKUP(Y12,Feuil1!$C$1:$BF$9,2,FALSE) -> 0 | AB12: =T12-HLOOKUP(Y12,Feuil1!$C$1:$BF$9,3,FALSE) -> -60 | AC12: =T12-HLOOKUP(Y12,Feuil1!$C$1:$BF$9,4,FALSE) -> -62 | AD12: =T12-HLOOKUP(Y12,Feuil1!$C$1:$BF$9,5,FALSE) -> -72 | AE12: =T12-HLOOKUP(Y12,Feuil1!$C$1:$BF$9,6,FALSE) -> -90 | AF12: =T12-HLOOKUP(Y12,Feuil1!$C$1:$BF$9,7,FALSE) -> -1000 | AG12: =T12-HLOOKUP(Y12,Feuil1!$C$1:$BF$9,8,FALSE) -> -1000 | AH12: =T12-HLOOKUP(Y12,Feuil1!$C$1:$BF$9,9,FALSE) -> -1000 | AP12: N.CL. | AQ12: 45 | AS12: =IF(AQ12,VLOOKUP(AQ12,FEM!$AS$468:$AT$523,2)) -> 1.203
A13: F | H13: 1973 | I13: 63 | O13: 0 | S13: 0 | T13: 0 | U13: 0 | V13: N.CL. | W13: 0 | X13: V2 F40 | Y13: =IF(AND(H13<1936),VLOOKUP(I13,Feuil1!$F$10:$O$24,9),IF(AND(H13>=1942,H13<1947),VLOOKUP(I13,Feuil1!$F$10:$O$24,9),IF(AND(H13>=1947,H13<1952),VLOOKUP(I13,Feuil1!$F$10:$O$24,8),IF(AND(H13>=1952,H13<1957),VLOOKUP(I13,Feuil1!$F$10:$O$24,7),IF(AND(H13>=1957,H13<1962),VLOOKUP(I13,Feuil1!$F$10:$O$24,6),IF(AND(H13>=1962,H13<1967),VLOOKUP(I13,Feuil1!$F$10:$O$24,5),IF(AND(H13>=1967,H13<1972),VLOOKUP(I13,Feuil1!$F$10:$O$24,4),IF(AND(H13>=1972,H13<1977),VLOOKUP(I13,Feuil1!$F$10:$O$24,3),IF(AND(H13>=1977,H13<1982),VLOOKUP(I13,Feuil1!$F$10:$O$24,2),VLOOKUP(I13,Feuil1!$F$10:$O$24,2)))))))))) -> VF40-63 | AA13: =T13-HLOOKUP(Y13,Feuil1!$C$1:$BF$9,2,FALSE) -> 0 | AB13: =T13-HLOOKUP(Y13,Feuil1!$C$1:$BF$9,3,FALSE) -> -62 | AC13: =T13-HLOOKUP(Y13,Feuil1!$C$1:$BF$9,4,FALSE) -> -65 | AD13: =T13-HLOOKUP(Y13,Feuil1!$C$1:$BF$9,5,FALSE) -> -75 | AE13: =T13-HLOOKUP(Y13,Feuil1!$C$1:$BF$9,6,FALSE) -> -95 | AF13: =T13-HLOOKUP(Y13,Feuil1!$C$1:$BF$9,7,FALSE) -> -1000 | AG13: =T13-HLOOKUP(Y13,Feuil1!$C$1:$BF$9,8,FALSE) -> -1000 | AH13: =T13-HLOOKUP(Y13,Feuil1!$C$1:$BF$9,9,FALSE) -> -1000 | AP13: N.CL. | AQ13: 44 | AS13: =IF(AQ13,VLOOKUP(AQ13,FEM!$AS$468:$AT$523,2)) -> 1.189
A14: F | H14: 1974 | I14: 69 | O14: 0 | S14: 0 | T14: 0 | U14: 0 | V14: N.CL. | W14: 0 | X14: V2 F40 | Y14: =IF(AND(H14<1936),VLOOKUP(I14,Feuil1!$F$10:$O$24,9),IF(AND(H14>=1942,H14<1947),VLOOKUP(I14,Feuil1!$F$10:$O$24,9),IF(AND(H14>=1947,H14<1952),VLOOKUP(I14,Feuil1!$F$10:$O$24,8),IF(AND(H14>=1952,H14<1957),VLOOKUP(I14,Feuil1!$F$10:$O$24,7),IF(AND(H14>=1957,H14<1962),VLOOKUP(I14,Feuil1!$F$10:$O$24,6),IF(AND(H14>=1962,H14<1967),VLOOKUP(I14,Feuil1!$F$10:$O$24,5),IF(AND(H14>=1967,H14<1972),VLOOKUP(I14,Feuil1!$F$10:$O$24,4),IF(AND(H14>=1972,H14<1977),VLOOKUP(I14,Feuil1!$F$10:$O$24,3),IF(AND(H14>=1977,H14<1982),VLOOKUP(I14,Feuil1!$F$10:$O$24,2),VLOOKUP(I14,Feuil1!$F$10:$O$24,2)))))))))) -> VF40-69 | AA14: =T14-HLOOKUP(Y14,Feuil1!$C$1:$BF$9,2,FALSE) -> 0 | AB14: =T14-HLOOKUP(Y14,Feuil1!$C$1:$BF$9,3,FALSE) -> -65 | AC14: =T14-HLOOKUP(Y14,Feuil1!$C$1:$BF$9,4,FALSE) -> -70 | AD14: =T14-HLOOKUP(Y14,Feuil1!$C$1:$BF$9,5,FALSE) -> -80 | AE14: =T14-HLOOKUP(Y14,Feuil1!$C$1:$BF$9,6,FALSE) -> -97 | AF14: =T14-HLOOKUP(Y14,Feuil1!$C$1:$BF$9,7,FALSE) -> -1000 | AG14: =T14-HLOOKUP(Y14,Feuil1!$C$1:$BF$9,8,FALSE) -> -1000 | AH14: =T14-HLOOKUP(Y14,Feuil1!$C$1:$BF$9,9,FALSE) -> -1000 | AP14: N.CL. | AQ14: 43 | AS14: =IF(AQ14,VLOOKUP(AQ14,FEM!$AS$468:$AT$523,2)) -> 1.176
A15: F | H15: 1975 | I15: 75 | O15: 0 | S15: 0 | T15: 0 | U15: 0 | V15: N.CL. | W15: 0 | X15: V2 F40 | Y15: =IF(AND(H15<1936),VLOOKUP(I15,Feuil1!$F$10:$O$24,9),IF(AND(H15>=1942,H15<1947),VLOOKUP(I15,Feuil1!$F$10:$O$24,9),IF(AND(H15>=1947,H15<1952),VLOOKUP(I15,Feuil1!$F$10:$O$24,8),IF(AND(H15>=1952,H15<1957),VLOOKUP(I15,Feuil1!$F$10:$O$24,7),IF(AND(H15>=1957,H15<1962),VLOOKUP(I15,Feuil1!$F$10:$O$24,6),IF(AND(H15>=1962,H15<1967),VLOOKUP(I15,Feuil1!$F$10:$O$24,5),IF(AND(H15>=1967,H15<1972),VLOOKUP(I15,Feuil1!$F$10:$O$24,4),IF(AND(H15>=1972,H15<1977),VLOOKUP(I15,Feuil1!$F$10:$O$24,3),IF(AND(H15>=1977,H15<1982),VLOOKUP(I15,Feuil1!$F$10:$O$24,2),VLOOKUP(I15,Feuil1!$F$10:$O$24,2)))))))))) -> VF40-75 | AA15: =T15-HLOOKUP(Y15,Feuil1!$C$1:$BF$9,2,FALSE) -> 0 | AB15: =T15-HLOOKUP(Y15,Feuil1!$C$1:$BF$9,3,FALSE) -> -67 | AC15: =T15-HLOOKUP(Y15,Feuil1!$C$1:$BF$9,4,FALSE) -> -72 | AD15: =T15-HLOOKUP(Y15,Feuil1!$C$1:$BF$9,5,FALSE) -> -82 | AE15: =T15-HLOOKUP(Y15,Feuil1!$C$1:$BF$9,6,FALSE) -> -100 | AF15: =T15-HLOOKUP(Y15,Feuil1!$C$1:$BF$9,7,FALSE) -> -1000 | AG15: =T15-HLOOKUP(Y15,Feuil1!$C$1:$BF$9,8,FALSE) -> -1000 | AH15: =T15-HLOOKUP(Y15,Feuil1!$C$1:$BF$9,9,FALSE) -> -1000 | AP15: N.CL. | AQ15: 42 | AS15: =IF(AQ15,VLOOKUP(AQ15,FEM!$AS$468:$AT$523,2)) -> 1.162
A16: F | X16: FALSE | Y16: =IF(AND(H16<1936),VLOOKUP(I16,Feuil1!$F$10:$O$24,9),IF(AND(H16>=1942,H16<1947),VLOOKUP(I16,Feuil1!$F$10:$O$24,9),IF(AND(H16>=1947,H16<1952),VLOOKUP(I16,Feuil1!$F$10:$O$24,8),IF(AND(H16>=1952,H16<1957),VLOOKUP(I16,Feuil1!$F$10:$O$24,7),IF(AND(H16>=1957,H16<1962),VLOOKUP(I16,Feuil1!$F$10:$O$24,6),IF(AND(H16>=1962,H16<1967),VLOOKUP(I16,Feuil1!$F$10:$O$24,5),IF(AND(H16>=1967,H16<1972),VLOOKUP(I16,Feuil1!$F$10:$O$24,4),IF(AND(H16>=1972,H16<1977),VLOOKUP(I16,Feuil1!$F$10:$O$24,3),IF(AND(H16>=1977,H16<1982),VLOOKUP(I16,Feuil1!$F$10:$O$24,2),VLOOKUP(I16,Feuil1!$F$10:$O$24,2)))))))))) ->  | AA16: =T16-HLOOKUP(Y16,Feuil1!$C$1:$BF$9,2,FALSE) ->  | AB16: =T16-HLOOKUP(Y16,Feuil1!$C$1:$BF$9,3,FALSE) ->  | AC16: =T16-HLOOKUP(Y16,Feuil1!$C$1:$BF$9,4,FALSE) ->  | AD16: =T16-HLOOKUP(Y16,Feuil1!$C$1:$BF$9,5,FALSE) ->  | AE16: =T16-HLOOKUP(Y16,Feuil1!$C$1:$BF$9,6,FALSE) ->  | AF16: =T16-HLOOKUP(Y16,Feuil1!$C$1:$BF$9,7,FALSE) ->  | AG16: =T16-HLOOKUP(Y16,Feuil1!$C$1:$BF$9,8,FALSE) ->  | AH16: =T16-HLOOKUP(Y16,Feuil1!$C$1:$BF$9,9,FALSE) ->  | AQ16: 2017 | AS16: =IF(AQ16,VLOOKUP(AQ16,FEM!$AS$468:$AT$523,2)) -> 4.493
A17: F | X17: FALSE | Y17: =IF(AND(H17<1936),VLOOKUP(I17,Feuil1!$F$10:$O$24,9),IF(AND(H17>=1942,H17<1947),VLOOKUP(I17,Feuil1!$F$10:$O$24,9),IF(AND(H17>=1947,H17<1952),VLOOKUP(I17,Feuil1!$F$10:$O$24,8),IF(AND(H17>=1952,H17<1957),VLOOKUP(I17,Feuil1!$F$10:$O$24,7),IF(AND(H17>=1957,H17<1962),VLOOKUP(I17,Feuil1!$F$10:$O$24,6),IF(AND(H17>=1962,H17<1967),VLOOKUP(I17,Feuil1!$F$10:$O$24,5),IF(AND(H17>=1967,H17<1972),VLOOKUP(I17,Feuil1!$F$10:$O$24,4),IF(AND(H17>=1972,H17<1977),VLOOKUP(I17,Feuil1!$F$10:$O$24,3),IF(AND(H17>=1977,H17<1982),VLOOKUP(I17,Feuil1!$F$10:$O$24,2),VLOOKUP(I17,Feuil1!$F$10:$O$24,2)))))))))) ->  | AA17: =T17-HLOOKUP(Y17,Feuil1!$C$1:$BF$9,2,FALSE) ->  | AB17: =T17-HLOOKUP(Y17,Feuil1!$C$1:$BF$9,3,FALSE) ->  | AC17: =T17-HLOOKUP(Y17,Feuil1!$C$1:$BF$9,4,FALSE) ->  | AD17: =T17-HLOOKUP(Y17,Feuil1!$C$1:$BF$9,5,FALSE) ->  | AE17: =T17-HLOOKUP(Y17,Feuil1!$C$1:$BF$9,6,FALSE) ->  | AF17: =T17-HLOOKUP(Y17,Feuil1!$C$1:$BF$9,7,FALSE) ->  | AG17: =T17-HLOOKUP(Y17,Feuil1!$C$1:$BF$9,8,FALSE) ->  | AH17: =T17-HLOOKUP(Y17,Feuil1!$C$1:$BF$9,9,FALSE) ->  | AQ17: 2017 | AS17: =IF(AQ17,VLOOKUP(AQ17,FEM!$AS$468:$AT$523,2)) -> 4.493
A18: F | X18: FALSE | Y18: =IF(AND(H18<1936),VLOOKUP(I18,Feuil1!$F$10:$O$24,9),IF(AND(H18>=1942,H18<1947),VLOOKUP(I18,Feuil1!$F$10:$O$24,9),IF(AND(H18>=1947,H18<1952),VLOOKUP(I18,Feuil1!$F$10:$O$24,8),IF(AND(H18>=1952,H18<1957),VLOOKUP(I18,Feuil1!$F$10:$O$24,7),IF(AND(H18>=1957,H18<1962),VLOOKUP(I18,Feuil1!$F$10:$O$24,6),IF(AND(H18>=1962,H18<1967),VLOOKUP(I18,Feuil1!$F$10:$O$24,5),IF(AND(H18>=1967,H18<1972),VLOOKUP(I18,Feuil1!$F$10:$O$24,4),IF(AND(H18>=1972,H18<1977),VLOOKUP(I18,Feuil1!$F$10:$O$24,3),IF(AND(H18>=1977,H18<1982),VLOOKUP(I18,Feuil1!$F$10:$O$24,2),VLOOKUP(I18,Feuil1!$F$10:$O$24,2)))))))))) ->  | AA18: =T18-HLOOKUP(Y18,Feuil1!$C$1:$BF$9,2,FALSE) ->  | AB18: =T18-HLOOKUP(Y18,Feuil1!$C$1:$BF$9,3,FALSE) ->  | AC18: =T18-HLOOKUP(Y18,Feuil1!$C$1:$BF$9,4,FALSE) ->  | AD18: =T18-HLOOKUP(Y18,Feuil1!$C$1:$BF$9,5,FALSE) ->  | AE18: =T18-HLOOKUP(Y18,Feuil1!$C$1:$BF$9,6,FALSE) ->  | AF18: =T18-HLOOKUP(Y18,Feuil1!$C$1:$BF$9,7,FALSE) ->  | AG18: =T18-HLOOKUP(Y18,Feuil1!$C$1:$BF$9,8,FALSE) ->  | AH18: =T18-HLOOKUP(Y18,Feuil1!$C$1:$BF$9,9,FALSE) ->  | AQ18: 2017 | AS18: =IF(AQ18,VLOOKUP(AQ18,FEM!$AS$468:$AT$523,2)) -> 4.493
A19: F | X19: FALSE | Y19: =IF(AND(H19<1936),VLOOKUP(I19,Feuil1!$F$10:$O$24,9),IF(AND(H19>=1942,H19<1947),VLOOKUP(I19,Feuil1!$F$10:$O$24,9),IF(AND(H19>=1947,H19<1952),VLOOKUP(I19,Feuil1!$F$10:$O$24,8),IF(AND(H19>=1952,H19<1957),VLOOKUP(I19,Feuil1!$F$10:$O$24,7),IF(AND(H19>=1957,H19<1962),VLOOKUP(I19,Feuil1!$F$10:$O$24,6),IF(AND(H19>=1962,H19<1967),VLOOKUP(I19,Feuil1!$F$10:$O$24,5),IF(AND(H19>=1967,H19<1972),VLOOKUP(I19,Feuil1!$F$10:$O$24,4),IF(AND(H19>=1972,H19<1977),VLOOKUP(I19,Feuil1!$F$10:$O$24,3),IF(AND(H19>=1977,H19<1982),VLOOKUP(I19,Feuil1!$F$10:$O$24,2),VLOOKUP(I19,Feuil1!$F$10:$O$24,2)))))))))) ->  | AA19: =T19-HLOOKUP(Y19,Feuil1!$C$1:$BF$9,2,FALSE) ->  | AB19: =T19-HLOOKUP(Y19,Feuil1!$C$1:$BF$9,3,FALSE) ->  | AC19: =T19-HLOOKUP(Y19,Feuil1!$C$1:$BF$9,4,FALSE) ->  | AD19: =T19-HLOOKUP(Y19,Feuil1!$C$1:$BF$9,5,FALSE) ->  | AE19: =T19-HLOOKUP(Y19,Feuil1!$C$1:$BF$9,6,FALSE) ->  | AF19: =T19-HLOOKUP(Y19,Feuil1!$C$1:$BF$9,7,FALSE) ->  | AG19: =T19-HLOOKUP(Y19,Feuil1!$C$1:$BF$9,8,FALSE) ->  | AH19: =T19-HLOOKUP(Y19,Feuil1!$C$1:$BF$9,9,FALSE) ->  | AQ19: 2017 | AS19: =IF(AQ19,VLOOKUP(AQ19,FEM!$AS$468:$AT$523,2)) -> 4.493
A20: F | X20: FALSE | Y20: =IF(AND(H20<1936),VLOOKUP(I20,Feuil1!$F$10:$O$24,9),IF(AND(H20>=1942,H20<1947),VLOOKUP(I20,Feuil1!$F$10:$O$24,9),IF(AND(H20>=1947,H20<1952),VLOOKUP(I20,Feuil1!$F$10:$O$24,8),IF(AND(H20>=1952,H20<1957),VLOOKUP(I20,Feuil1!$F$10:$O$24,7),IF(AND(H20>=1957,H20<1962),VLOOKUP(I20,Feuil1!$F$10:$O$24,6),IF(AND(H20>=1962,H20<1967),VLOOKUP(I20,Feuil1!$F$10:$O$24,5),IF(AND(H20>=1967,H20<1972),VLOOKUP(I20,Feuil1!$F$10:$O$24,4),IF(AND(H20>=1972,H20<1977),VLOOKUP(I20,Feuil1!$F$10:$O$24,3),IF(AND(H20>=1977,H20<1982),VLOOKUP(I20,Feuil1!$F$10:$O$24,2),VLOOKUP(I20,Feuil1!$F$10:$O$24,2)))))))))) ->  | AA20: =T20-HLOOKUP(Y20,Feuil1!$C$1:$BF$9,2,FALSE) ->  | AB20: =T20-HLOOKUP(Y20,Feuil1!$C$1:$BF$9,3,FALSE) ->  | AC20: =T20-HLOOKUP(Y20,Feuil1!$C$1:$BF$9,4,FALSE) ->  | AD20: =T20-HLOOKUP(Y20,Feuil1!$C$1:$BF$9,5,FALSE) ->  | AE20: =T20-HLOOKUP(Y20,Feuil1!$C$1:$BF$9,6,FALSE) ->  | AF20: =T20-HLOOKUP(Y20,Feuil1!$C$1:$BF$9,7,FALSE) ->  | AG20: =T20-HLOOKUP(Y20,Feuil1!$C$1:$BF$9,8,FALSE) ->  | AH20: =T20-HLOOKUP(Y20,Feuil1!$C$1:$BF$9,9,FALSE) ->  | AQ20: 2017 | AS20: =IF(AQ20,VLOOKUP(AQ20,FEM!$AS$468:$AT$523,2)) -> 4.493
A21: F | X21: FALSE | Y21: =IF(AND(H21<1936),VLOOKUP(I21,Feuil1!$F$10:$O$24,9),IF(AND(H21>=1942,H21<1947),VLOOKUP(I21,Feuil1!$F$10:$O$24,9),IF(AND(H21>=1947,H21<1952),VLOOKUP(I21,Feuil1!$F$10:$O$24,8),IF(AND(H21>=1952,H21<1957),VLOOKUP(I21,Feuil1!$F$10:$O$24,7),IF(AND(H21>=1957,H21<1962),VLOOKUP(I21,Feuil1!$F$10:$O$24,6),IF(AND(H21>=1962,H21<1967),VLOOKUP(I21,Feuil1!$F$10:$O$24,5),IF(AND(H21>=1967,H21<1972),VLOOKUP(I21,Feuil1!$F$10:$O$24,4),IF(AND(H21>=1972,H21<1977),VLOOKUP(I21,Feuil1!$F$10:$O$24,3),IF(AND(H21>=1977,H21<1982),VLOOKUP(I21,Feuil1!$F$10:$O$24,2),VLOOKUP(I21,Feuil1!$F$10:$O$24,2)))))))))) ->  | AA21: =T21-HLOOKUP(Y21,Feuil1!$C$1:$BF$9,2,FALSE) ->  | AB21: =T21-HLOOKUP(Y21,Feuil1!$C$1:$BF$9,3,FALSE) ->  | AC21: =T21-HLOOKUP(Y21,Feuil1!$C$1:$BF$9,4,FALSE) ->  | AD21: =T21-HLOOKUP(Y21,Feuil1!$C$1:$BF$9,5,FALSE) ->  | AE21: =T21-HLOOKUP(Y21,Feuil1!$C$1:$BF$9,6,FALSE) ->  | AF21: =T21-HLOOKUP(Y21,Feuil1!$C$1:$BF$9,7,FALSE) ->  | AG21: =T21-HLOOKUP(Y21,Feuil1!$C$1:$BF$9,8,FALSE) ->  | AH21: =T21-HLOOKUP(Y21,Feuil1!$C$1:$BF$9,9,FALSE) ->  | AQ21: 2017 | AS21: =IF(AQ21,VLOOKUP(AQ21,FEM!$AS$468:$AT$523,2)) -> 4.493
A22: F | X22: FALSE | Y22: =IF(AND(H22<1936),VLOOKUP(I22,Feuil1!$F$10:$O$24,9),IF(AND(H22>=1942,H22<1947),VLOOKUP(I22,Feuil1!$F$10:$O$24,9),IF(AND(H22>=1947,H22<1952),VLOOKUP(I22,Feuil1!$F$10:$O$24,8),IF(AND(H22>=1952,H22<1957),VLOOKUP(I22,Feuil1!$F$10:$O$24,7),IF(AND(H22>=1957,H22<1962),VLOOKUP(I22,Feuil1!$F$10:$O$24,6),IF(AND(H22>=1962,H22<1967),VLOOKUP(I22,Feuil1!$F$10:$O$24,5),IF(AND(H22>=1967,H22<1972),VLOOKUP(I22,Feuil1!$F$10:$O$24,4),IF(AND(H22>=1972,H22<1977),VLOOKUP(I22,Feuil1!$F$10:$O$24,3),IF(AND(H22>=1977,H22<1982),VLOOKUP(I22,Feuil1!$F$10:$O$24,2),VLOOKUP(I22,Feuil1!$F$10:$O$24,2)))))))))) ->  | AA22: =T22-HLOOKUP(Y22,Feuil1!$C$1:$BF$9,2,FALSE) ->  | AB22: =T22-HLOOKUP(Y22,Feuil1!$C$1:$BF$9,3,FALSE) ->  | AC22: =T22-HLOOKUP(Y22,Feuil1!$C$1:$BF$9,4,FALSE) ->  | AD22: =T22-HLOOKUP(Y22,Feuil1!$C$1:$BF$9,5,FALSE) ->  | AE22: =T22-HLOOKUP(Y22,Feuil1!$C$1:$BF$9,6,FALSE) ->  | AF22: =T22-HLOOKUP(Y22,Feuil1!$C$1:$BF$9,7,FALSE) ->  | AG22: =T22-HLOOKUP(Y22,Feuil1!$C$1:$BF$9,8,FALSE) ->  | AH22: =T22-HLOOKUP(Y22,Feuil1!$C$1:$BF$9,9,FALSE) ->  | AQ22: 2017 | AS22: =IF(AQ22,VLOOKUP(AQ22,FEM!$AS$468:$AT$523,2)) -> 4.493
A23: F | X23: FALSE | Y23: =IF(AND(H23<1936),VLOOKUP(I23,Feuil1!$F$10:$O$24,9),IF(AND(H23>=1942,H23<1947),VLOOKUP(I23,Feuil1!$F$10:$O$24,9),IF(AND(H23>=1947,H23<1952),VLOOKUP(I23,Feuil1!$F$10:$O$24,8),IF(AND(H23>=1952,H23<1957),VLOOKUP(I23,Feuil1!$F$10:$O$24,7),IF(AND(H23>=1957,H23<1962),VLOOKUP(I23,Feuil1!$F$10:$O$24,6),IF(AND(H23>=1962,H23<1967),VLOOKUP(I23,Feuil1!$F$10:$O$24,5),IF(AND(H23>=1967,H23<1972),VLOOKUP(I23,Feuil1!$F$10:$O$24,4),IF(AND(H23>=1972,H23<1977),VLOOKUP(I23,Feuil1!$F$10:$O$24,3),IF(AND(H23>=1977,H23<1982),VLOOKUP(I23,Feuil1!$F$10:$O$24,2),VLOOKUP(I23,Feuil1!$F$10:$O$24,2)))))))))) ->  | AA23: =T23-HLOOKUP(Y23,Feuil1!$C$1:$BF$9,2,FALSE) ->  | AB23: =T23-HLOOKUP(Y23,Feuil1!$C$1:$BF$9,3,FALSE) ->  | AC23: =T23-HLOOKUP(Y23,Feuil1!$C$1:$BF$9,4,FALSE) ->  | AD23: =T23-HLOOKUP(Y23,Feuil1!$C$1:$BF$9,5,FALSE) ->  | AE23: =T23-HLOOKUP(Y23,Feuil1!$C$1:$BF$9,6,FALSE) ->  | AF23: =T23-HLOOKUP(Y23,Feuil1!$C$1:$BF$9,7,FALSE) ->  | AG23: =T23-HLOOKUP(Y23,Feuil1!$C$1:$BF$9,8,FALSE) ->  | AH23: =T23-HLOOKUP(Y23,Feuil1!$C$1:$BF$9,9,FALSE) ->  | AQ23: 2017 | AS23: =IF(AQ23,VLOOKUP(AQ23,FEM!$AS$468:$AT$523,2)) -> 4.493
A24: F | X24: FALSE | Y24: =IF(AND(H24<1936),VLOOKUP(I24,Feuil1!$F$10:$O$24,9),IF(AND(H24>=1942,H24<1947),VLOOKUP(I24,Feuil1!$F$10:$O$24,9),IF(AND(H24>=1947,H24<1952),VLOOKUP(I24,Feuil1!$F$10:$O$24,8),IF(AND(H24>=1952,H24<1957),VLOOKUP(I24,Feuil1!$F$10:$O$24,7),IF(AND(H24>=1957,H24<1962),VLOOKUP(I24,Feuil1!$F$10:$O$24,6),IF(AND(H24>=1962,H24<1967),VLOOKUP(I24,Feuil1!$F$10:$O$24,5),IF(AND(H24>=1967,H24<1972),VLOOKUP(I24,Feuil1!$F$10:$O$24,4),IF(AND(H24>=1972,H24<1977),VLOOKUP(I24,Feuil1!$F$10:$O$24,3),IF(AND(H24>=1977,H24<1982),VLOOKUP(I24,Feuil1!$F$10:$O$24,2),VLOOKUP(I24,Feuil1!$F$10:$O$24,2)))))))))) ->  | AA24: =T24-HLOOKUP(Y24,Feuil1!$C$1:$BF$9,2,FALSE) ->  | AB24: =T24-HLOOKUP(Y24,Feuil1!$C$1:$BF$9,3,FALSE) ->  | AC24: =T24-HLOOKUP(Y24,Feuil1!$C$1:$BF$9,4,FALSE) ->  | AD24: =T24-HLOOKUP(Y24,Feuil1!$C$1:$BF$9,5,FALSE) ->  | AE24: =T24-HLOOKUP(Y24,Feuil1!$C$1:$BF$9,6,FALSE) ->  | AF24: =T24-HLOOKUP(Y24,Feuil1!$C$1:$BF$9,7,FALSE) ->  | AG24: =T24-HLOOKUP(Y24,Feuil1!$C$1:$BF$9,8,FALSE) ->  | AH24: =T24-HLOOKUP(Y24,Feuil1!$C$1:$BF$9,9,FALSE) ->  | AQ24: 2017 | AS24: =IF(AQ24,VLOOKUP(AQ24,FEM!$AS$468:$AT$523,2)) -> 4.493
A25: F | X25: FALSE | Y25: =IF(AND(H25<1936),VLOOKUP(I25,Feuil1!$F$10:$O$24,9),IF(AND(H25>=1942,H25<1947),VLOOKUP(I25,Feuil1!$F$10:$O$24,9),IF(AND(H25>=1947,H25<1952),VLOOKUP(I25,Feuil1!$F$10:$O$24,8),IF(AND(H25>=1952,H25<1957),VLOOKUP(I25,Feuil1!$F$10:$O$24,7),IF(AND(H25>=1957,H25<1962),VLOOKUP(I25,Feuil1!$F$10:$O$24,6),IF(AND(H25>=1962,H25<1967),VLOOKUP(I25,Feuil1!$F$10:$O$24,5),IF(AND(H25>=1967,H25<1972),VLOOKUP(I25,Feuil1!$F$10:$O$24,4),IF(AND(H25>=1972,H25<1977),VLOOKUP(I25,Feuil1!$F$10:$O$24,3),IF(AND(H25>=1977,H25<1982),VLOOKUP(I25,Feuil1!$F$10:$O$24,2),VLOOKUP(I25,Feuil1!$F$10:$O$24,2)))))))))) ->  | AA25: =T25-HLOOKUP(Y25,Feuil1!$C$1:$BF$9,2,FALSE) ->  | AB25: =T25-HLOOKUP(Y25,Feuil1!$C$1:$BF$9,3,FALSE) ->  | AC25: =T25-HLOOKUP(Y25,Feuil1!$C$1:$BF$9,4,FALSE) ->  | AD25: =T25-HLOOKUP(Y25,Feuil1!$C$1:$BF$9,5,FALSE) ->  | AE25: =T25-HLOOKUP(Y25,Feuil1!$C$1:$BF$9,6,FALSE) ->  | AF25: =T25-HLOOKUP(Y25,Feuil1!$C$1:$BF$9,7,FALSE) ->  | AG25: =T25-HLOOKUP(Y25,Feuil1!$C$1:$BF$9,8,FALSE) ->  | AH25: =T25-HLOOKUP(Y25,Feuil1!$C$1:$BF$9,9,FALSE) ->  | AQ25: 2017 | AS25: =IF(AQ25,VLOOKUP(AQ25,FEM!$AS$468:$AT$523,2)) -> 4.493
A26: F | X26: FALSE | Y26: =IF(AND(H26<1936),VLOOKUP(I26,Feuil1!$F$10:$O$24,9),IF(AND(H26>=1942,H26<1947),VLOOKUP(I26,Feuil1!$F$10:$O$24,9),IF(AND(H26>=1947,H26<1952),VLOOKUP(I26,Feuil1!$F$10:$O$24,8),IF(AND(H26>=1952,H26<1957),VLOOKUP(I26,Feuil1!$F$10:$O$24,7),IF(AND(H26>=1957,H26<1962),VLOOKUP(I26,Feuil1!$F$10:$O$24,6),IF(AND(H26>=1962,H26<1967),VLOOKUP(I26,Feuil1!$F$10:$O$24,5),IF(AND(H26>=1967,H26<1972),VLOOKUP(I26,Feuil1!$F$10:$O$24,4),IF(AND(H26>=1972,H26<1977),VLOOKUP(I26,Feuil1!$F$10:$O$24,3),IF(AND(H26>=1977,H26<1982),VLOOKUP(I26,Feuil1!$F$10:$O$24,2),VLOOKUP(I26,Feuil1!$F$10:$O$24,2)))))))))) ->  | AA26: =T26-HLOOKUP(Y26,Feuil1!$C$1:$BF$9,2,FALSE) ->  | AB26: =T26-HLOOKUP(Y26,Feuil1!$C$1:$BF$9,3,FALSE) ->  | AC26: =T26-HLOOKUP(Y26,Feuil1!$C$1:$BF$9,4,FALSE) ->  | AD26: =T26-HLOOKUP(Y26,Feuil1!$C$1:$BF$9,5,FALSE) ->  | AE26: =T26-HLOOKUP(Y26,Feuil1!$C$1:$BF$9,6,FALSE) ->  | AF26: =T26-HLOOKUP(Y26,Feuil1!$C$1:$BF$9,7,FALSE) ->  | AG26: =T26-HLOOKUP(Y26,Feuil1!$C$1:$BF$9,8,FALSE) ->  | AH26: =T26-HLOOKUP(Y26,Feuil1!$C$1:$BF$9,9,FALSE) ->  | AQ26: 2017 | AS26: =IF(AQ26,VLOOKUP(AQ26,FEM!$AS$468:$AT$523,2)) -> 4.493
A27: F | X27: FALSE | Y27: =IF(AND(H27<1936),VLOOKUP(I27,Feuil1!$F$10:$O$24,9),IF(AND(H27>=1942,H27<1947),VLOOKUP(I27,Feuil1!$F$10:$O$24,9),IF(AND(H27>=1947,H27<1952),VLOOKUP(I27,Feuil1!$F$10:$O$24,8),IF(AND(H27>=1952,H27<1957),VLOOKUP(I27,Feuil1!$F$10:$O$24,7),IF(AND(H27>=1957,H27<1962),VLOOKUP(I27,Feuil1!$F$10:$O$24,6),IF(AND(H27>=1962,H27<1967),VLOOKUP(I27,Feuil1!$F$10:$O$24,5),IF(AND(H27>=1967,H27<1972),VLOOKUP(I27,Feuil1!$F$10:$O$24,4),IF(AND(H27>=1972,H27<1977),VLOOKUP(I27,Feuil1!$F$10:$O$24,3),IF(AND(H27>=1977,H27<1982),VLOOKUP(I27,Feuil1!$F$10:$O$24,2),VLOOKUP(I27,Feuil1!$F$10:$O$24,2)))))))))) ->  | AA27: =T27-HLOOKUP(Y27,Feuil1!$C$1:$BF$9,2,FALSE) ->  | AB27: =T27-HLOOKUP(Y27,Feuil1!$C$1:$BF$9,3,FALSE) ->  | AC27: =T27-HLOOKUP(Y27,Feuil1!$C$1:$BF$9,4,FALSE) ->  | AD27: =T27-HLOOKUP(Y27,Feuil1!$C$1:$BF$9,5,FALSE) ->  | AE27: =T27-HLOOKUP(Y27,Feuil1!$C$1:$BF$9,6,FALSE) ->  | AF27: =T27-HLOOKUP(Y27,Feuil1!$C$1:$BF$9,7,FALSE) ->  | AG27: =T27-HLOOKUP(Y27,Feuil1!$C$1:$BF$9,8,FALSE) ->  | AH27: =T27-HLOOKUP(Y27,Feuil1!$C$1:$BF$9,9,FALSE) ->  | AQ27: 2017 | AS27: =IF(AQ27,VLOOKUP(AQ27,FEM!$AS$468:$AT$523,2)) -> 4.493
A28: F | X28: FALSE | Y28: =IF(AND(H28<1936),VLOOKUP(I28,Feuil1!$F$10:$O$24,9),IF(AND(H28>=1942,H28<1947),VLOOKUP(I28,Feuil1!$F$10:$O$24,9),IF(AND(H28>=1947,H28<1952),VLOOKUP(I28,Feuil1!$F$10:$O$24,8),IF(AND(H28>=1952,H28<1957),VLOOKUP(I28,Feuil1!$F$10:$O$24,7),IF(AND(H28>=1957,H28<1962),VLOOKUP(I28,Feuil1!$F$10:$O$24,6),IF(AND(H28>=1962,H28<1967),VLOOKUP(I28,Feuil1!$F$10:$O$24,5),IF(AND(H28>=1967,H28<1972),VLOOKUP(I28,Feuil1!$F$10:$O$24,4),IF(AND(H28>=1972,H28<1977),VLOOKUP(I28,Feuil1!$F$10:$O$24,3),IF(AND(H28>=1977,H28<1982),VLOOKUP(I28,Feuil1!$F$10:$O$24,2),VLOOKUP(I28,Feuil1!$F$10:$O$24,2)))))))))) ->  | AA28: =T28-HLOOKUP(Y28,Feuil1!$C$1:$BF$9,2,FALSE) ->  | AB28: =T28-HLOOKUP(Y28,Feuil1!$C$1:$BF$9,3,FALSE) ->  | AC28: =T28-HLOOKUP(Y28,Feuil1!$C$1:$BF$9,4,FALSE) ->  | AD28: =T28-HLOOKUP(Y28,Feuil1!$C$1:$BF$9,5,FALSE) ->  | AE28: =T28-HLOOKUP(Y28,Feuil1!$C$1:$BF$9,6,FALSE) ->  | AF28: =T28-HLOOKUP(Y28,Feuil1!$C$1:$BF$9,7,FALSE) ->  | AG28: =T28-HLOOKUP(Y28,Feuil1!$C$1:$BF$9,8,FALSE) ->  | AH28: =T28-HLOOKUP(Y28,Feuil1!$C$1:$BF$9,9,FALSE) ->  | AQ28: 2017 | AS28: =IF(AQ28,VLOOKUP(AQ28,FEM!$AS$468:$AT$523,2)) -> 4.493
A29: F | X29: FALSE | Y29: =IF(AND(H29<1936),VLOOKUP(I29,Feuil1!$F$10:$O$24,9),IF(AND(H29>=1942,H29<1947),VLOOKUP(I29,Feuil1!$F$10:$O$24,9),IF(AND(H29>=1947,H29<1952),VLOOKUP(I29,Feuil1!$F$10:$O$24,8),IF(AND(H29>=1952,H29<1957),VLOOKUP(I29,Feuil1!$F$10:$O$24,7),IF(AND(H29>=1957,H29<1962),VLOOKUP(I29,Feuil1!$F$10:$O$24,6),IF(AND(H29>=1962,H29<1967),VLOOKUP(I29,Feuil1!$F$10:$O$24,5),IF(AND(H29>=1967,H29<1972),VLOOKUP(I29,Feuil1!$F$10:$O$24,4),IF(AND(H29>=1972,H29<1977),VLOOKUP(I29,Feuil1!$F$10:$O$24,3),IF(AND(H29>=1977,H29<1982),VLOOKUP(I29,Feuil1!$F$10:$O$24,2),VLOOKUP(I29,Feuil1!$F$10:$O$24,2)))))))))) ->  | AA29: =T29-HLOOKUP(Y29,Feuil1!$C$1:$BF$9,2,FALSE) ->  | AB29: =T29-HLOOKUP(Y29,Feuil1!$C$1:$BF$9,3,FALSE) ->  | AC29: =T29-HLOOKUP(Y29,Feuil1!$C$1:$BF$9,4,FALSE) ->  | AD29: =T29-HLOOKUP(Y29,Feuil1!$C$1:$BF$9,5,FALSE) ->  | AE29: =T29-HLOOKUP(Y29,Feuil1!$C$1:$BF$9,6,FALSE) ->  | AF29: =T29-HLOOKUP(Y29,Feuil1!$C$1:$BF$9,7,FALSE) ->  | AG29: =T29-HLOOKUP(Y29,Feuil1!$C$1:$BF$9,8,FALSE) ->  | AH29: =T29-HLOOKUP(Y29,Feuil1!$C$1:$BF$9,9,FALSE) ->  | AQ29: 2017 | AS29: =IF(AQ29,VLOOKUP(AQ29,FEM!$AS$468:$AT$523,2)) -> 4.493
A30: F | U30: =IF(I30="","",IF(A30="H",10^(0.794358141*LOG(I30/174.393)^2)*T30*AS30,IF(A30="F",10^(0.89726074 * LOG(I30/148.026)^2)*T30*AS30,""))) ->  | V30: =IF(I30="","",AP30) ->  | W30: =IF(I30="","",IF(AH30>=0,AH30,IF(AG30>=0,AG30,IF(AF30>=0,AF30,IF(AE30>=0,AE30,IF(AD30>=0,AD30,IF(AC30>=0,AC30,IF(AB30>=0,AB30,AA30)))))))) ->  | X30: =IF(AQ30<95,IF(AQ30<=90,VLOOKUP(AQ30,$AQ$467:$AR$522,2))) -> FALSE | Y30: =IF(AND(H30<1936),VLOOKUP(I30,Feuil1!$F$10:$O$24,9),IF(AND(H30>=1942,H30<1947),VLOOKUP(I30,Feuil1!$F$10:$O$24,9),IF(AND(H30>=1947,H30<1952),VLOOKUP(I30,Feuil1!$F$10:$O$24,8),IF(AND(H30>=1952,H30<1957),VLOOKUP(I30,Feuil1!$F$10:$O$24,7),IF(AND(H30>=1957,H30<1962),VLOOKUP(I30,Feuil1!$F$10:$O$24,6),IF(AND(H30>=1962,H30<1967),VLOOKUP(I30,Feuil1!$F$10:$O$24,5),IF(AND(H30>=1967,H30<1972),VLOOKUP(I30,Feuil1!$F$10:$O$24,4),IF(AND(H30>=1972,H30<1977),VLOOKUP(I30,Feuil1!$F$10:$O$24,3),IF(AND(H30>=1977,H30<1982),VLOOKUP(I30,Feuil1!$F$10:$O$24,2),VLOOKUP(I30,Feuil1!$F$10:$O$24,2)))))))))) ->  | AA30: =T30-HLOOKUP(Y30,Feuil1!$C$1:$BF$9,2,FALSE) ->  | AB30: =T30-HLOOKUP(Y30,Feuil1!$C$1:$BF$9,3,FALSE) ->  | AC30: =T30-HLOOKUP(Y30,Feuil1!$C$1:$BF$9,4,FALSE) ->  | AD30: =T30-HLOOKUP(Y30,Feuil1!$C$1:$BF$9,5,FALSE) ->  | AE30: =T30-HLOOKUP(Y30,Feuil1!$C$1:$BF$9,6,FALSE) ->  | AF30: =T30-HLOOKUP(Y30,Feuil1!$C$1:$BF$9,7,FALSE) ->  | AG30: =T30-HLOOKUP(Y30,Feuil1!$C$1:$BF$9,8,FALSE) ->  | AH30: =T30-HLOOKUP(Y30,Feuil1!$C$1:$BF$9,9,FALSE) ->  | AQ30: 2017 | AS30: =IF(AQ30,VLOOKUP(AQ30,FEM!$AS$468:$AT$523,2)) -> 4.493
A31: F | AA31: =T31-HLOOKUP(Y31,Feuil1!$C$1:$BF$9,2,FALSE) ->  | AB31: =T31-HLOOKUP(Y31,Feuil1!$C$1:$BF$9,3,FALSE) ->  | AC31: =T31-HLOOKUP(Y31,Feuil1!$C$1:$BF$9,4,FALSE) ->  | AD31: =T31-HLOOKUP(Y31,Feuil1!$C$1:$BF$9,5,FALSE) ->  | AE31: =T31-HLOOKUP(Y31,Feuil1!$C$1:$BF$9,6,FALSE) ->  | AF31: =T31-HLOOKUP(Y31,Feuil1!$C$1:$BF$9,7,FALSE) ->  | AG31: =T31-HLOOKUP(Y31,Feuil1!$C$1:$BF$9,8,FALSE) ->  | AH31: =T31-HLOOKUP(Y31,Feuil1!$C$1:$BF$9,9,FALSE) ->  | AQ31: 2017 | AS31: =IF(AQ31,VLOOKUP(AQ31,FEM!$AS$468:$AT$523,2)) -> 4.493
A32: F | B32: Secrétaire : | J32: 1 | AA32: =T32-HLOOKUP(Y32,Feuil1!$C$1:$BF$9,2,FALSE) ->  | AB32: =T32-HLOOKUP(Y32,Feuil1!$C$1:$BF$9,3,FALSE) ->  | AC32: =T32-HLOOKUP(Y32,Feuil1!$C$1:$BF$9,4,FALSE) ->  | AD32: =T32-HLOOKUP(Y32,Feuil1!$C$1:$BF$9,5,FALSE) ->  | AE32: =T32-HLOOKUP(Y32,Feuil1!$C$1:$BF$9,6,FALSE) ->  | AF32: =T32-HLOOKUP(Y32,Feuil1!$C$1:$BF$9,7,FALSE) ->  | AG32: =T32-HLOOKUP(Y32,Feuil1!$C$1:$BF$9,8,FALSE) ->  | AH32: =T32-HLOOKUP(Y32,Feuil1!$C$1:$BF$9,9,FALSE) ->  | AS32: =IF(AQ32,VLOOKUP(AQ32,FEM!$AS$468:$AT$523,2)) -> 
A33: F | I33: ARBITRES : 2 | R33: Signatures : | AA33: =T33-HLOOKUP(Y33,Feuil1!$C$1:$BF$9,2,FALSE) ->  | AB33: =T33-HLOOKUP(Y33,Feuil1!$C$1:$BF$9,3,FALSE) ->  | AC33: =T33-HLOOKUP(Y33,Feuil1!$C$1:$BF$9,4,FALSE) ->  | AD33: =T33-HLOOKUP(Y33,Feuil1!$C$1:$BF$9,5,FALSE) ->  | AE33: =T33-HLOOKUP(Y33,Feuil1!$C$1:$BF$9,6,FALSE) ->  | AF33: =T33-HLOOKUP(Y33,Feuil1!$C$1:$BF$9,7,FALSE) ->  | AG33: =T33-HLOOKUP(Y33,Feuil1!$C$1:$BF$9,8,FALSE) ->  | AH33: =T33-HLOOKUP(Y33,Feuil1!$C$1:$BF$9,9,FALSE) ->  | AS33: =IF(AQ33,VLOOKUP(AQ33,FEM!$AS$468:$AT$523,2)) -> 
A34: F | B34: Contrôleur Technique 1 : | J34: 3 | AA34: =T34-HLOOKUP(Y34,Feuil1!$C$1:$BF$9,2,FALSE) ->  | AB34: =T34-HLOOKUP(Y34,Feuil1!$C$1:$BF$9,3,FALSE) ->  | AC34: =T34-HLOOKUP(Y34,Feuil1!$C$1:$BF$9,4,FALSE) ->  | AD34: =T34-HLOOKUP(Y34,Feuil1!$C$1:$BF$9,5,FALSE) ->  | AE34: =T34-HLOOKUP(Y34,Feuil1!$C$1:$BF$9,6,FALSE) ->  | AF34: =T34-HLOOKUP(Y34,Feuil1!$C$1:$BF$9,7,FALSE) ->  | AG34: =T34-HLOOKUP(Y34,Feuil1!$C$1:$BF$9,8,FALSE) ->  | AH34: =T34-HLOOKUP(Y34,Feuil1!$C$1:$BF$9,9,FALSE) ->  | AS34: =IF(AQ34,VLOOKUP(AQ34,FEM!$AS$468:$AT$523,2)) -> 
A35: F | B35: Contrôleur Technique 2 : | AA35: =T35-HLOOKUP(Y35,Feuil1!$C$1:$BF$9,2,FALSE) ->  | AB35: =T35-HLOOKUP(Y35,Feuil1!$C$1:$BF$9,3,FALSE) ->  | AC35: =T35-HLOOKUP(Y35,Feuil1!$C$1:$BF$9,4,FALSE) ->  | AD35: =T35-HLOOKUP(Y35,Feuil1!$C$1:$BF$9,5,FALSE) ->  | AE35: =T35-HLOOKUP(Y35,Feuil1!$C$1:$BF$9,6,FALSE) ->  | AF35: =T35-HLOOKUP(Y35,Feuil1!$C$1:$BF$9,7,FALSE) ->  | AG35: =T35-HLOOKUP(Y35,Feuil1!$C$1:$BF$9,8,FALSE) ->  | AH35: =T35-HLOOKUP(Y35,Feuil1!$C$1:$BF$9,9,FALSE) ->  | AS35: =IF(AQ35,VLOOKUP(AQ35,FEM!$AS$468:$AT$523,2)) -> 
A36: F | B36: Chronométreur : | J36: JURY : | AA36: =T36-HLOOKUP(Y36,Feuil1!$C$1:$BF$9,2,FALSE) ->  | AB36: =T36-HLOOKUP(Y36,Feuil1!$C$1:$BF$9,3,FALSE) ->  | AC36: =T36-HLOOKUP(Y36,Feuil1!$C$1:$BF$9,4,FALSE) ->  | AD36: =T36-HLOOKUP(Y36,Feuil1!$C$1:$BF$9,5,FALSE) ->  | AE36: =T36-HLOOKUP(Y36,Feuil1!$C$1:$BF$9,6,FALSE) ->  | AF36: =T36-HLOOKUP(Y36,Feuil1!$C$1:$BF$9,7,FALSE) ->  | AG36: =T36-HLOOKUP(Y36,Feuil1!$C$1:$BF$9,8,FALSE) ->  | AH36: =T36-HLOOKUP(Y36,Feuil1!$C$1:$BF$9,9,FALSE) ->  | AS36: =IF(AQ36,VLOOKUP(AQ36,FEM!$AS$468:$AT$523,2)) -> 
A37: F | H37: 1940 | I37: 53 | O37: 0 | S37: 0 | T37: 0 | U37: 0 | V37: N.CL. | W37: 0 | X37: V8 F70+ | Y37: =IF(AND(H37<1936),VLOOKUP(I37,Feuil1!$F$10:$O$24,9),IF(AND(H37>=1942,H37<1947),VLOOKUP(I37,Feuil1!$F$10:$O$24,9),IF(AND(H37>=1947,H37<1952),VLOOKUP(I37,Feuil1!$F$10:$O$24,8),IF(AND(H37>=1952,H37<1957),VLOOKUP(I37,Feuil1!$F$10:$O$24,7),IF(AND(H37>=1957,H37<1962),VLOOKUP(I37,Feuil1!$F$10:$O$24,6),IF(AND(H37>=1962,H37<1967),VLOOKUP(I37,Feuil1!$F$10:$O$24,5),IF(AND(H37>=1967,H37<1972),VLOOKUP(I37,Feuil1!$F$10:$O$24,4),IF(AND(H37>=1972,H37<1977),VLOOKUP(I37,Feuil1!$F$10:$O$24,3),IF(AND(H37>=1977,H37<1982),VLOOKUP(I37,Feuil1!$F$10:$O$24,2),VLOOKUP(I37,Feuil1!$F$10:$O$24,2)))))))))) -> VF35-53 | AA37: =T37-HLOOKUP(Y37,Feuil1!$C$1:$BF$9,2,FALSE) -> 0 | AB37: =T37-HLOOKUP(Y37,Feuil1!$C$1:$BF$9,3,FALSE) -> -60 | AC37: =T37-HLOOKUP(Y37,Feuil1!$C$1:$BF$9,4,FALSE) -> -62 | AD37: =T37-HLOOKUP(Y37,Feuil1!$C$1:$BF$9,5,FALSE) -> -72 | AE37: =T37-HLOOKUP(Y37,Feuil1!$C$1:$BF$9,6,FALSE) -> -90 | AF37: =T37-HLOOKUP(Y37,Feuil1!$C$1:$BF$9,7,FALSE) -> -1000 | AG37: =T37-HLOOKUP(Y37,Feuil1!$C$1:$BF$9,8,FALSE) -> -1000 | AH37: =T37-HLOOKUP(Y37,Feuil1!$C$1:$BF$9,9,FALSE) -> -1000 | AP37: N.CL. | AQ37: 77 | AS37: =IF(AQ37,VLOOKUP(AQ37,FEM!$AS$468:$AT$523,2)) -> 2.255
A38: F | H38: 1933 | I38: 58 | O38: 0 | S38: 0 | T38: 0 | U38: 0 | V38: N.CL. | W38: 0 | X38: V8 F70+ | Y38: =IF(AND(H38<1936),VLOOKUP(I38,Feuil1!$F$10:$O$24,9),IF(AND(H38>=1942,H38<1947),VLOOKUP(I38,Feuil1!$F$10:$O$24,9),IF(AND(H38>=1947,H38<1952),VLOOKUP(I38,Feuil1!$F$10:$O$24,8),IF(AND(H38>=1952,H38<1957),VLOOKUP(I38,Feuil1!$F$10:$O$24,7),IF(AND(H38>=1957,H38<1962),VLOOKUP(I38,Feuil1!$F$10:$O$24,6),IF(AND(H38>=1962,H38<1967),VLOOKUP(I38,Feuil1!$F$10:$O$24,5),IF(AND(H38>=1967,H38<1972),VLOOKUP(I38,Feuil1!$F$10:$O$24,4),IF(AND(H38>=1972,H38<1977),VLOOKUP(I38,Feuil1!$F$10:$O$24,3),IF(AND(H38>=1977,H38<1982),VLOOKUP(I38,Feuil1!$F$10:$O$24,2),VLOOKUP(I38,Feuil1!$F$10:$O$24,2)))))))))) -> VF70+-58 | AA38: =T38-HLOOKUP(Y38,Feuil1!$C$1:$BF$9,2,FALSE) -> 0 | AB38: =T38-HLOOKUP(Y38,Feuil1!$C$1:$BF$9,3,FALSE) -> -40 | AC38: =T38-HLOOKUP(Y38,Feuil1!$C$1:$BF$9,4,FALSE) -> -42 | AD38: =T38-HLOOKUP(Y38,Feuil1!$C$1:$BF$9,5,FALSE) -> -49 | AE38: =T38-HLOOKUP(Y38,Feuil1!$C$1:$BF$9,6,FALSE) -> -50 | AF38: =T38-HLOOKUP(Y38,Feuil1!$C$1:$BF$9,7,FALSE) -> -1000 | AG38: =T38-HLOOKUP(Y38,Feuil1!$C$1:$BF$9,8,FALSE) -> -1000 | AH38: =T38-HLOOKUP(Y38,Feuil1!$C$1:$BF$9,9,FALSE) -> -1000 | AP38: N.CL. | AQ38: 84 | AS38: =IF(AQ38,VLOOKUP(AQ38,FEM!$AS$468:$AT$523,2)) -> 2.981
A39: F | H39: 1934 | I39: 63 | O39: 0 | S39: 0 | T39: 0 | U39: 0 | V39: N.CL. | W39: 0 | X39: V8 F70+ | Y39: =IF(AND(H39<1936),VLOOKUP(I39,Feuil1!$F$10:$O$24,9),IF(AND(H39>=1942,H39<1947),VLOOKUP(I39,Feuil1!$F$10:$O$24,9),IF(AND(H39>=1947,H39<1952),VLOOKUP(I39,Feuil1!$F$10:$O$24,8),IF(AND(H39>=1952,H39<1957),VLOOKUP(I39,Feuil1!$F$10:$O$24,7),IF(AND(H39>=1957,H39<1962),VLOOKUP(I39,Feuil1!$F$10:$O$24,6),IF(AND(H39>=1962,H39<1967),VLOOKUP(I39,Feuil1!$F$10:$O$24,5),IF(AND(H39>=1967,H39<1972),VLOOKUP(I39,Feuil1!$F$10:$O$24,4),IF(AND(H39>=1972,H39<1977),VLOOKUP(I39,Feuil1!$F$10:$O$24,3),IF(AND(H39>=1977,H39<1982),VLOOKUP(I39,Feuil1!$F$10:$O$24,2),VLOOKUP(I39,Feuil1!$F$10:$O$24,2)))))))))) -> VF70+-63 | AA39: =T39-HLOOKUP(Y39,Feuil1!$C$1:$BF$9,2,FALSE) -> 0 | AB39: =T39-HLOOKUP(Y39,Feuil1!$C$1:$BF$9,3,FALSE) -> -43 | AC39: =T39-HLOOKUP(Y39,Feuil1!$C$1:$BF$9,4,FALSE) -> -45 | AD39: =T39-HLOOKUP(Y39,Feuil1!$C$1:$BF$9,5,FALSE) -> -52 | AE39: =T39-HLOOKUP(Y39,Feuil1!$C$1:$BF$9,6,FALSE) -> -53 | AF39: =T39-HLOOKUP(Y39,Feuil1!$C$1:$BF$9,7,FALSE) -> -1000 | AG39: =T39-HLOOKUP(Y39,Feuil1!$C$1:$BF$9,8,FALSE) -> -1000 | AH39: =T39-HLOOKUP(Y39,Feuil1!$C$1:$BF$9,9,FALSE) -> -1000 | AP39: N.CL. | AQ39: 83 | AS39: =IF(AQ39,VLOOKUP(AQ39,FEM!$AS$468:$AT$523,2)) -> 2.831
A40: F | H40: 1932 | I40: 69 | O40: 0 | S40: 0 | T40: 0 | U40: 0 | V40: N.CL. | W40: 0 | X40: V8 F70+ | Y40: =IF(AND(H40<1936),VLOOKUP(I40,Feuil1!$F$10:$O$24,9),IF(AND(H40>=1942,H40<1947),VLOOKUP(I40,Feuil1!$F$10:$O$24,9),IF(AND(H40>=1947,H40<1952),VLOOKUP(I40,Feuil1!$F$10:$O$24,8),IF(AND(H40>=1952,H40<1957),VLOOKUP(I40,Feuil1!$F$10:$O$24,7),IF(AND(H40>=1957,H40<1962),VLOOKUP(I40,Feuil1!$F$10:$O$24,6),IF(AND(H40>=1962,H40<1967),VLOOKUP(I40,Feuil1!$F$10:$O$24,5),IF(AND(H40>=1967,H40<1972),VLOOKUP(I40,Feuil1!$F$10:$O$24,4),IF(AND(H40>=1972,H40<1977),VLOOKUP(I40,Feuil1!$F$10:$O$24,3),IF(AND(H40>=1977,H40<1982),VLOOKUP(I40,Feuil1!$F$10:$O$24,2),VLOOKUP(I40,Feuil1!$F$10:$O$24,2)))))))))) -> VF70+-69 | AA40: =T40-HLOOKUP(Y40,Feuil1!$C$1:$BF$9,2,FALSE) -> 0 | AB40: =T40-HLOOKUP(Y40,Feuil1!$C$1:$BF$9,3,FALSE) -> -45 | AC40: =T40-HLOOKUP(Y40,Feuil1!$C$1:$BF$9,4,FALSE) -> -48 | AD40: =T40-HLOOKUP(Y40,Feuil1!$C$1:$BF$9,5,FALSE) -> -55 | AE40: =T40-HLOOKUP(Y40,Feuil1!$C$1:$BF$9,6,FALSE) -> -56 | AF40: =T40-HLOOKUP(Y40,Feuil1!$C$1:$BF$9,7,FALSE) -> -1000 | AG40: =T40-HLOOKUP(Y40,Feuil1!$C$1:$BF$9,8,FALSE) -> -1000 | AH40: =T40-HLOOKUP(Y40,Feuil1!$C$1:$BF$9,9,FALSE) -> -1000 | AP40: N.CL. | AQ40: 85 | AS40: =IF(AQ40,VLOOKUP(AQ40,FEM!$AS$468:$AT$523,2)) -> 3.153
A41: F | H41: 1935 | I41: 75 | O41: 0 | S41: 0 | T41: 0 | U41: 0 | V41: N.CL. | W41: 0 | X41: V8 F70+ | Y41: =IF(AND(H41<1936),VLOOKUP(I41,Feuil1!$F$10:$O$24,9),IF(AND(H41>=1942,H41<1947),VLOOKUP(I41,Feuil1!$F$10:$O$24,9),IF(AND(H41>=1947,H41<1952),VLOOKUP(I41,Feuil1!$F$10:$O$24,8),IF(AND(H41>=1952,H41<1957),VLOOKUP(I41,Feuil1!$F$10:$O$24,7),IF(AND(H41>=1957,H41<1962),VLOOKUP(I41,Feuil1!$F$10:$O$24,6),IF(AND(H41>=1962,H41<1967),VLOOKUP(I41,Feuil1!$F$10:$O$24,5),IF(AND(H41>=1967,H41<1972),VLOOKUP(I41,Feuil1!$F$10:$O$24,4),IF(AND(H41>=1972,H41<1977),VLOOKUP(I41,Feuil1!$F$10:$O$24,3),IF(AND(H41>=1977,H41<1982),VLOOKUP(I41,Feuil1!$F$10:$O$24,2),VLOOKUP(I41,Feuil1!$F$10:$O$24,2)))))))))) -> VF70+-75 | AA41: =T41-HLOOKUP(Y41,Feuil1!$C$1:$BF$9,2,FALSE) -> 0 | AB41: =T41-HLOOKUP(Y41,Feuil1!$C$1:$BF$9,3,FALSE) -> -48 | AC41: =T41-HLOOKUP(Y41,Feuil1!$C$1:$BF$9,4,FALSE) -> -50 | AD41: =T41-HLOOKUP(Y41,Feuil1!$C$1:$BF$9,5,FALSE) -> -57 | AE41: =T41-HLOOKUP(Y41,Feuil1!$C$1:$BF$9,6,FALSE) -> -58 | AF41: =T41-HLOOKUP(Y41,Feuil1!$C$1:$BF$9,7,FALSE) -> -1000 | AG41: =T41-HLOOKUP(Y41,Feuil1!$C$1:$BF$9,8,FALSE) -> -1000 | AH41: =T41-HLOOKUP(Y41,Feuil1!$C$1:$BF$9,9,FALSE) -> -1000 | AP41: N.CL. | AQ41: 82 | AS41: =IF(AQ41,VLOOKUP(AQ41,FEM!$AS$468:$AT$523,2)) -> 2.702
A42: F | O42: =IF(I42="","",IF(MAXA(L42:N42)<=0,0,MAXA(L42:N42))) ->  | S42: =IF(I42="","",IF(MAXA(P42:R42)<=0,0,MAXA(P42:R42))) ->  | T42: =IF(I42="","",IF(OR(O42=0,S42=0),0,O42+S42)) ->  | U42: =IF(I42="","",IF(A42="H",10^(0.794358141*LOG(I42/174.393)^2)*T42*AS42,IF(A42="F",10^(0.89726074 * LOG(I42/148.026)^2)*T42*AS42,""))) ->  | V42: =IF(I42="","",AP42) ->  | W42: =IF(I42="","",IF(AH42>=0,AH42,IF(AG42>=0,AG42,IF(AF42>=0,AF42,IF(AE42>=0,AE42,IF(AD42>=0,AD42,IF(AC42>=0,AC42,IF(AB42>=0,AB42,AA42)))))))) ->  | X42: =IF(AQ42<95,IF(AQ42<=90,VLOOKUP(AQ42,$AQ$467:$AR$522,2))) -> FALSE | Y42: =IF(AND(H42<1936),VLOOKUP(I42,Feuil1!$F$10:$O$24,9),IF(AND(H42>=1942,H42<1947),VLOOKUP(I42,Feuil1!$F$10:$O$24,9),IF(AND(H42>=1947,H42<1952),VLOOKUP(I42,Feuil1!$F$10:$O$24,8),IF(AND(H42>=1952,H42<1957),VLOOKUP(I42,Feuil1!$F$10:$O$24,7),IF(AND(H42>=1957,H42<1962),VLOOKUP(I42,Feuil1!$F$10:$O$24,6),IF(AND(H42>=1962,H42<1967),VLOOKUP(I42,Feuil1!$F$10:$O$24,5),IF(AND(H42>=1967,H42<1972),VLOOKUP(I42,Feuil1!$F$10:$O$24,4),IF(AND(H42>=1972,H42<1977),VLOOKUP(I42,Feuil1!$F$10:$O$24,3),IF(AND(H42>=1977,H42<1982),VLOOKUP(I42,Feuil1!$F$10:$O$24,2),VLOOKUP(I42,Feuil1!$F$10:$O$24,2)))))))))) ->  | AA42: =T42-HLOOKUP(Y42,Feuil1!$C$1:$BF$9,2,FALSE) ->  | AB42: =T42-HLOOKUP(Y42,Feuil1!$C$1:$BF$9,3,FALSE) ->  | AC42: =T42-HLOOKUP(Y42,Feuil1!$C$1:$BF$9,4,FALSE) ->  | AD42: =T42-HLOOKUP(Y42,Feuil1!$C$1:$BF$9,5,FALSE) ->  | AE42: =T42-HLOOKUP(Y42,Feuil1!$C$1:$BF$9,6,FALSE) ->  | AF42: =T42-HLOOKUP(Y42,Feuil1!$C$1:$BF$9,7,FALSE) ->  | AG42: =T42-HLOOKUP(Y42,Feuil1!$C$1:$BF$9,8,FALSE) ->  | AH42: =T42-HLOOKUP(Y42,Feuil1!$C$1:$BF$9,9,FALSE) ->  | AP42: =IF(AH42>=0,$AH$5,IF(AG42>=0,$AG$5,IF(AF42>=0,$AF$5,IF(AE42>=0,$AE$5,IF(AD42>=0,$AD$5,IF(AC42>=0,$AC$5,IF(AB42>=0,$AB$5,IF(AA42>=0,$AA$5,$AI$5)))))))) ->  | AQ42: 2017 | AS42: =IF(AQ42,VLOOKUP(AQ42,FEM!$AS$468:$AT$523,2)) -> 4.493
A43: F | X43: FALSE | Y43: =IF(AND(H43<1936),VLOOKUP(I43,Feuil1!$F$10:$O$24,9),IF(AND(H43>=1942,H43<1947),VLOOKUP(I43,Feuil1!$F$10:$O$24,9),IF(AND(H43>=1947,H43<1952),VLOOKUP(I43,Feuil1!$F$10:$O$24,8),IF(AND(H43>=1952,H43<1957),VLOOKUP(I43,Feuil1!$F$10:$O$24,7),IF(AND(H43>=1957,H43<1962),VLOOKUP(I43,Feuil1!$F$10:$O$24,6),IF(AND(H43>=1962,H43<1967),VLOOKUP(I43,Feuil1!$F$10:$O$24,5),IF(AND(H43>=1967,H43<1972),VLOOKUP(I43,Feuil1!$F$10:$O$24,4),IF(AND(H43>=1972,H43<1977),VLOOKUP(I43,Feuil1!$F$10:$O$24,3),IF(AND(H43>=1977,H43<1982),VLOOKUP(I43,Feuil1!$F$10:$O$24,2),VLOOKUP(I43,Feuil1!$F$10:$O$24,2)))))))))) ->  | AA43: =T43-HLOOKUP(Y43,Feuil1!$C$1:$BF$9,2,FALSE) ->  | AB43: =T43-HLOOKUP(Y43,Feuil1!$C$1:$BF$9,3,FALSE) ->  | AC43: =T43-HLOOKUP(Y43,Feuil1!$C$1:$BF$9,4,FALSE) ->  | AD43: =T43-HLOOKUP(Y43,Feuil1!$C$1:$BF$9,5,FALSE) ->  | AE43: =T43-HLOOKUP(Y43,Feuil1!$C$1:$BF$9,6,FALSE) ->  | AF43: =T43-HLOOKUP(Y43,Feuil1!$C$1:$BF$9,7,FALSE) ->  | AG43: =T43-HLOOKUP(Y43,Feuil1!$C$1:$BF$9,8,FALSE) ->  | AH43: =T43-HLOOKUP(Y43,Feuil1!$C$1:$BF$9,9,FALSE) ->  | AQ43: 2017 | AS43: =IF(AQ43,VLOOKUP(AQ43,FEM!$AS$468:$AT$523,2)) -> 4.493
A44: F | X44: FALSE | Y44: =IF(AND(H44<1936),VLOOKUP(I44,Feuil1!$F$10:$O$24,9),IF(AND(H44>=1942,H44<1947),VLOOKUP(I44,Feuil1!$F$10:$O$24,9),IF(AND(H44>=1947,H44<1952),VLOOKUP(I44,Feuil1!$F$10:$O$24,8),IF(AND(H44>=1952,H44<1957),VLOOKUP(I44,Feuil1!$F$10:$O$24,7),IF(AND(H44>=1957,H44<1962),VLOOKUP(I44,Feuil1!$F$10:$O$24,6),IF(AND(H44>=1962,H44<1967),VLOOKUP(I44,Feuil1!$F$10:$O$24,5),IF(AND(H44>=1967,H44<1972),VLOOKUP(I44,Feuil1!$F$10:$O$24,4),IF(AND(H44>=1972,H44<1977),VLOOKUP(I44,Feuil1!$F$10:$O$24,3),IF(AND(H44>=1977,H44<1982),VLOOKUP(I44,Feuil1!$F$10:$O$24,2),VLOOKUP(I44,Feuil1!$F$10:$O$24,2)))))))))) ->  | AA44: =T44-HLOOKUP(Y44,Feuil1!$C$1:$BF$9,2,FALSE) ->  | AB44: =T44-HLOOKUP(Y44,Feuil1!$C$1:$BF$9,3,FALSE) ->  | AC44: =T44-HLOOKUP(Y44,Feuil1!$C$1:$BF$9,4,FALSE) ->  | AD44: =T44-HLOOKUP(Y44,Feuil1!$C$1:$BF$9,5,FALSE) ->  | AE44: =T44-HLOOKUP(Y44,Feuil1!$C$1:$BF$9,6,FALSE) ->  | AF44: =T44-HLOOKUP(Y44,Feuil1!$C$1:$BF$9,7,FALSE) ->  | AG44: =T44-HLOOKUP(Y44,Feuil1!$C$1:$BF$9,8,FALSE) ->  | AH44: =T44-HLOOKUP(Y44,Feuil1!$C$1:$BF$9,9,FALSE) ->  | AQ44: 2017 | AS44: =IF(AQ44,VLOOKUP(AQ44,FEM!$AS$468:$AT$523,2)) -> 4.493
A45: F | X45: FALSE | Y45: =IF(AND(H45<1936),VLOOKUP(I45,Feuil1!$F$10:$O$24,9),IF(AND(H45>=1942,H45<1947),VLOOKUP(I45,Feuil1!$F$10:$O$24,9),IF(AND(H45>=1947,H45<1952),VLOOKUP(I45,Feuil1!$F$10:$O$24,8),IF(AND(H45>=1952,H45<1957),VLOOKUP(I45,Feuil1!$F$10:$O$24,7),IF(AND(H45>=1957,H45<1962),VLOOKUP(I45,Feuil1!$F$10:$O$24,6),IF(AND(H45>=1962,H45<1967),VLOOKUP(I45,Feuil1!$F$10:$O$24,5),IF(AND(H45>=1967,H45<1972),VLOOKUP(I45,Feuil1!$F$10:$O$24,4),IF(AND(H45>=1972,H45<1977),VLOOKUP(I45,Feuil1!$F$10:$O$24,3),IF(AND(H45>=1977,H45<1982),VLOOKUP(I45,Feuil1!$F$10:$O$24,2),VLOOKUP(I45,Feuil1!$F$10:$O$24,2)))))))))) ->  | AA45: =T45-HLOOKUP(Y45,Feuil1!$C$1:$BF$9,2,FALSE) ->  | AB45: =T45-HLOOKUP(Y45,Feuil1!$C$1:$BF$9,3,FALSE) ->  | AC45: =T45-HLOOKUP(Y45,Feuil1!$C$1:$BF$9,4,FALSE) ->  | AD45: =T45-HLOOKUP(Y45,Feuil1!$C$1:$BF$9,5,FALSE) ->  | AE45: =T45-HLOOKUP(Y45,Feuil1!$C$1:$BF$9,6,FALSE) ->  | AF45: =T45-HLOOKUP(Y45,Feuil1!$C$1:$BF$9,7,FALSE) ->  | AG45: =T45-HLOOKUP(Y45,Feuil1!$C$1:$BF$9,8,FALSE) ->  | AH45: =T45-HLOOKUP(Y45,Feuil1!$C$1:$BF$9,9,FALSE) ->  | AQ45: 2017 | AS45: =IF(AQ45,VLOOKUP(AQ45,FEM!$AS$468:$AT$523,2)) -> 4.493
A46: F | X46: FALSE | Y46: =IF(AND(H46<1936),VLOOKUP(I46,Feuil1!$F$10:$O$24,9),IF(AND(H46>=1942,H46<1947),VLOOKUP(I46,Feuil1!$F$10:$O$24,9),IF(AND(H46>=1947,H46<1952),VLOOKUP(I46,Feuil1!$F$10:$O$24,8),IF(AND(H46>=1952,H46<1957),VLOOKUP(I46,Feuil1!$F$10:$O$24,7),IF(AND(H46>=1957,H46<1962),VLOOKUP(I46,Feuil1!$F$10:$O$24,6),IF(AND(H46>=1962,H46<1967),VLOOKUP(I46,Feuil1!$F$10:$O$24,5),IF(AND(H46>=1967,H46<1972),VLOOKUP(I46,Feuil1!$F$10:$O$24,4),IF(AND(H46>=1972,H46<1977),VLOOKUP(I46,Feuil1!$F$10:$O$24,3),IF(AND(H46>=1977,H46<1982),VLOOKUP(I46,Feuil1!$F$10:$O$24,2),VLOOKUP(I46,Feuil1!$F$10:$O$24,2)))))))))) ->  | AA46: =T46-HLOOKUP(Y46,Feuil1!$C$1:$BF$9,2,FALSE) ->  | AB46: =T46-HLOOKUP(Y46,Feuil1!$C$1:$BF$9,3,FALSE) ->  | AC46: =T46-HLOOKUP(Y46,Feuil1!$C$1:$BF$9,4,FALSE) ->  | AD46: =T46-HLOOKUP(Y46,Feuil1!$C$1:$BF$9,5,FALSE) ->  | AE46: =T46-HLOOKUP(Y46,Feuil1!$C$1:$BF$9,6,FALSE) ->  | AF46: =T46-HLOOKUP(Y46,Feuil1!$C$1:$BF$9,7,FALSE) ->  | AG46: =T46-HLOOKUP(Y46,Feuil1!$C$1:$BF$9,8,FALSE) ->  | AH46: =T46-HLOOKUP(Y46,Feuil1!$C$1:$BF$9,9,FALSE) ->  | AQ46: 2017 | AS46: =IF(AQ46,VLOOKUP(AQ46,FEM!$AS$468:$AT$523,2)) -> 4.493
A47: F | X47: FALSE | Y47: =IF(AND(H47<1936),VLOOKUP(I47,Feuil1!$F$10:$O$24,9),IF(AND(H47>=1942,H47<1947),VLOOKUP(I47,Feuil1!$F$10:$O$24,9),IF(AND(H47>=1947,H47<1952),VLOOKUP(I47,Feuil1!$F$10:$O$24,8),IF(AND(H47>=1952,H47<1957),VLOOKUP(I47,Feuil1!$F$10:$O$24,7),IF(AND(H47>=1957,H47<1962),VLOOKUP(I47,Feuil1!$F$10:$O$24,6),IF(AND(H47>=1962,H47<1967),VLOOKUP(I47,Feuil1!$F$10:$O$24,5),IF(AND(H47>=1967,H47<1972),VLOOKUP(I47,Feuil1!$F$10:$O$24,4),IF(AND(H47>=1972,H47<1977),VLOOKUP(I47,Feuil1!$F$10:$O$24,3),IF(AND(H47>=1977,H47<1982),VLOOKUP(I47,Feuil1!$F$10:$O$24,2),VLOOKUP(I47,Feuil1!$F$10:$O$24,2)))))))))) ->  | AA47: =T47-HLOOKUP(Y47,Feuil1!$C$1:$BF$9,2,FALSE) ->  | AB47: =T47-HLOOKUP(Y47,Feuil1!$C$1:$BF$9,3,FALSE) ->  | AC47: =T47-HLOOKUP(Y47,Feuil1!$C$1:$BF$9,4,FALSE) ->  | AD47: =T47-HLOOKUP(Y47,Feuil1!$C$1:$BF$9,5,FALSE) ->  | AE47: =T47-HLOOKUP(Y47,Feuil1!$C$1:$BF$9,6,FALSE) ->  | AF47: =T47-HLOOKUP(Y47,Feuil1!$C$1:$BF$9,7,FALSE) ->  | AG47: =T47-HLOOKUP(Y47,Feuil1!$C$1:$BF$9,8,FALSE) ->  | AH47: =T47-HLOOKUP(Y47,Feuil1!$C$1:$BF$9,9,FALSE) ->  | AQ47: 2017 | AS47: =IF(AQ47,VLOOKUP(AQ47,FEM!$AS$468:$AT$523,2)) -> 4.493
A48: F | X48: FALSE | Y48: =IF(AND(H48<1936),VLOOKUP(I48,Feuil1!$F$10:$O$24,9),IF(AND(H48>=1942,H48<1947),VLOOKUP(I48,Feuil1!$F$10:$O$24,9),IF(AND(H48>=1947,H48<1952),VLOOKUP(I48,Feuil1!$F$10:$O$24,8),IF(AND(H48>=1952,H48<1957),VLOOKUP(I48,Feuil1!$F$10:$O$24,7),IF(AND(H48>=1957,H48<1962),VLOOKUP(I48,Feuil1!$F$10:$O$24,6),IF(AND(H48>=1962,H48<1967),VLOOKUP(I48,Feuil1!$F$10:$O$24,5),IF(AND(H48>=1967,H48<1972),VLOOKUP(I48,Feuil1!$F$10:$O$24,4),IF(AND(H48>=1972,H48<1977),VLOOKUP(I48,Feuil1!$F$10:$O$24,3),IF(AND(H48>=1977,H48<1982),VLOOKUP(I48,Feuil1!$F$10:$O$24,2),VLOOKUP(I48,Feuil1!$F$10:$O$24,2)))))))))) ->  | AA48: =T48-HLOOKUP(Y48,Feuil1!$C$1:$BF$9,2,FALSE) ->  | AB48: =T48-HLOOKUP(Y48,Feuil1!$C$1:$BF$9,3,FALSE) ->  | AC48: =T48-HLOOKUP(Y48,Feuil1!$C$1:$BF$9,4,FALSE) ->  | AD48: =T48-HLOOKUP(Y48,Feuil1!$C$1:$BF$9,5,FALSE) ->  | AE48: =T48-HLOOKUP(Y48,Feuil1!$C$1:$BF$9,6,FALSE) ->  | AF48: =T48-HLOOKUP(Y48,Feuil1!$C$1:$BF$9,7,FALSE) ->  | AG48: =T48-HLOOKUP(Y48,Feuil1!$C$1:$BF$9,8,FALSE) ->  | AH48: =T48-HLOOKUP(Y48,Feuil1!$C$1:$BF$9,9,FALSE) ->  | AQ48: 2017 | AS48: =IF(AQ48,VLOOKUP(AQ48,FEM!$AS$468:$AT$523,2)) -> 4.493
A49: F | X49: FALSE | Y49: =IF(AND(H49<1936),VLOOKUP(I49,Feuil1!$F$10:$O$24,9),IF(AND(H49>=1942,H49<1947),VLOOKUP(I49,Feuil1!$F$10:$O$24,9),IF(AND(H49>=1947,H49<1952),VLOOKUP(I49,Feuil1!$F$10:$O$24,8),IF(AND(H49>=1952,H49<1957),VLOOKUP(I49,Feuil1!$F$10:$O$24,7),IF(AND(H49>=1957,H49<1962),VLOOKUP(I49,Feuil1!$F$10:$O$24,6),IF(AND(H49>=1962,H49<1967),VLOOKUP(I49,Feuil1!$F$10:$O$24,5),IF(AND(H49>=1967,H49<1972),VLOOKUP(I49,Feuil1!$F$10:$O$24,4),IF(AND(H49>=1972,H49<1977),VLOOKUP(I49,Feuil1!$F$10:$O$24,3),IF(AND(H49>=1977,H49<1982),VLOOKUP(I49,Feuil1!$F$10:$O$24,2),VLOOKUP(I49,Feuil1!$F$10:$O$24,2)))))))))) ->  | AA49: =T49-HLOOKUP(Y49,Feuil1!$C$1:$BF$9,2,FALSE) ->  | AB49: =T49-HLOOKUP(Y49,Feuil1!$C$1:$BF$9,3,FALSE) ->  | AC49: =T49-HLOOKUP(Y49,Feuil1!$C$1:$BF$9,4,FALSE) ->  | AD49: =T49-HLOOKUP(Y49,Feuil1!$C$1:$BF$9,5,FALSE) ->  | AE49: =T49-HLOOKUP(Y49,Feuil1!$C$1:$BF$9,6,FALSE) ->  | AF49: =T49-HLOOKUP(Y49,Feuil1!$C$1:$BF$9,7,FALSE) ->  | AG49: =T49-HLOOKUP(Y49,Feuil1!$C$1:$BF$9,8,FALSE) ->  | AH49: =T49-HLOOKUP(Y49,Feuil1!$C$1:$BF$9,9,FALSE) ->  | AQ49: 2017 | AS49: =IF(AQ49,VLOOKUP(AQ49,FEM!$AS$468:$AT$523,2)) -> 4.493
A50: F | X50: FALSE | Y50: =IF(AND(H50<1936),VLOOKUP(I50,Feuil1!$F$10:$O$24,9),IF(AND(H50>=1942,H50<1947),VLOOKUP(I50,Feuil1!$F$10:$O$24,9),IF(AND(H50>=1947,H50<1952),VLOOKUP(I50,Feuil1!$F$10:$O$24,8),IF(AND(H50>=1952,H50<1957),VLOOKUP(I50,Feuil1!$F$10:$O$24,7),IF(AND(H50>=1957,H50<1962),VLOOKUP(I50,Feuil1!$F$10:$O$24,6),IF(AND(H50>=1962,H50<1967),VLOOKUP(I50,Feuil1!$F$10:$O$24,5),IF(AND(H50>=1967,H50<1972),VLOOKUP(I50,Feuil1!$F$10:$O$24,4),IF(AND(H50>=1972,H50<1977),VLOOKUP(I50,Feuil1!$F$10:$O$24,3),IF(AND(H50>=1977,H50<1982),VLOOKUP(I50,Feuil1!$F$10:$O$24,2),VLOOKUP(I50,Feuil1!$F$10:$O$24,2)))))))))) ->  | AA50: =T50-HLOOKUP(Y50,Feuil1!$C$1:$BF$9,2,FALSE) ->  | AB50: =T50-HLOOKUP(Y50,Feuil1!$C$1:$BF$9,3,FALSE) ->  | AC50: =T50-HLOOKUP(Y50,Feuil1!$C$1:$BF$9,4,FALSE) ->  | AD50: =T50-HLOOKUP(Y50,Feuil1!$C$1:$BF$9,5,FALSE) ->  | AE50: =T50-HLOOKUP(Y50,Feuil1!$C$1:$BF$9,6,FALSE) ->  | AF50: =T50-HLOOKUP(Y50,Feuil1!$C$1:$BF$9,7,FALSE) ->  | AG50: =T50-HLOOKUP(Y50,Feuil1!$C$1:$BF$9,8,FALSE) ->  | AH50: =T50-HLOOKUP(Y50,Feuil1!$C$1:$BF$9,9,FALSE) ->  | AQ50: 2017 | AS50: =IF(AQ50,VLOOKUP(AQ50,FEM!$AS$468:$AT$523,2)) -> 4.493
A51: F | X51: FALSE | Y51: =IF(AND(H51<1936),VLOOKUP(I51,Feuil1!$F$10:$O$24,9),IF(AND(H51>=1942,H51<1947),VLOOKUP(I51,Feuil1!$F$10:$O$24,9),IF(AND(H51>=1947,H51<1952),VLOOKUP(I51,Feuil1!$F$10:$O$24,8),IF(AND(H51>=1952,H51<1957),VLOOKUP(I51,Feuil1!$F$10:$O$24,7),IF(AND(H51>=1957,H51<1962),VLOOKUP(I51,Feuil1!$F$10:$O$24,6),IF(AND(H51>=1962,H51<1967),VLOOKUP(I51,Feuil1!$F$10:$O$24,5),IF(AND(H51>=1967,H51<1972),VLOOKUP(I51,Feuil1!$F$10:$O$24,4),IF(AND(H51>=1972,H51<1977),VLOOKUP(I51,Feuil1!$F$10:$O$24,3),IF(AND(H51>=1977,H51<1982),VLOOKUP(I51,Feuil1!$F$10:$O$24,2),VLOOKUP(I51,Feuil1!$F$10:$O$24,2)))))))))) ->  | AA51: =T51-HLOOKUP(Y51,Feuil1!$C$1:$BF$9,2,FALSE) ->  | AB51: =T51-HLOOKUP(Y51,Feuil1!$C$1:$BF$9,3,FALSE) ->  | AC51: =T51-HLOOKUP(Y51,Feuil1!$C$1:$BF$9,4,FALSE) ->  | AD51: =T51-HLOOKUP(Y51,Feuil1!$C$1:$BF$9,5,FALSE) ->  | AE51: =T51-HLOOKUP(Y51,Feuil1!$C$1:$BF$9,6,FALSE) ->  | AF51: =T51-HLOOKUP(Y51,Feuil1!$C$1:$BF$9,7,FALSE) ->  | AG51: =T51-HLOOKUP(Y51,Feuil1!$C$1:$BF$9,8,FALSE) ->  | AH51: =T51-HLOOKUP(Y51,Feuil1!$C$1:$BF$9,9,FALSE) ->  | AQ51: 2017 | AS51: =IF(AQ51,VLOOKUP(AQ51,FEM!$AS$468:$AT$523,2)) -> 4.493
A52: F | X52: FALSE | Y52: =IF(AND(H52<1936),VLOOKUP(I52,Feuil1!$F$10:$O$24,9),IF(AND(H52>=1942,H52<1947),VLOOKUP(I52,Feuil1!$F$10:$O$24,9),IF(AND(H52>=1947,H52<1952),VLOOKUP(I52,Feuil1!$F$10:$O$24,8),IF(AND(H52>=1952,H52<1957),VLOOKUP(I52,Feuil1!$F$10:$O$24,7),IF(AND(H52>=1957,H52<1962),VLOOKUP(I52,Feuil1!$F$10:$O$24,6),IF(AND(H52>=1962,H52<1967),VLOOKUP(I52,Feuil1!$F$10:$O$24,5),IF(AND(H52>=1967,H52<1972),VLOOKUP(I52,Feuil1!$F$10:$O$24,4),IF(AND(H52>=1972,H52<1977),VLOOKUP(I52,Feuil1!$F$10:$O$24,3),IF(AND(H52>=1977,H52<1982),VLOOKUP(I52,Feuil1!$F$10:$O$24,2),VLOOKUP(I52,Feuil1!$F$10:$O$24,2)))))))))) ->  | AA52: =T52-HLOOKUP(Y52,Feuil1!$C$1:$BF$9,2,FALSE) ->  | AB52: =T52-HLOOKUP(Y52,Feuil1!$C$1:$BF$9,3,FALSE) ->  | AC52: =T52-HLOOKUP(Y52,Feuil1!$C$1:$BF$9,4,FALSE) ->  | AD52: =T52-HLOOKUP(Y52,Feuil1!$C$1:$BF$9,5,FALSE) ->  | AE52: =T52-HLOOKUP(Y52,Feuil1!$C$1:$BF$9,6,FALSE) ->  | AF52: =T52-HLOOKUP(Y52,Feuil1!$C$1:$BF$9,7,FALSE) ->  | AG52: =T52-HLOOKUP(Y52,Feuil1!$C$1:$BF$9,8,FALSE) ->  | AH52: =T52-HLOOKUP(Y52,Feuil1!$C$1:$BF$9,9,FALSE) ->  | AQ52: 2017 | AS52: =IF(AQ52,VLOOKUP(AQ52,FEM!$AS$468:$AT$523,2)) -> 4.493
A53: F | X53: FALSE | Y53: =IF(AND(H53<1936),VLOOKUP(I53,Feuil1!$F$10:$O$24,9),IF(AND(H53>=1942,H53<1947),VLOOKUP(I53,Feuil1!$F$10:$O$24,9),IF(AND(H53>=1947,H53<1952),VLOOKUP(I53,Feuil1!$F$10:$O$24,8),IF(AND(H53>=1952,H53<1957),VLOOKUP(I53,Feuil1!$F$10:$O$24,7),IF(AND(H53>=1957,H53<1962),VLOOKUP(I53,Feuil1!$F$10:$O$24,6),IF(AND(H53>=1962,H53<1967),VLOOKUP(I53,Feuil1!$F$10:$O$24,5),IF(AND(H53>=1967,H53<1972),VLOOKUP(I53,Feuil1!$F$10:$O$24,4),IF(AND(H53>=1972,H53<1977),VLOOKUP(I53,Feuil1!$F$10:$O$24,3),IF(AND(H53>=1977,H53<1982),VLOOKUP(I53,Feuil1!$F$10:$O$24,2),VLOOKUP(I53,Feuil1!$F$10:$O$24,2)))))))))) ->  | AA53: =T53-HLOOKUP(Y53,Feuil1!$C$1:$BF$9,2,FALSE) ->  | AB53: =T53-HLOOKUP(Y53,Feuil1!$C$1:$BF$9,3,FALSE) ->  | AC53: =T53-HLOOKUP(Y53,Feuil1!$C$1:$BF$9,4,FALSE) ->  | AD53: =T53-HLOOKUP(Y53,Feuil1!$C$1:$BF$9,5,FALSE) ->  | AE53: =T53-HLOOKUP(Y53,Feuil1!$C$1:$BF$9,6,FALSE) ->  | AF53: =T53-HLOOKUP(Y53,Feuil1!$C$1:$BF$9,7,FALSE) ->  | AG53: =T53-HLOOKUP(Y53,Feuil1!$C$1:$BF$9,8,FALSE) ->  | AH53: =T53-HLOOKUP(Y53,Feuil1!$C$1:$BF$9,9,FALSE) ->  | AQ53: 2017 | AS53: =IF(AQ53,VLOOKUP(AQ53,FEM!$AS$468:$AT$523,2)) -> 4.493
A54: F | X54: FALSE | Y54: =IF(AND(H54<1936),VLOOKUP(I54,Feuil1!$F$10:$O$24,9),IF(AND(H54>=1942,H54<1947),VLOOKUP(I54,Feuil1!$F$10:$O$24,9),IF(AND(H54>=1947,H54<1952),VLOOKUP(I54,Feuil1!$F$10:$O$24,8),IF(AND(H54>=1952,H54<1957),VLOOKUP(I54,Feuil1!$F$10:$O$24,7),IF(AND(H54>=1957,H54<1962),VLOOKUP(I54,Feuil1!$F$10:$O$24,6),IF(AND(H54>=1962,H54<1967),VLOOKUP(I54,Feuil1!$F$10:$O$24,5),IF(AND(H54>=1967,H54<1972),VLOOKUP(I54,Feuil1!$F$10:$O$24,4),IF(AND(H54>=1972,H54<1977),VLOOKUP(I54,Feuil1!$F$10:$O$24,3),IF(AND(H54>=1977,H54<1982),VLOOKUP(I54,Feuil1!$F$10:$O$24,2),VLOOKUP(I54,Feuil1!$F$10:$O$24,2)))))))))) ->  | AA54: =T54-HLOOKUP(Y54,Feuil1!$C$1:$BF$9,2,FALSE) ->  | AB54: =T54-HLOOKUP(Y54,Feuil1!$C$1:$BF$9,3,FALSE) ->  | AC54: =T54-HLOOKUP(Y54,Feuil1!$C$1:$BF$9,4,FALSE) ->  | AD54: =T54-HLOOKUP(Y54,Feuil1!$C$1:$BF$9,5,FALSE) ->  | AE54: =T54-HLOOKUP(Y54,Feuil1!$C$1:$BF$9,6,FALSE) ->  | AF54: =T54-HLOOKUP(Y54,Feuil1!$C$1:$BF$9,7,FALSE) ->  | AG54: =T54-HLOOKUP(Y54,Feuil1!$C$1:$BF$9,8,FALSE) ->  | AH54: =T54-HLOOKUP(Y54,Feuil1!$C$1:$BF$9,9,FALSE) ->  | AQ54: 2017 | AS54: =IF(AQ54,VLOOKUP(AQ54,FEM!$AS$468:$AT$523,2)) -> 4.493
A55: F | X55: FALSE | Y55: =IF(AND(H55<1936),VLOOKUP(I55,Feuil1!$F$10:$O$24,9),IF(AND(H55>=1942,H55<1947),VLOOKUP(I55,Feuil1!$F$10:$O$24,9),IF(AND(H55>=1947,H55<1952),VLOOKUP(I55,Feuil1!$F$10:$O$24,8),IF(AND(H55>=1952,H55<1957),VLOOKUP(I55,Feuil1!$F$10:$O$24,7),IF(AND(H55>=1957,H55<1962),VLOOKUP(I55,Feuil1!$F$10:$O$24,6),IF(AND(H55>=1962,H55<1967),VLOOKUP(I55,Feuil1!$F$10:$O$24,5),IF(AND(H55>=1967,H55<1972),VLOOKUP(I55,Feuil1!$F$10:$O$24,4),IF(AND(H55>=1972,H55<1977),VLOOKUP(I55,Feuil1!$F$10:$O$24,3),IF(AND(H55>=1977,H55<1982),VLOOKUP(I55,Feuil1!$F$10:$O$24,2),VLOOKUP(I55,Feuil1!$F$10:$O$24,2)))))))))) ->  | AA55: =T55-HLOOKUP(Y55,Feuil1!$C$1:$BF$9,2,FALSE) ->  | AB55: =T55-HLOOKUP(Y55,Feuil1!$C$1:$BF$9,3,FALSE) ->  | AC55: =T55-HLOOKUP(Y55,Feuil1!$C$1:$BF$9,4,FALSE) ->  | AD55: =T55-HLOOKUP(Y55,Feuil1!$C$1:$BF$9,5,FALSE) ->  | AE55: =T55-HLOOKUP(Y55,Feuil1!$C$1:$BF$9,6,FALSE) ->  | AF55: =T55-HLOOKUP(Y55,Feuil1!$C$1:$BF$9,7,FALSE) ->  | AG55: =T55-HLOOKUP(Y55,Feuil1!$C$1:$BF$9,8,FALSE) ->  | AH55: =T55-HLOOKUP(Y55,Feuil1!$C$1:$BF$9,9,FALSE) ->  | AQ55: 2017 | AS55: =IF(AQ55,VLOOKUP(AQ55,FEM!$AS$468:$AT$523,2)) -> 4.493
A56: F | H56: 1945 | I56: 48 | L56: 17 | O56: 17 | P56: 19 | S56: 19 | T56: 36 | U56: 115.2506948 | V56: REG + | W56: 0 | X56: V8 F70+ | Y56: =IF(AND(H56<1936),VLOOKUP(I56,Feuil1!$F$10:$O$24,9),IF(AND(H56>=1942,H56<1947),VLOOKUP(I56,Feuil1!$F$10:$O$24,9),IF(AND(H56>=1947,H56<1952),VLOOKUP(I56,Feuil1!$F$10:$O$24,8),IF(AND(H56>=1952,H56<1957),VLOOKUP(I56,Feuil1!$F$10:$O$24,7),IF(AND(H56>=1957,H56<1962),VLOOKUP(I56,Feuil1!$F$10:$O$24,6),IF(AND(H56>=1962,H56<1967),VLOOKUP(I56,Feuil1!$F$10:$O$24,5),IF(AND(H56>=1967,H56<1972),VLOOKUP(I56,Feuil1!$F$10:$O$24,4),IF(AND(H56>=1972,H56<1977),VLOOKUP(I56,Feuil1!$F$10:$O$24,3),IF(AND(H56>=1977,H56<1982),VLOOKUP(I56,Feuil1!$F$10:$O$24,2),VLOOKUP(I56,Feuil1!$F$10:$O$24,2)))))))))) -> VF70+-48 | AA56: =T56-HLOOKUP(Y56,Feuil1!$C$1:$BF$9,2,FALSE) ->  | AB56: =T56-HLOOKUP(Y56,Feuil1!$C$1:$BF$9,3,FALSE) -> 0 | AC56: =T56-HLOOKUP(Y56,Feuil1!$C$1:$BF$9,4,FALSE) -> -2 | AD56: =T56-HLOOKUP(Y56,Feuil1!$C$1:$BF$9,5,FALSE) -> -9 | AE56: =T56-HLOOKUP(Y56,Feuil1!$C$1:$BF$9,6,FALSE) -> -10 | AF56: =T56-HLOOKUP(Y56,Feuil1!$C$1:$BF$9,7,FALSE) -> -964 | AG56: =T56-HLOOKUP(Y56,Feuil1!$C$1:$BF$9,8,FALSE) -> -964 | AH56: =T56-HLOOKUP(Y56,Feuil1!$C$1:$BF$9,9,FALSE) -> -964 | AP56: REG + | AQ56: 72 | AS56: =IF(AQ56,VLOOKUP(AQ56,FEM!$AS$468:$AT$523,2)) -> 1.953
A57: F | X57: FALSE | Y57: =IF(AND(H57<1936),VLOOKUP(I57,Feuil1!$F$10:$O$24,9),IF(AND(H57>=1942,H57<1947),VLOOKUP(I57,Feuil1!$F$10:$O$24,9),IF(AND(H57>=1947,H57<1952),VLOOKUP(I57,Feuil1!$F$10:$O$24,8),IF(AND(H57>=1952,H57<1957),VLOOKUP(I57,Feuil1!$F$10:$O$24,7),IF(AND(H57>=1957,H57<1962),VLOOKUP(I57,Feuil1!$F$10:$O$24,6),IF(AND(H57>=1962,H57<1967),VLOOKUP(I57,Feuil1!$F$10:$O$24,5),IF(AND(H57>=1967,H57<1972),VLOOKUP(I57,Feuil1!$F$10:$O$24,4),IF(AND(H57>=1972,H57<1977),VLOOKUP(I57,Feuil1!$F$10:$O$24,3),IF(AND(H57>=1977,H57<1982),VLOOKUP(I57,Feuil1!$F$10:$O$24,2),VLOOKUP(I57,Feuil1!$F$10:$O$24,2)))))))))) ->  | AA57: =T57-HLOOKUP(Y57,Feuil1!$C$1:$BF$9,2,FALSE) ->  | AB57: =T57-HLOOKUP(Y57,Feuil1!$C$1:$BF$9,3,FALSE) ->  | AC57: =T57-HLOOKUP(Y57,Feuil1!$C$1:$BF$9,4,FALSE) ->  | AD57: =T57-HLOOKUP(Y57,Feuil1!$C$1:$BF$9,5,FALSE) ->  | AE57: =T57-HLOOKUP(Y57,Feuil1!$C$1:$BF$9,6,FALSE) ->  | AF57: =T57-HLOOKUP(Y57,Feuil1!$C$1:$BF$9,7,FALSE) ->  | AG57: =T57-HLOOKUP(Y57,Feuil1!$C$1:$BF$9,8,FALSE) ->  | AH57: =T57-HLOOKUP(Y57,Feuil1!$C$1:$BF$9,9,FALSE) ->  | AQ57: 2017 | AS57: =IF(AQ57,VLOOKUP(AQ57,FEM!$AS$468:$AT$523,2)) -> 4.493
A58: F | X58: FALSE | Y58: =IF(AND(H58<1936),VLOOKUP(I58,Feuil1!$F$10:$O$24,9),IF(AND(H58>=1942,H58<1947),VLOOKUP(I58,Feuil1!$F$10:$O$24,9),IF(AND(H58>=1947,H58<1952),VLOOKUP(I58,Feuil1!$F$10:$O$24,8),IF(AND(H58>=1952,H58<1957),VLOOKUP(I58,Feuil1!$F$10:$O$24,7),IF(AND(H58>=1957,H58<1962),VLOOKUP(I58,Feuil1!$F$10:$O$24,6),IF(AND(H58>=1962,H58<1967),VLOOKUP(I58,Feuil1!$F$10:$O$24,5),IF(AND(H58>=1967,H58<1972),VLOOKUP(I58,Feuil1!$F$10:$O$24,4),IF(AND(H58>=1972,H58<1977),VLOOKUP(I58,Feuil1!$F$10:$O$24,3),IF(AND(H58>=1977,H58<1982),VLOOKUP(I58,Feuil1!$F$10:$O$24,2),VLOOKUP(I58,Feuil1!$F$10:$O$24,2)))))))))) ->  | AA58: =T58-HLOOKUP(Y58,Feuil1!$C$1:$BF$9,2,FALSE) ->  | AB58: =T58-HLOOKUP(Y58,Feuil1!$C$1:$BF$9,3,FALSE) ->  | AC58: =T58-HLOOKUP(Y58,Feuil1!$C$1:$BF$9,4,FALSE) ->  | AD58: =T58-HLOOKUP(Y58,Feuil1!$C$1:$BF$9,5,FALSE) ->  | AE58: =T58-HLOOKUP(Y58,Feuil1!$C$1:$BF$9,6,FALSE) ->  | AF58: =T58-HLOOKUP(Y58,Feuil1!$C$1:$BF$9,7,FALSE) ->  | AG58: =T58-HLOOKUP(Y58,Feuil1!$C$1:$BF$9,8,FALSE) ->  | AH58: =T58-HLOOKUP(Y58,Feuil1!$C$1:$BF$9,9,FALSE) ->  | AQ58: 2017 | AS58: =IF(AQ58,VLOOKUP(AQ58,FEM!$AS$468:$AT$523,2)) -> 4.493
A59: F | X59: FALSE | Y59: =IF(AND(H59<1936),VLOOKUP(I59,Feuil1!$F$10:$O$24,9),IF(AND(H59>=1942,H59<1947),VLOOKUP(I59,Feuil1!$F$10:$O$24,9),IF(AND(H59>=1947,H59<1952),VLOOKUP(I59,Feuil1!$F$10:$O$24,8),IF(AND(H59>=1952,H59<1957),VLOOKUP(I59,Feuil1!$F$10:$O$24,7),IF(AND(H59>=1957,H59<1962),VLOOKUP(I59,Feuil1!$F$10:$O$24,6),IF(AND(H59>=1962,H59<1967),VLOOKUP(I59,Feuil1!$F$10:$O$24,5),IF(AND(H59>=1967,H59<1972),VLOOKUP(I59,Feuil1!$F$10:$O$24,4),IF(AND(H59>=1972,H59<1977),VLOOKUP(I59,Feuil1!$F$10:$O$24,3),IF(AND(H59>=1977,H59<1982),VLOOKUP(I59,Feuil1!$F$10:$O$24,2),VLOOKUP(I59,Feuil1!$F$10:$O$24,2)))))))))) ->  | AA59: =T59-HLOOKUP(Y59,Feuil1!$C$1:$BF$9,2,FALSE) ->  | AB59: =T59-HLOOKUP(Y59,Feuil1!$C$1:$BF$9,3,FALSE) ->  | AC59: =T59-HLOOKUP(Y59,Feuil1!$C$1:$BF$9,4,FALSE) ->  | AD59: =T59-HLOOKUP(Y59,Feuil1!$C$1:$BF$9,5,FALSE) ->  | AE59: =T59-HLOOKUP(Y59,Feuil1!$C$1:$BF$9,6,FALSE) ->  | AF59: =T59-HLOOKUP(Y59,Feuil1!$C$1:$BF$9,7,FALSE) ->  | AG59: =T59-HLOOKUP(Y59,Feuil1!$C$1:$BF$9,8,FALSE) ->  | AH59: =T59-HLOOKUP(Y59,Feuil1!$C$1:$BF$9,9,FALSE) ->  | AQ59: 2017 | AS59: =IF(AQ59,VLOOKUP(AQ59,FEM!$AS$468:$AT$523,2)) -> 4.493
A60: F | X60: FALSE | Y60: =IF(AND(H60<1936),VLOOKUP(I60,Feuil1!$F$10:$O$24,9),IF(AND(H60>=1942,H60<1947),VLOOKUP(I60,Feuil1!$F$10:$O$24,9),IF(AND(H60>=1947,H60<1952),VLOOKUP(I60,Feuil1!$F$10:$O$24,8),IF(AND(H60>=1952,H60<1957),VLOOKUP(I60,Feuil1!$F$10:$O$24,7),IF(AND(H60>=1957,H60<1962),VLOOKUP(I60,Feuil1!$F$10:$O$24,6),IF(AND(H60>=1962,H60<1967),VLOOKUP(I60,Feuil1!$F$10:$O$24,5),IF(AND(H60>=1967,H60<1972),VLOOKUP(I60,Feuil1!$F$10:$O$24,4),IF(AND(H60>=1972,H60<1977),VLOOKUP(I60,Feuil1!$F$10:$O$24,3),IF(AND(H60>=1977,H60<1982),VLOOKUP(I60,Feuil1!$F$10:$O$24,2),VLOOKUP(I60,Feuil1!$F$10:$O$24,2)))))))))) ->  | AA60: =T60-HLOOKUP(Y60,Feuil1!$C$1:$BF$9,2,FALSE) ->  | AB60: =T60-HLOOKUP(Y60,Feuil1!$C$1:$BF$9,3,FALSE) ->  | AC60: =T60-HLOOKUP(Y60,Feuil1!$C$1:$BF$9,4,FALSE) ->  | AD60: =T60-HLOOKUP(Y60,Feuil1!$C$1:$BF$9,5,FALSE) ->  | AE60: =T60-HLOOKUP(Y60,Feuil1!$C$1:$BF$9,6,FALSE) ->  | AF60: =T60-HLOOKUP(Y60,Feuil1!$C$1:$BF$9,7,FALSE) ->  | AG60: =T60-HLOOKUP(Y60,Feuil1!$C$1:$BF$9,8,FALSE) ->  | AH60: =T60-HLOOKUP(Y60,Feuil1!$C$1:$BF$9,9,FALSE) ->  | AQ60: 2017 | AS60: =IF(AQ60,VLOOKUP(AQ60,FEM!$AS$468:$AT$523,2)) -> 4.493
A61: F | X61: FALSE | Y61: =IF(AND(H61<1936),VLOOKUP(I61,Feuil1!$F$10:$O$24,9),IF(AND(H61>=1942,H61<1947),VLOOKUP(I61,Feuil1!$F$10:$O$24,9),IF(AND(H61>=1947,H61<1952),VLOOKUP(I61,Feuil1!$F$10:$O$24,8),IF(AND(H61>=1952,H61<1957),VLOOKUP(I61,Feuil1!$F$10:$O$24,7),IF(AND(H61>=1957,H61<1962),VLOOKUP(I61,Feuil1!$F$10:$O$24,6),IF(AND(H61>=1962,H61<1967),VLOOKUP(I61,Feuil1!$F$10:$O$24,5),IF(AND(H61>=1967,H61<1972),VLOOKUP(I61,Feuil1!$F$10:$O$24,4),IF(AND(H61>=1972,H61<1977),VLOOKUP(I61,Feuil1!$F$10:$O$24,3),IF(AND(H61>=1977,H61<1982),VLOOKUP(I61,Feuil1!$F$10:$O$24,2),VLOOKUP(I61,Feuil1!$F$10:$O$24,2)))))))))) ->  | AA61: =T61-HLOOKUP(Y61,Feuil1!$C$1:$BF$9,2,FALSE) ->  | AB61: =T61-HLOOKUP(Y61,Feuil1!$C$1:$BF$9,3,FALSE) ->  | AC61: =T61-HLOOKUP(Y61,Feuil1!$C$1:$BF$9,4,FALSE) ->  | AD61: =T61-HLOOKUP(Y61,Feuil1!$C$1:$BF$9,5,FALSE) ->  | AE61: =T61-HLOOKUP(Y61,Feuil1!$C$1:$BF$9,6,FALSE) ->  | AF61: =T61-HLOOKUP(Y61,Feuil1!$C$1:$BF$9,7,FALSE) ->  | AG61: =T61-HLOOKUP(Y61,Feuil1!$C$1:$BF$9,8,FALSE) ->  | AH61: =T61-HLOOKUP(Y61,Feuil1!$C$1:$BF$9,9,FALSE) ->  | AQ61: 2017 | AS61: =IF(AQ61,VLOOKUP(AQ61,FEM!$AS$468:$AT$523,2)) -> 4.493
A62: F | X62: FALSE | Y62: =IF(AND(H62<1936),VLOOKUP(I62,Feuil1!$F$10:$O$24,9),IF(AND(H62>=1942,H62<1947),VLOOKUP(I62,Feuil1!$F$10:$O$24,9),IF(AND(H62>=1947,H62<1952),VLOOKUP(I62,Feuil1!$F$10:$O$24,8),IF(AND(H62>=1952,H62<1957),VLOOKUP(I62,Feuil1!$F$10:$O$24,7),IF(AND(H62>=1957,H62<1962),VLOOKUP(I62,Feuil1!$F$10:$O$24,6),IF(AND(H62>=1962,H62<1967),VLOOKUP(I62,Feuil1!$F$10:$O$24,5),IF(AND(H62>=1967,H62<1972),VLOOKUP(I62,Feuil1!$F$10:$O$24,4),IF(AND(H62>=1972,H62<1977),VLOOKUP(I62,Feuil1!$F$10:$O$24,3),IF(AND(H62>=1977,H62<1982),VLOOKUP(I62,Feuil1!$F$10:$O$24,2),VLOOKUP(I62,Feuil1!$F$10:$O$24,2)))))))))) ->  | AA62: =T62-HLOOKUP(Y62,Feuil1!$C$1:$BF$9,2,FALSE) ->  | AB62: =T62-HLOOKUP(Y62,Feuil1!$C$1:$BF$9,3,FALSE) ->  | AC62: =T62-HLOOKUP(Y62,Feuil1!$C$1:$BF$9,4,FALSE) ->  | AD62: =T62-HLOOKUP(Y62,Feuil1!$C$1:$BF$9,5,FALSE) ->  | AE62: =T62-HLOOKUP(Y62,Feuil1!$C$1:$BF$9,6,FALSE) ->  | AF62: =T62-HLOOKUP(Y62,Feuil1!$C$1:$BF$9,7,FALSE) ->  | AG62: =T62-HLOOKUP(Y62,Feuil1!$C$1:$BF$9,8,FALSE) ->  | AH62: =T62-HLOOKUP(Y62,Feuil1!$C$1:$BF$9,9,FALSE) ->  | AQ62: 2017 | AS62: =IF(AQ62,VLOOKUP(AQ62,FEM!$AS$468:$AT$523,2)) -> 4.493
A63: F | X63: FALSE | Y63: =IF(AND(H63<1936),VLOOKUP(I63,Feuil1!$F$10:$O$24,9),IF(AND(H63>=1942,H63<1947),VLOOKUP(I63,Feuil1!$F$10:$O$24,9),IF(AND(H63>=1947,H63<1952),VLOOKUP(I63,Feuil1!$F$10:$O$24,8),IF(AND(H63>=1952,H63<1957),VLOOKUP(I63,Feuil1!$F$10:$O$24,7),IF(AND(H63>=1957,H63<1962),VLOOKUP(I63,Feuil1!$F$10:$O$24,6),IF(AND(H63>=1962,H63<1967),VLOOKUP(I63,Feuil1!$F$10:$O$24,5),IF(AND(H63>=1967,H63<1972),VLOOKUP(I63,Feuil1!$F$10:$O$24,4),IF(AND(H63>=1972,H63<1977),VLOOKUP(I63,Feuil1!$F$10:$O$24,3),IF(AND(H63>=1977,H63<1982),VLOOKUP(I63,Feuil1!$F$10:$O$24,2),VLOOKUP(I63,Feuil1!$F$10:$O$24,2)))))))))) ->  | AA63: =T63-HLOOKUP(Y63,Feuil1!$C$1:$BF$9,2,FALSE) ->  | AB63: =T63-HLOOKUP(Y63,Feuil1!$C$1:$BF$9,3,FALSE) ->  | AC63: =T63-HLOOKUP(Y63,Feuil1!$C$1:$BF$9,4,FALSE) ->  | AD63: =T63-HLOOKUP(Y63,Feuil1!$C$1:$BF$9,5,FALSE) ->  | AE63: =T63-HLOOKUP(Y63,Feuil1!$C$1:$BF$9,6,FALSE) ->  | AF63: =T63-HLOOKUP(Y63,Feuil1!$C$1:$BF$9,7,FALSE) ->  | AG63: =T63-HLOOKUP(Y63,Feuil1!$C$1:$BF$9,8,FALSE) ->  | AH63: =T63-HLOOKUP(Y63,Feuil1!$C$1:$BF$9,9,FALSE) ->  | AQ63: 2017 | AS63: =IF(AQ63,VLOOKUP(AQ63,FEM!$AS$468:$AT$523,2)) -> 4.493
A64: F | X64: FALSE | Y64: =IF(AND(H64<1936),VLOOKUP(I64,Feuil1!$F$10:$O$24,9),IF(AND(H64>=1942,H64<1947),VLOOKUP(I64,Feuil1!$F$10:$O$24,9),IF(AND(H64>=1947,H64<1952),VLOOKUP(I64,Feuil1!$F$10:$O$24,8),IF(AND(H64>=1952,H64<1957),VLOOKUP(I64,Feuil1!$F$10:$O$24,7),IF(AND(H64>=1957,H64<1962),VLOOKUP(I64,Feuil1!$F$10:$O$24,6),IF(AND(H64>=1962,H64<1967),VLOOKUP(I64,Feuil1!$F$10:$O$24,5),IF(AND(H64>=1967,H64<1972),VLOOKUP(I64,Feuil1!$F$10:$O$24,4),IF(AND(H64>=1972,H64<1977),VLOOKUP(I64,Feuil1!$F$10:$O$24,3),IF(AND(H64>=1977,H64<1982),VLOOKUP(I64,Feuil1!$F$10:$O$24,2),VLOOKUP(I64,Feuil1!$F$10:$O$24,2)))))))))) ->  | AA64: =T64-HLOOKUP(Y64,Feuil1!$C$1:$BF$9,2,FALSE) ->  | AB64: =T64-HLOOKUP(Y64,Feuil1!$C$1:$BF$9,3,FALSE) ->  | AC64: =T64-HLOOKUP(Y64,Feuil1!$C$1:$BF$9,4,FALSE) ->  | AD64: =T64-HLOOKUP(Y64,Feuil1!$C$1:$BF$9,5,FALSE) ->  | AE64: =T64-HLOOKUP(Y64,Feuil1!$C$1:$BF$9,6,FALSE) ->  | AF64: =T64-HLOOKUP(Y64,Feuil1!$C$1:$BF$9,7,FALSE) ->  | AG64: =T64-HLOOKUP(Y64,Feuil1!$C$1:$BF$9,8,FALSE) ->  | AH64: =T64-HLOOKUP(Y64,Feuil1!$C$1:$BF$9,9,FALSE) ->  | AQ64: 2017 | AS64: =IF(AQ64,VLOOKUP(AQ64,FEM!$AS$468:$AT$523,2)) -> 4.493
A65: F | X65: FALSE | Y65: =IF(AND(H65<1936),VLOOKUP(I65,Feuil1!$F$10:$O$24,9),IF(AND(H65>=1942,H65<1947),VLOOKUP(I65,Feuil1!$F$10:$O$24,9),IF(AND(H65>=1947,H65<1952),VLOOKUP(I65,Feuil1!$F$10:$O$24,8),IF(AND(H65>=1952,H65<1957),VLOOKUP(I65,Feuil1!$F$10:$O$24,7),IF(AND(H65>=1957,H65<1962),VLOOKUP(I65,Feuil1!$F$10:$O$24,6),IF(AND(H65>=1962,H65<1967),VLOOKUP(I65,Feuil1!$F$10:$O$24,5),IF(AND(H65>=1967,H65<1972),VLOOKUP(I65,Feuil1!$F$10:$O$24,4),IF(AND(H65>=1972,H65<1977),VLOOKUP(I65,Feuil1!$F$10:$O$24,3),IF(AND(H65>=1977,H65<1982),VLOOKUP(I65,Feuil1!$F$10:$O$24,2),VLOOKUP(I65,Feuil1!$F$10:$O$24,2)))))))))) ->  | AA65: =T65-HLOOKUP(Y65,Feuil1!$C$1:$BF$9,2,FALSE) ->  | AB65: =T65-HLOOKUP(Y65,Feuil1!$C$1:$BF$9,3,FALSE) ->  | AC65: =T65-HLOOKUP(Y65,Feuil1!$C$1:$BF$9,4,FALSE) ->  | AD65: =T65-HLOOKUP(Y65,Feuil1!$C$1:$BF$9,5,FALSE) ->  | AE65: =T65-HLOOKUP(Y65,Feuil1!$C$1:$BF$9,6,FALSE) ->  | AF65: =T65-HLOOKUP(Y65,Feuil1!$C$1:$BF$9,7,FALSE) ->  | AG65: =T65-HLOOKUP(Y65,Feuil1!$C$1:$BF$9,8,FALSE) ->  | AH65: =T65-HLOOKUP(Y65,Feuil1!$C$1:$BF$9,9,FALSE) ->  | AQ65: 2017 | AS65: =IF(AQ65,VLOOKUP(AQ65,FEM!$AS$468:$AT$523,2)) -> 4.493
A66: F | X66: FALSE | Y66: =IF(AND(H66<1936),VLOOKUP(I66,Feuil1!$F$10:$O$24,9),IF(AND(H66>=1942,H66<1947),VLOOKUP(I66,Feuil1!$F$10:$O$24,9),IF(AND(H66>=1947,H66<1952),VLOOKUP(I66,Feuil1!$F$10:$O$24,8),IF(AND(H66>=1952,H66<1957),VLOOKUP(I66,Feuil1!$F$10:$O$24,7),IF(AND(H66>=1957,H66<1962),VLOOKUP(I66,Feuil1!$F$10:$O$24,6),IF(AND(H66>=1962,H66<1967),VLOOKUP(I66,Feuil1!$F$10:$O$24,5),IF(AND(H66>=1967,H66<1972),VLOOKUP(I66,Feuil1!$F$10:$O$24,4),IF(AND(H66>=1972,H66<1977),VLOOKUP(I66,Feuil1!$F$10:$O$24,3),IF(AND(H66>=1977,H66<1982),VLOOKUP(I66,Feuil1!$F$10:$O$24,2),VLOOKUP(I66,Feuil1!$F$10:$O$24,2)))))))))) ->  | AA66: =T66-HLOOKUP(Y66,Feuil1!$C$1:$BF$9,2,FALSE) ->  | AB66: =T66-HLOOKUP(Y66,Feuil1!$C$1:$BF$9,3,FALSE) ->  | AC66: =T66-HLOOKUP(Y66,Feuil1!$C$1:$BF$9,4,FALSE) ->  | AD66: =T66-HLOOKUP(Y66,Feuil1!$C$1:$BF$9,5,FALSE) ->  | AE66: =T66-HLOOKUP(Y66,Feuil1!$C$1:$BF$9,6,FALSE) ->  | AF66: =T66-HLOOKUP(Y66,Feuil1!$C$1:$BF$9,7,FALSE) ->  | AG66: =T66-HLOOKUP(Y66,Feuil1!$C$1:$BF$9,8,FALSE) ->  | AH66: =T66-HLOOKUP(Y66,Feuil1!$C$1:$BF$9,9,FALSE) ->  | AQ66: 2017 | AS66: =IF(AQ66,VLOOKUP(AQ66,FEM!$AS$468:$AT$523,2)) -> 4.493
A67: F | X67: FALSE | Y67: =IF(AND(H67<1936),VLOOKUP(I67,Feuil1!$F$10:$O$24,9),IF(AND(H67>=1942,H67<1947),VLOOKUP(I67,Feuil1!$F$10:$O$24,9),IF(AND(H67>=1947,H67<1952),VLOOKUP(I67,Feuil1!$F$10:$O$24,8),IF(AND(H67>=1952,H67<1957),VLOOKUP(I67,Feuil1!$F$10:$O$24,7),IF(AND(H67>=1957,H67<1962),VLOOKUP(I67,Feuil1!$F$10:$O$24,6),IF(AND(H67>=1962,H67<1967),VLOOKUP(I67,Feuil1!$F$10:$O$24,5),IF(AND(H67>=1967,H67<1972),VLOOKUP(I67,Feuil1!$F$10:$O$24,4),IF(AND(H67>=1972,H67<1977),VLOOKUP(I67,Feuil1!$F$10:$O$24,3),IF(AND(H67>=1977,H67<1982),VLOOKUP(I67,Feuil1!$F$10:$O$24,2),VLOOKUP(I67,Feuil1!$F$10:$O$24,2)))))))))) ->  | AA67: =T67-HLOOKUP(Y67,Feuil1!$C$1:$BF$9,2,FALSE) ->  | AB67: =T67-HLOOKUP(Y67,Feuil1!$C$1:$BF$9,3,FALSE) ->  | AC67: =T67-HLOOKUP(Y67,Feuil1!$C$1:$BF$9,4,FALSE) ->  | AD67: =T67-HLOOKUP(Y67,Feuil1!$C$1:$BF$9,5,FALSE) ->  | AE67: =T67-HLOOKUP(Y67,Feuil1!$C$1:$BF$9,6,FALSE) ->  | AF67: =T67-HLOOKUP(Y67,Feuil1!$C$1:$BF$9,7,FALSE) ->  | AG67: =T67-HLOOKUP(Y67,Feuil1!$C$1:$BF$9,8,FALSE) ->  | AH67: =T67-HLOOKUP(Y67,Feuil1!$C$1:$BF$9,9,FALSE) ->  | AQ67: 2017 | AS67: =IF(AQ67,VLOOKUP(AQ67,FEM!$AS$468:$AT$523,2)) -> 4.493
A68: F | X68: FALSE | Y68: =IF(AND(H68<1936),VLOOKUP(I68,Feuil1!$F$10:$O$24,9),IF(AND(H68>=1942,H68<1947),VLOOKUP(I68,Feuil1!$F$10:$O$24,9),IF(AND(H68>=1947,H68<1952),VLOOKUP(I68,Feuil1!$F$10:$O$24,8),IF(AND(H68>=1952,H68<1957),VLOOKUP(I68,Feuil1!$F$10:$O$24,7),IF(AND(H68>=1957,H68<1962),VLOOKUP(I68,Feuil1!$F$10:$O$24,6),IF(AND(H68>=1962,H68<1967),VLOOKUP(I68,Feuil1!$F$10:$O$24,5),IF(AND(H68>=1967,H68<1972),VLOOKUP(I68,Feuil1!$F$10:$O$24,4),IF(AND(H68>=1972,H68<1977),VLOOKUP(I68,Feuil1!$F$10:$O$24,3),IF(AND(H68>=1977,H68<1982),VLOOKUP(I68,Feuil1!$F$10:$O$24,2),VLOOKUP(I68,Feuil1!$F$10:$O$24,2)))))))))) ->  | AA68: =T68-HLOOKUP(Y68,Feuil1!$C$1:$BF$9,2,FALSE) ->  | AB68: =T68-HLOOKUP(Y68,Feuil1!$C$1:$BF$9,3,FALSE) ->  | AC68: =T68-HLOOKUP(Y68,Feuil1!$C$1:$BF$9,4,FALSE) ->  | AD68: =T68-HLOOKUP(Y68,Feuil1!$C$1:$BF$9,5,FALSE) ->  | AE68: =T68-HLOOKUP(Y68,Feuil1!$C$1:$BF$9,6,FALSE) ->  | AF68: =T68-HLOOKUP(Y68,Feuil1!$C$1:$BF$9,7,FALSE) ->  | AG68: =T68-HLOOKUP(Y68,Feuil1!$C$1:$BF$9,8,FALSE) ->  | AH68: =T68-HLOOKUP(Y68,Feuil1!$C$1:$BF$9,9,FALSE) ->  | AQ68: 2017 | AS68: =IF(AQ68,VLOOKUP(AQ68,FEM!$AS$468:$AT$523,2)) -> 4.493
A69: F | X69: FALSE | Y69: =IF(AND(H69<1936),VLOOKUP(I69,Feuil1!$F$10:$O$24,9),IF(AND(H69>=1942,H69<1947),VLOOKUP(I69,Feuil1!$F$10:$O$24,9),IF(AND(H69>=1947,H69<1952),VLOOKUP(I69,Feuil1!$F$10:$O$24,8),IF(AND(H69>=1952,H69<1957),VLOOKUP(I69,Feuil1!$F$10:$O$24,7),IF(AND(H69>=1957,H69<1962),VLOOKUP(I69,Feuil1!$F$10:$O$24,6),IF(AND(H69>=1962,H69<1967),VLOOKUP(I69,Feuil1!$F$10:$O$24,5),IF(AND(H69>=1967,H69<1972),VLOOKUP(I69,Feuil1!$F$10:$O$24,4),IF(AND(H69>=1972,H69<1977),VLOOKUP(I69,Feuil1!$F$10:$O$24,3),IF(AND(H69>=1977,H69<1982),VLOOKUP(I69,Feuil1!$F$10:$O$24,2),VLOOKUP(I69,Feuil1!$F$10:$O$24,2)))))))))) ->  | AA69: =T69-HLOOKUP(Y69,Feuil1!$C$1:$BF$9,2,FALSE) ->  | AB69: =T69-HLOOKUP(Y69,Feuil1!$C$1:$BF$9,3,FALSE) ->  | AC69: =T69-HLOOKUP(Y69,Feuil1!$C$1:$BF$9,4,FALSE) ->  | AD69: =T69-HLOOKUP(Y69,Feuil1!$C$1:$BF$9,5,FALSE) ->  | AE69: =T69-HLOOKUP(Y69,Feuil1!$C$1:$BF$9,6,FALSE) ->  | AF69: =T69-HLOOKUP(Y69,Feuil1!$C$1:$BF$9,7,FALSE) ->  | AG69: =T69-HLOOKUP(Y69,Feuil1!$C$1:$BF$9,8,FALSE) ->  | AH69: =T69-HLOOKUP(Y69,Feuil1!$C$1:$BF$9,9,FALSE) ->  | AQ69: 2017 | AS69: =IF(AQ69,VLOOKUP(AQ69,FEM!$AS$468:$AT$523,2)) -> 4.493
A70: F | X70: FALSE | Y70: =IF(AND(H70<1936),VLOOKUP(I70,Feuil1!$F$10:$O$24,9),IF(AND(H70>=1942,H70<1947),VLOOKUP(I70,Feuil1!$F$10:$O$24,9),IF(AND(H70>=1947,H70<1952),VLOOKUP(I70,Feuil1!$F$10:$O$24,8),IF(AND(H70>=1952,H70<1957),VLOOKUP(I70,Feuil1!$F$10:$O$24,7),IF(AND(H70>=1957,H70<1962),VLOOKUP(I70,Feuil1!$F$10:$O$24,6),IF(AND(H70>=1962,H70<1967),VLOOKUP(I70,Feuil1!$F$10:$O$24,5),IF(AND(H70>=1967,H70<1972),VLOOKUP(I70,Feuil1!$F$10:$O$24,4),IF(AND(H70>=1972,H70<1977),VLOOKUP(I70,Feuil1!$F$10:$O$24,3),IF(AND(H70>=1977,H70<1982),VLOOKUP(I70,Feuil1!$F$10:$O$24,2),VLOOKUP(I70,Feuil1!$F$10:$O$24,2)))))))))) ->  | AA70: =T70-HLOOKUP(Y70,Feuil1!$C$1:$BF$9,2,FALSE) ->  | AB70: =T70-HLOOKUP(Y70,Feuil1!$C$1:$BF$9,3,FALSE) ->  | AC70: =T70-HLOOKUP(Y70,Feuil1!$C$1:$BF$9,4,FALSE) ->  | AD70: =T70-HLOOKUP(Y70,Feuil1!$C$1:$BF$9,5,FALSE) ->  | AE70: =T70-HLOOKUP(Y70,Feuil1!$C$1:$BF$9,6,FALSE) ->  | AF70: =T70-HLOOKUP(Y70,Feuil1!$C$1:$BF$9,7,FALSE) ->  | AG70: =T70-HLOOKUP(Y70,Feuil1!$C$1:$BF$9,8,FALSE) ->  | AH70: =T70-HLOOKUP(Y70,Feuil1!$C$1:$BF$9,9,FALSE) ->  | AQ70: 2017 | AS70: =IF(AQ70,VLOOKUP(AQ70,FEM!$AS$468:$AT$523,2)) -> 4.493
A71: F | X71: FALSE | Y71: =IF(AND(H71<1936),VLOOKUP(I71,Feuil1!$F$10:$O$24,9),IF(AND(H71>=1942,H71<1947),VLOOKUP(I71,Feuil1!$F$10:$O$24,9),IF(AND(H71>=1947,H71<1952),VLOOKUP(I71,Feuil1!$F$10:$O$24,8),IF(AND(H71>=1952,H71<1957),VLOOKUP(I71,Feuil1!$F$10:$O$24,7),IF(AND(H71>=1957,H71<1962),VLOOKUP(I71,Feuil1!$F$10:$O$24,6),IF(AND(H71>=1962,H71<1967),VLOOKUP(I71,Feuil1!$F$10:$O$24,5),IF(AND(H71>=1967,H71<1972),VLOOKUP(I71,Feuil1!$F$10:$O$24,4),IF(AND(H71>=1972,H71<1977),VLOOKUP(I71,Feuil1!$F$10:$O$24,3),IF(AND(H71>=1977,H71<1982),VLOOKUP(I71,Feuil1!$F$10:$O$24,2),VLOOKUP(I71,Feuil1!$F$10:$O$24,2)))))))))) ->  | AA71: =T71-HLOOKUP(Y71,Feuil1!$C$1:$BF$9,2,FALSE) ->  | AB71: =T71-HLOOKUP(Y71,Feuil1!$C$1:$BF$9,3,FALSE) ->  | AC71: =T71-HLOOKUP(Y71,Feuil1!$C$1:$BF$9,4,FALSE) ->  | AD71: =T71-HLOOKUP(Y71,Feuil1!$C$1:$BF$9,5,FALSE) ->  | AE71: =T71-HLOOKUP(Y71,Feuil1!$C$1:$BF$9,6,FALSE) ->  | AF71: =T71-HLOOKUP(Y71,Feuil1!$C$1:$BF$9,7,FALSE) ->  | AG71: =T71-HLOOKUP(Y71,Feuil1!$C$1:$BF$9,8,FALSE) ->  | AH71: =T71-HLOOKUP(Y71,Feuil1!$C$1:$BF$9,9,FALSE) ->  | AQ71: 2017 | AS71: =IF(AQ71,VLOOKUP(AQ71,FEM!$AS$468:$AT$523,2)) -> 4.493
A72: F | X72: FALSE | Y72: =IF(AND(H72<1936),VLOOKUP(I72,Feuil1!$F$10:$O$24,9),IF(AND(H72>=1942,H72<1947),VLOOKUP(I72,Feuil1!$F$10:$O$24,9),IF(AND(H72>=1947,H72<1952),VLOOKUP(I72,Feuil1!$F$10:$O$24,8),IF(AND(H72>=1952,H72<1957),VLOOKUP(I72,Feuil1!$F$10:$O$24,7),IF(AND(H72>=1957,H72<1962),VLOOKUP(I72,Feuil1!$F$10:$O$24,6),IF(AND(H72>=1962,H72<1967),VLOOKUP(I72,Feuil1!$F$10:$O$24,5),IF(AND(H72>=1967,H72<1972),VLOOKUP(I72,Feuil1!$F$10:$O$24,4),IF(AND(H72>=1972,H72<1977),VLOOKUP(I72,Feuil1!$F$10:$O$24,3),IF(AND(H72>=1977,H72<1982),VLOOKUP(I72,Feuil1!$F$10:$O$24,2),VLOOKUP(I72,Feuil1!$F$10:$O$24,2)))))))))) ->  | AA72: =T72-HLOOKUP(Y72,Feuil1!$C$1:$BF$9,2,FALSE) ->  | AB72: =T72-HLOOKUP(Y72,Feuil1!$C$1:$BF$9,3,FALSE) ->  | AC72: =T72-HLOOKUP(Y72,Feuil1!$C$1:$BF$9,4,FALSE) ->  | AD72: =T72-HLOOKUP(Y72,Feuil1!$C$1:$BF$9,5,FALSE) ->  | AE72: =T72-HLOOKUP(Y72,Feuil1!$C$1:$BF$9,6,FALSE) ->  | AF72: =T72-HLOOKUP(Y72,Feuil1!$C$1:$BF$9,7,FALSE) ->  | AG72: =T72-HLOOKUP(Y72,Feuil1!$C$1:$BF$9,8,FALSE) ->  | AH72: =T72-HLOOKUP(Y72,Feuil1!$C$1:$BF$9,9,FALSE) ->  | AQ72: =2017-H72 -> 2017 | AS72: =IF(AQ72,VLOOKUP(AQ72,FEM!$AS$468:$AT$523,2)) -> 4.493
A73: F | X73: FALSE | Y73: =IF(AND(H73<1936),VLOOKUP(I73,Feuil1!$F$10:$O$24,9),IF(AND(H73>=1942,H73<1947),VLOOKUP(I73,Feuil1!$F$10:$O$24,9),IF(AND(H73>=1947,H73<1952),VLOOKUP(I73,Feuil1!$F$10:$O$24,8),IF(AND(H73>=1952,H73<1957),VLOOKUP(I73,Feuil1!$F$10:$O$24,7),IF(AND(H73>=1957,H73<1962),VLOOKUP(I73,Feuil1!$F$10:$O$24,6),IF(AND(H73>=1962,H73<1967),VLOOKUP(I73,Feuil1!$F$10:$O$24,5),IF(AND(H73>=1967,H73<1972),VLOOKUP(I73,Feuil1!$F$10:$O$24,4),IF(AND(H73>=1972,H73<1977),VLOOKUP(I73,Feuil1!$F$10:$O$24,3),IF(AND(H73>=1977,H73<1982),VLOOKUP(I73,Feuil1!$F$10:$O$24,2),VLOOKUP(I73,Feuil1!$F$10:$O$24,2)))))))))) ->  | AA73: =T73-HLOOKUP(Y73,Feuil1!$C$1:$BF$9,2,FALSE) ->  | AB73: =T73-HLOOKUP(Y73,Feuil1!$C$1:$BF$9,3,FALSE) ->  | AC73: =T73-HLOOKUP(Y73,Feuil1!$C$1:$BF$9,4,FALSE) ->  | AD73: =T73-HLOOKUP(Y73,Feuil1!$C$1:$BF$9,5,FALSE) ->  | AE73: =T73-HLOOKUP(Y73,Feuil1!$C$1:$BF$9,6,FALSE) ->  | AF73: =T73-HLOOKUP(Y73,Feuil1!$C$1:$BF$9,7,FALSE) ->  | AG73: =T73-HLOOKUP(Y73,Feuil1!$C$1:$BF$9,8,FALSE) ->  | AH73: =T73-HLOOKUP(Y73,Feuil1!$C$1:$BF$9,9,FALSE) ->  | AQ73: 2017 | AS73: =IF(AQ73,VLOOKUP(AQ73,FEM!$AS$468:$AT$523,2)) -> 4.493
A74: F | X74: FALSE | Y74: =IF(AND(H74<1936),VLOOKUP(I74,Feuil1!$F$10:$O$24,9),IF(AND(H74>=1942,H74<1947),VLOOKUP(I74,Feuil1!$F$10:$O$24,9),IF(AND(H74>=1947,H74<1952),VLOOKUP(I74,Feuil1!$F$10:$O$24,8),IF(AND(H74>=1952,H74<1957),VLOOKUP(I74,Feuil1!$F$10:$O$24,7),IF(AND(H74>=1957,H74<1962),VLOOKUP(I74,Feuil1!$F$10:$O$24,6),IF(AND(H74>=1962,H74<1967),VLOOKUP(I74,Feuil1!$F$10:$O$24,5),IF(AND(H74>=1967,H74<1972),VLOOKUP(I74,Feuil1!$F$10:$O$24,4),IF(AND(H74>=1972,H74<1977),VLOOKUP(I74,Feuil1!$F$10:$O$24,3),IF(AND(H74>=1977,H74<1982),VLOOKUP(I74,Feuil1!$F$10:$O$24,2),VLOOKUP(I74,Feuil1!$F$10:$O$24,2)))))))))) ->  | AA74: =T74-HLOOKUP(Y74,Feuil1!$C$1:$BF$9,2,FALSE) ->  | AB74: =T74-HLOOKUP(Y74,Feuil1!$C$1:$BF$9,3,FALSE) ->  | AC74: =T74-HLOOKUP(Y74,Feuil1!$C$1:$BF$9,4,FALSE) ->  | AD74: =T74-HLOOKUP(Y74,Feuil1!$C$1:$BF$9,5,FALSE) ->  | AE74: =T74-HLOOKUP(Y74,Feuil1!$C$1:$BF$9,6,FALSE) ->  | AF74: =T74-HLOOKUP(Y74,Feuil1!$C$1:$BF$9,7,FALSE) ->  | AG74: =T74-HLOOKUP(Y74,Feuil1!$C$1:$BF$9,8,FALSE) ->  | AH74: =T74-HLOOKUP(Y74,Feuil1!$C$1:$BF$9,9,FALSE) ->  | AQ74: 2017 | AS74: =IF(AQ74,VLOOKUP(AQ74,FEM!$AS$468:$AT$523,2)) -> 4.493
A75: F | X75: FALSE | Y75: =IF(AND(H75<1936),VLOOKUP(I75,Feuil1!$F$10:$O$24,9),IF(AND(H75>=1942,H75<1947),VLOOKUP(I75,Feuil1!$F$10:$O$24,9),IF(AND(H75>=1947,H75<1952),VLOOKUP(I75,Feuil1!$F$10:$O$24,8),IF(AND(H75>=1952,H75<1957),VLOOKUP(I75,Feuil1!$F$10:$O$24,7),IF(AND(H75>=1957,H75<1962),VLOOKUP(I75,Feuil1!$F$10:$O$24,6),IF(AND(H75>=1962,H75<1967),VLOOKUP(I75,Feuil1!$F$10:$O$24,5),IF(AND(H75>=1967,H75<1972),VLOOKUP(I75,Feuil1!$F$10:$O$24,4),IF(AND(H75>=1972,H75<1977),VLOOKUP(I75,Feuil1!$F$10:$O$24,3),IF(AND(H75>=1977,H75<1982),VLOOKUP(I75,Feuil1!$F$10:$O$24,2),VLOOKUP(I75,Feuil1!$F$10:$O$24,2)))))))))) ->  | AA75: =T75-HLOOKUP(Y75,Feuil1!$C$1:$BF$9,2,FALSE) ->  | AB75: =T75-HLOOKUP(Y75,Feuil1!$C$1:$BF$9,3,FALSE) ->  | AC75: =T75-HLOOKUP(Y75,Feuil1!$C$1:$BF$9,4,FALSE) ->  | AD75: =T75-HLOOKUP(Y75,Feuil1!$C$1:$BF$9,5,FALSE) ->  | AE75: =T75-HLOOKUP(Y75,Feuil1!$C$1:$BF$9,6,FALSE) ->  | AF75: =T75-HLOOKUP(Y75,Feuil1!$C$1:$BF$9,7,FALSE) ->  | AG75: =T75-HLOOKUP(Y75,Feuil1!$C$1:$BF$9,8,FALSE) ->  | AH75: =T75-HLOOKUP(Y75,Feuil1!$C$1:$BF$9,9,FALSE) ->  | AQ75: 2017 | AS75: =IF(AQ75,VLOOKUP(AQ75,FEM!$AS$468:$AT$523,2)) -> 4.493
A76: F | X76: FALSE | Y76: =IF(AND(H76<1936),VLOOKUP(I76,Feuil1!$F$10:$O$24,9),IF(AND(H76>=1942,H76<1947),VLOOKUP(I76,Feuil1!$F$10:$O$24,9),IF(AND(H76>=1947,H76<1952),VLOOKUP(I76,Feuil1!$F$10:$O$24,8),IF(AND(H76>=1952,H76<1957),VLOOKUP(I76,Feuil1!$F$10:$O$24,7),IF(AND(H76>=1957,H76<1962),VLOOKUP(I76,Feuil1!$F$10:$O$24,6),IF(AND(H76>=1962,H76<1967),VLOOKUP(I76,Feuil1!$F$10:$O$24,5),IF(AND(H76>=1967,H76<1972),VLOOKUP(I76,Feuil1!$F$10:$O$24,4),IF(AND(H76>=1972,H76<1977),VLOOKUP(I76,Feuil1!$F$10:$O$24,3),IF(AND(H76>=1977,H76<1982),VLOOKUP(I76,Feuil1!$F$10:$O$24,2),VLOOKUP(I76,Feuil1!$F$10:$O$24,2)))))))))) ->  | AA76: =T76-HLOOKUP(Y76,Feuil1!$C$1:$BF$9,2,FALSE) ->  | AB76: =T76-HLOOKUP(Y76,Feuil1!$C$1:$BF$9,3,FALSE) ->  | AC76: =T76-HLOOKUP(Y76,Feuil1!$C$1:$BF$9,4,FALSE) ->  | AD76: =T76-HLOOKUP(Y76,Feuil1!$C$1:$BF$9,5,FALSE) ->  | AE76: =T76-HLOOKUP(Y76,Feuil1!$C$1:$BF$9,6,FALSE) ->  | AF76: =T76-HLOOKUP(Y76,Feuil1!$C$1:$BF$9,7,FALSE) ->  | AG76: =T76-HLOOKUP(Y76,Feuil1!$C$1:$BF$9,8,FALSE) ->  | AH76: =T76-HLOOKUP(Y76,Feuil1!$C$1:$BF$9,9,FALSE) ->  | AQ76: 2017 | AS76: =IF(AQ76,VLOOKUP(AQ76,FEM!$AS$468:$AT$523,2)) -> 4.493
A77: F | X77: FALSE | Y77: =IF(AND(H77<1936),VLOOKUP(I77,Feuil1!$F$10:$O$24,9),IF(AND(H77>=1942,H77<1947),VLOOKUP(I77,Feuil1!$F$10:$O$24,9),IF(AND(H77>=1947,H77<1952),VLOOKUP(I77,Feuil1!$F$10:$O$24,8),IF(AND(H77>=1952,H77<1957),VLOOKUP(I77,Feuil1!$F$10:$O$24,7),IF(AND(H77>=1957,H77<1962),VLOOKUP(I77,Feuil1!$F$10:$O$24,6),IF(AND(H77>=1962,H77<1967),VLOOKUP(I77,Feuil1!$F$10:$O$24,5),IF(AND(H77>=1967,H77<1972),VLOOKUP(I77,Feuil1!$F$10:$O$24,4),IF(AND(H77>=1972,H77<1977),VLOOKUP(I77,Feuil1!$F$10:$O$24,3),IF(AND(H77>=1977,H77<1982),VLOOKUP(I77,Feuil1!$F$10:$O$24,2),VLOOKUP(I77,Feuil1!$F$10:$O$24,2)))))))))) ->  | AA77: =T77-HLOOKUP(Y77,Feuil1!$C$1:$BF$9,2,FALSE) ->  | AB77: =T77-HLOOKUP(Y77,Feuil1!$C$1:$BF$9,3,FALSE) ->  | AC77: =T77-HLOOKUP(Y77,Feuil1!$C$1:$BF$9,4,FALSE) ->  | AD77: =T77-HLOOKUP(Y77,Feuil1!$C$1:$BF$9,5,FALSE) ->  | AE77: =T77-HLOOKUP(Y77,Feuil1!$C$1:$BF$9,6,FALSE) ->  | AF77: =T77-HLOOKUP(Y77,Feuil1!$C$1:$BF$9,7,FALSE) ->  | AG77: =T77-HLOOKUP(Y77,Feuil1!$C$1:$BF$9,8,FALSE) ->  | AH77: =T77-HLOOKUP(Y77,Feuil1!$C$1:$BF$9,9,FALSE) ->  | AQ77: 2017 | AS77: =IF(AQ77,VLOOKUP(AQ77,FEM!$AS$468:$AT$523,2)) -> 4.493
A78: F | X78: FALSE | Y78: =IF(AND(H78<1936),VLOOKUP(I78,Feuil1!$F$10:$O$24,9),IF(AND(H78>=1942,H78<1947),VLOOKUP(I78,Feuil1!$F$10:$O$24,9),IF(AND(H78>=1947,H78<1952),VLOOKUP(I78,Feuil1!$F$10:$O$24,8),IF(AND(H78>=1952,H78<1957),VLOOKUP(I78,Feuil1!$F$10:$O$24,7),IF(AND(H78>=1957,H78<1962),VLOOKUP(I78,Feuil1!$F$10:$O$24,6),IF(AND(H78>=1962,H78<1967),VLOOKUP(I78,Feuil1!$F$10:$O$24,5),IF(AND(H78>=1967,H78<1972),VLOOKUP(I78,Feuil1!$F$10:$O$24,4),IF(AND(H78>=1972,H78<1977),VLOOKUP(I78,Feuil1!$F$10:$O$24,3),IF(AND(H78>=1977,H78<1982),VLOOKUP(I78,Feuil1!$F$10:$O$24,2),VLOOKUP(I78,Feuil1!$F$10:$O$24,2)))))))))) ->  | AA78: =T78-HLOOKUP(Y78,Feuil1!$C$1:$BF$9,2,FALSE) ->  | AB78: =T78-HLOOKUP(Y78,Feuil1!$C$1:$BF$9,3,FALSE) ->  | AC78: =T78-HLOOKUP(Y78,Feuil1!$C$1:$BF$9,4,FALSE) ->  | AD78: =T78-HLOOKUP(Y78,Feuil1!$C$1:$BF$9,5,FALSE) ->  | AE78: =T78-HLOOKUP(Y78,Feuil1!$C$1:$BF$9,6,FALSE) ->  | AF78: =T78-HLOOKUP(Y78,Feuil1!$C$1:$BF$9,7,FALSE) ->  | AG78: =T78-HLOOKUP(Y78,Feuil1!$C$1:$BF$9,8,FALSE) ->  | AH78: =T78-HLOOKUP(Y78,Feuil1!$C$1:$BF$9,9,FALSE) ->  | AQ78: 2017 | AS78: =IF(AQ78,VLOOKUP(AQ78,FEM!$AS$468:$AT$523,2)) -> 4.493
A79: F | X79: FALSE | Y79: =IF(AND(H79<1936),VLOOKUP(I79,Feuil1!$F$10:$O$24,9),IF(AND(H79>=1942,H79<1947),VLOOKUP(I79,Feuil1!$F$10:$O$24,9),IF(AND(H79>=1947,H79<1952),VLOOKUP(I79,Feuil1!$F$10:$O$24,8),IF(AND(H79>=1952,H79<1957),VLOOKUP(I79,Feuil1!$F$10:$O$24,7),IF(AND(H79>=1957,H79<1962),VLOOKUP(I79,Feuil1!$F$10:$O$24,6),IF(AND(H79>=1962,H79<1967),VLOOKUP(I79,Feuil1!$F$10:$O$24,5),IF(AND(H79>=1967,H79<1972),VLOOKUP(I79,Feuil1!$F$10:$O$24,4),IF(AND(H79>=1972,H79<1977),VLOOKUP(I79,Feuil1!$F$10:$O$24,3),IF(AND(H79>=1977,H79<1982),VLOOKUP(I79,Feuil1!$F$10:$O$24,2),VLOOKUP(I79,Feuil1!$F$10:$O$24,2)))))))))) ->  | AA79: =T79-HLOOKUP(Y79,Feuil1!$C$1:$BF$9,2,FALSE) ->  | AB79: =T79-HLOOKUP(Y79,Feuil1!$C$1:$BF$9,3,FALSE) ->  | AC79: =T79-HLOOKUP(Y79,Feuil1!$C$1:$BF$9,4,FALSE) ->  | AD79: =T79-HLOOKUP(Y79,Feuil1!$C$1:$BF$9,5,FALSE) ->  | AE79: =T79-HLOOKUP(Y79,Feuil1!$C$1:$BF$9,6,FALSE) ->  | AF79: =T79-HLOOKUP(Y79,Feuil1!$C$1:$BF$9,7,FALSE) ->  | AG79: =T79-HLOOKUP(Y79,Feuil1!$C$1:$BF$9,8,FALSE) ->  | AH79: =T79-HLOOKUP(Y79,Feuil1!$C$1:$BF$9,9,FALSE) ->  | AQ79: 2017 | AS79: =IF(AQ79,VLOOKUP(AQ79,FEM!$AS$468:$AT$523,2)) -> 4.493
A80: F | X80: FALSE | Y80: =IF(AND(H80<1936),VLOOKUP(I80,Feuil1!$F$10:$O$24,9),IF(AND(H80>=1942,H80<1947),VLOOKUP(I80,Feuil1!$F$10:$O$24,9),IF(AND(H80>=1947,H80<1952),VLOOKUP(I80,Feuil1!$F$10:$O$24,8),IF(AND(H80>=1952,H80<1957),VLOOKUP(I80,Feuil1!$F$10:$O$24,7),IF(AND(H80>=1957,H80<1962),VLOOKUP(I80,Feuil1!$F$10:$O$24,6),IF(AND(H80>=1962,H80<1967),VLOOKUP(I80,Feuil1!$F$10:$O$24,5),IF(AND(H80>=1967,H80<1972),VLOOKUP(I80,Feuil1!$F$10:$O$24,4),IF(AND(H80>=1972,H80<1977),VLOOKUP(I80,Feuil1!$F$10:$O$24,3),IF(AND(H80>=1977,H80<1982),VLOOKUP(I80,Feuil1!$F$10:$O$24,2),VLOOKUP(I80,Feuil1!$F$10:$O$24,2)))))))))) ->  | AA80: =T80-HLOOKUP(Y80,Feuil1!$C$1:$BF$9,2,FALSE) ->  | AB80: =T80-HLOOKUP(Y80,Feuil1!$C$1:$BF$9,3,FALSE) ->  | AC80: =T80-HLOOKUP(Y80,Feuil1!$C$1:$BF$9,4,FALSE) ->  | AD80: =T80-HLOOKUP(Y80,Feuil1!$C$1:$BF$9,5,FALSE) ->  | AE80: =T80-HLOOKUP(Y80,Feuil1!$C$1:$BF$9,6,FALSE) ->  | AF80: =T80-HLOOKUP(Y80,Feuil1!$C$1:$BF$9,7,FALSE) ->  | AG80: =T80-HLOOKUP(Y80,Feuil1!$C$1:$BF$9,8,FALSE) ->  | AH80: =T80-HLOOKUP(Y80,Feuil1!$C$1:$BF$9,9,FALSE) ->  | AQ80: 2017 | AS80: =IF(AQ80,VLOOKUP(AQ80,FEM!$AS$468:$AT$523,2)) -> 4.493
A81: F | X81: FALSE | Y81: =IF(AND(H81<1936),VLOOKUP(I81,Feuil1!$F$10:$O$24,9),IF(AND(H81>=1942,H81<1947),VLOOKUP(I81,Feuil1!$F$10:$O$24,9),IF(AND(H81>=1947,H81<1952),VLOOKUP(I81,Feuil1!$F$10:$O$24,8),IF(AND(H81>=1952,H81<1957),VLOOKUP(I81,Feuil1!$F$10:$O$24,7),IF(AND(H81>=1957,H81<1962),VLOOKUP(I81,Feuil1!$F$10:$O$24,6),IF(AND(H81>=1962,H81<1967),VLOOKUP(I81,Feuil1!$F$10:$O$24,5),IF(AND(H81>=1967,H81<1972),VLOOKUP(I81,Feuil1!$F$10:$O$24,4),IF(AND(H81>=1972,H81<1977),VLOOKUP(I81,Feuil1!$F$10:$O$24,3),IF(AND(H81>=1977,H81<1982),VLOOKUP(I81,Feuil1!$F$10:$O$24,2),VLOOKUP(I81,Feuil1!$F$10:$O$24,2)))))))))) ->  | AA81: =T81-HLOOKUP(Y81,Feuil1!$C$1:$BF$9,2,FALSE) ->  | AB81: =T81-HLOOKUP(Y81,Feuil1!$C$1:$BF$9,3,FALSE) ->  | AC81: =T81-HLOOKUP(Y81,Feuil1!$C$1:$BF$9,4,FALSE) ->  | AD81: =T81-HLOOKUP(Y81,Feuil1!$C$1:$BF$9,5,FALSE) ->  | AE81: =T81-HLOOKUP(Y81,Feuil1!$C$1:$BF$9,6,FALSE) ->  | AF81: =T81-HLOOKUP(Y81,Feuil1!$C$1:$BF$9,7,FALSE) ->  | AG81: =T81-HLOOKUP(Y81,Feuil1!$C$1:$BF$9,8,FALSE) ->  | AH81: =T81-HLOOKUP(Y81,Feuil1!$C$1:$BF$9,9,FALSE) ->  | AQ81: 2017 | AS81: =IF(AQ81,VLOOKUP(AQ81,FEM!$AS$468:$AT$523,2)) -> 4.493
A82: F | X82: FALSE | Y82: =IF(AND(H82<1936),VLOOKUP(I82,Feuil1!$F$10:$O$24,9),IF(AND(H82>=1942,H82<1947),VLOOKUP(I82,Feuil1!$F$10:$O$24,9),IF(AND(H82>=1947,H82<1952),VLOOKUP(I82,Feuil1!$F$10:$O$24,8),IF(AND(H82>=1952,H82<1957),VLOOKUP(I82,Feuil1!$F$10:$O$24,7),IF(AND(H82>=1957,H82<1962),VLOOKUP(I82,Feuil1!$F$10:$O$24,6),IF(AND(H82>=1962,H82<1967),VLOOKUP(I82,Feuil1!$F$10:$O$24,5),IF(AND(H82>=1967,H82<1972),VLOOKUP(I82,Feuil1!$F$10:$O$24,4),IF(AND(H82>=1972,H82<1977),VLOOKUP(I82,Feuil1!$F$10:$O$24,3),IF(AND(H82>=1977,H82<1982),VLOOKUP(I82,Feuil1!$F$10:$O$24,2),VLOOKUP(I82,Feuil1!$F$10:$O$24,2)))))))))) ->  | AA82: =T82-HLOOKUP(Y82,Feuil1!$C$1:$BF$9,2,FALSE) ->  | AB82: =T82-HLOOKUP(Y82,Feuil1!$C$1:$BF$9,3,FALSE) ->  | AC82: =T82-HLOOKUP(Y82,Feuil1!$C$1:$BF$9,4,FALSE) ->  | AD82: =T82-HLOOKUP(Y82,Feuil1!$C$1:$BF$9,5,FALSE) ->  | AE82: =T82-HLOOKUP(Y82,Feuil1!$C$1:$BF$9,6,FALSE) ->  | AF82: =T82-HLOOKUP(Y82,Feuil1!$C$1:$BF$9,7,FALSE) ->  | AG82: =T82-HLOOKUP(Y82,Feuil1!$C$1:$BF$9,8,FALSE) ->  | AH82: =T82-HLOOKUP(Y82,Feuil1!$C$1:$BF$9,9,FALSE) ->  | AQ82: 2017 | AS82: =IF(AQ82,VLOOKUP(AQ82,FEM!$AS$468:$AT$523,2)) -> 4.493
A83: F | X83: FALSE | Y83: =IF(AND(H83<1936),VLOOKUP(I83,Feuil1!$F$10:$O$24,9),IF(AND(H83>=1942,H83<1947),VLOOKUP(I83,Feuil1!$F$10:$O$24,9),IF(AND(H83>=1947,H83<1952),VLOOKUP(I83,Feuil1!$F$10:$O$24,8),IF(AND(H83>=1952,H83<1957),VLOOKUP(I83,Feuil1!$F$10:$O$24,7),IF(AND(H83>=1957,H83<1962),VLOOKUP(I83,Feuil1!$F$10:$O$24,6),IF(AND(H83>=1962,H83<1967),VLOOKUP(I83,Feuil1!$F$10:$O$24,5),IF(AND(H83>=1967,H83<1972),VLOOKUP(I83,Feuil1!$F$10:$O$24,4),IF(AND(H83>=1972,H83<1977),VLOOKUP(I83,Feuil1!$F$10:$O$24,3),IF(AND(H83>=1977,H83<1982),VLOOKUP(I83,Feuil1!$F$10:$O$24,2),VLOOKUP(I83,Feuil1!$F$10:$O$24,2)))))))))) ->  | AA83: =T83-HLOOKUP(Y83,Feuil1!$C$1:$BF$9,2,FALSE) ->  | AB83: =T83-HLOOKUP(Y83,Feuil1!$C$1:$BF$9,3,FALSE) ->  | AC83: =T83-HLOOKUP(Y83,Feuil1!$C$1:$BF$9,4,FALSE) ->  | AD83: =T83-HLOOKUP(Y83,Feuil1!$C$1:$BF$9,5,FALSE) ->  | AE83: =T83-HLOOKUP(Y83,Feuil1!$C$1:$BF$9,6,FALSE) ->  | AF83: =T83-HLOOKUP(Y83,Feuil1!$C$1:$BF$9,7,FALSE) ->  | AG83: =T83-HLOOKUP(Y83,Feuil1!$C$1:$BF$9,8,FALSE) ->  | AH83: =T83-HLOOKUP(Y83,Feuil1!$C$1:$BF$9,9,FALSE) ->  | AQ83: 2017 | AS83: =IF(AQ83,VLOOKUP(AQ83,FEM!$AS$468:$AT$523,2)) -> 4.493
A84: F | X84: FALSE | Y84: =IF(AND(H84<1936),VLOOKUP(I84,Feuil1!$F$10:$O$24,9),IF(AND(H84>=1942,H84<1947),VLOOKUP(I84,Feuil1!$F$10:$O$24,9),IF(AND(H84>=1947,H84<1952),VLOOKUP(I84,Feuil1!$F$10:$O$24,8),IF(AND(H84>=1952,H84<1957),VLOOKUP(I84,Feuil1!$F$10:$O$24,7),IF(AND(H84>=1957,H84<1962),VLOOKUP(I84,Feuil1!$F$10:$O$24,6),IF(AND(H84>=1962,H84<1967),VLOOKUP(I84,Feuil1!$F$10:$O$24,5),IF(AND(H84>=1967,H84<1972),VLOOKUP(I84,Feuil1!$F$10:$O$24,4),IF(AND(H84>=1972,H84<1977),VLOOKUP(I84,Feuil1!$F$10:$O$24,3),IF(AND(H84>=1977,H84<1982),VLOOKUP(I84,Feuil1!$F$10:$O$24,2),VLOOKUP(I84,Feuil1!$F$10:$O$24,2)))))))))) ->  | AA84: =T84-HLOOKUP(Y84,Feuil1!$C$1:$BF$9,2,FALSE) ->  | AB84: =T84-HLOOKUP(Y84,Feuil1!$C$1:$BF$9,3,FALSE) ->  | AC84: =T84-HLOOKUP(Y84,Feuil1!$C$1:$BF$9,4,FALSE) ->  | AD84: =T84-HLOOKUP(Y84,Feuil1!$C$1:$BF$9,5,FALSE) ->  | AE84: =T84-HLOOKUP(Y84,Feuil1!$C$1:$BF$9,6,FALSE) ->  | AF84: =T84-HLOOKUP(Y84,Feuil1!$C$1:$BF$9,7,FALSE) ->  | AG84: =T84-HLOOKUP(Y84,Feuil1!$C$1:$BF$9,8,FALSE) ->  | AH84: =T84-HLOOKUP(Y84,Feuil1!$C$1:$BF$9,9,FALSE) ->  | AQ84: 2017 | AS84: =IF(AQ84,VLOOKUP(AQ84,FEM!$AS$468:$AT$523,2)) -> 4.493
A85: F | X85: FALSE | Y85: =IF(AND(H85<1936),VLOOKUP(I85,Feuil1!$F$10:$O$24,9),IF(AND(H85>=1942,H85<1947),VLOOKUP(I85,Feuil1!$F$10:$O$24,9),IF(AND(H85>=1947,H85<1952),VLOOKUP(I85,Feuil1!$F$10:$O$24,8),IF(AND(H85>=1952,H85<1957),VLOOKUP(I85,Feuil1!$F$10:$O$24,7),IF(AND(H85>=1957,H85<1962),VLOOKUP(I85,Feuil1!$F$10:$O$24,6),IF(AND(H85>=1962,H85<1967),VLOOKUP(I85,Feuil1!$F$10:$O$24,5),IF(AND(H85>=1967,H85<1972),VLOOKUP(I85,Feuil1!$F$10:$O$24,4),IF(AND(H85>=1972,H85<1977),VLOOKUP(I85,Feuil1!$F$10:$O$24,3),IF(AND(H85>=1977,H85<1982),VLOOKUP(I85,Feuil1!$F$10:$O$24,2),VLOOKUP(I85,Feuil1!$F$10:$O$24,2)))))))))) ->  | AA85: =T85-HLOOKUP(Y85,Feuil1!$C$1:$BF$9,2,FALSE) ->  | AB85: =T85-HLOOKUP(Y85,Feuil1!$C$1:$BF$9,3,FALSE) ->  | AC85: =T85-HLOOKUP(Y85,Feuil1!$C$1:$BF$9,4,FALSE) ->  | AD85: =T85-HLOOKUP(Y85,Feuil1!$C$1:$BF$9,5,FALSE) ->  | AE85: =T85-HLOOKUP(Y85,Feuil1!$C$1:$BF$9,6,FALSE) ->  | AF85: =T85-HLOOKUP(Y85,Feuil1!$C$1:$BF$9,7,FALSE) ->  | AG85: =T85-HLOOKUP(Y85,Feuil1!$C$1:$BF$9,8,FALSE) ->  | AH85: =T85-HLOOKUP(Y85,Feuil1!$C$1:$BF$9,9,FALSE) ->  | AQ85: 2017 | AS85: =IF(AQ85,VLOOKUP(AQ85,FEM!$AS$468:$AT$523,2)) -> 4.493
A86: F | X86: FALSE | Y86: =IF(AND(H86<1936),VLOOKUP(I86,Feuil1!$F$10:$O$24,9),IF(AND(H86>=1942,H86<1947),VLOOKUP(I86,Feuil1!$F$10:$O$24,9),IF(AND(H86>=1947,H86<1952),VLOOKUP(I86,Feuil1!$F$10:$O$24,8),IF(AND(H86>=1952,H86<1957),VLOOKUP(I86,Feuil1!$F$10:$O$24,7),IF(AND(H86>=1957,H86<1962),VLOOKUP(I86,Feuil1!$F$10:$O$24,6),IF(AND(H86>=1962,H86<1967),VLOOKUP(I86,Feuil1!$F$10:$O$24,5),IF(AND(H86>=1967,H86<1972),VLOOKUP(I86,Feuil1!$F$10:$O$24,4),IF(AND(H86>=1972,H86<1977),VLOOKUP(I86,Feuil1!$F$10:$O$24,3),IF(AND(H86>=1977,H86<1982),VLOOKUP(I86,Feuil1!$F$10:$O$24,2),VLOOKUP(I86,Feuil1!$F$10:$O$24,2)))))))))) ->  | AA86: =T86-HLOOKUP(Y86,Feuil1!$C$1:$BF$9,2,FALSE) ->  | AB86: =T86-HLOOKUP(Y86,Feuil1!$C$1:$BF$9,3,FALSE) ->  | AC86: =T86-HLOOKUP(Y86,Feuil1!$C$1:$BF$9,4,FALSE) ->  | AD86: =T86-HLOOKUP(Y86,Feuil1!$C$1:$BF$9,5,FALSE) ->  | AE86: =T86-HLOOKUP(Y86,Feuil1!$C$1:$BF$9,6,FALSE) ->  | AF86: =T86-HLOOKUP(Y86,Feuil1!$C$1:$BF$9,7,FALSE) ->  | AG86: =T86-HLOOKUP(Y86,Feuil1!$C$1:$BF$9,8,FALSE) ->  | AH86: =T86-HLOOKUP(Y86,Feuil1!$C$1:$BF$9,9,FALSE) ->  | AQ86: 2017 | AS86: =IF(AQ86,VLOOKUP(AQ86,FEM!$AS$468:$AT$523,2)) -> 4.493
A87: F | X87: FALSE | Y87: =IF(AND(H87<1936),VLOOKUP(I87,Feuil1!$F$10:$O$24,9),IF(AND(H87>=1942,H87<1947),VLOOKUP(I87,Feuil1!$F$10:$O$24,9),IF(AND(H87>=1947,H87<1952),VLOOKUP(I87,Feuil1!$F$10:$O$24,8),IF(AND(H87>=1952,H87<1957),VLOOKUP(I87,Feuil1!$F$10:$O$24,7),IF(AND(H87>=1957,H87<1962),VLOOKUP(I87,Feuil1!$F$10:$O$24,6),IF(AND(H87>=1962,H87<1967),VLOOKUP(I87,Feuil1!$F$10:$O$24,5),IF(AND(H87>=1967,H87<1972),VLOOKUP(I87,Feuil1!$F$10:$O$24,4),IF(AND(H87>=1972,H87<1977),VLOOKUP(I87,Feuil1!$F$10:$O$24,3),IF(AND(H87>=1977,H87<1982),VLOOKUP(I87,Feuil1!$F$10:$O$24,2),VLOOKUP(I87,Feuil1!$F$10:$O$24,2)))))))))) ->  | AA87: =T87-HLOOKUP(Y87,Feuil1!$C$1:$BF$9,2,FALSE) ->  | AB87: =T87-HLOOKUP(Y87,Feuil1!$C$1:$BF$9,3,FALSE) ->  | AC87: =T87-HLOOKUP(Y87,Feuil1!$C$1:$BF$9,4,FALSE) ->  | AD87: =T87-HLOOKUP(Y87,Feuil1!$C$1:$BF$9,5,FALSE) ->  | AE87: =T87-HLOOKUP(Y87,Feuil1!$C$1:$BF$9,6,FALSE) ->  | AF87: =T87-HLOOKUP(Y87,Feuil1!$C$1:$BF$9,7,FALSE) ->  | AG87: =T87-HLOOKUP(Y87,Feuil1!$C$1:$BF$9,8,FALSE) ->  | AH87: =T87-HLOOKUP(Y87,Feuil1!$C$1:$BF$9,9,FALSE) ->  | AQ87: 2017 | AS87: =IF(AQ87,VLOOKUP(AQ87,FEM!$AS$468:$AT$523,2)) -> 4.493
A88: F | X88: FALSE | Y88: =IF(AND(H88<1936),VLOOKUP(I88,Feuil1!$F$10:$O$24,9),IF(AND(H88>=1942,H88<1947),VLOOKUP(I88,Feuil1!$F$10:$O$24,9),IF(AND(H88>=1947,H88<1952),VLOOKUP(I88,Feuil1!$F$10:$O$24,8),IF(AND(H88>=1952,H88<1957),VLOOKUP(I88,Feuil1!$F$10:$O$24,7),IF(AND(H88>=1957,H88<1962),VLOOKUP(I88,Feuil1!$F$10:$O$24,6),IF(AND(H88>=1962,H88<1967),VLOOKUP(I88,Feuil1!$F$10:$O$24,5),IF(AND(H88>=1967,H88<1972),VLOOKUP(I88,Feuil1!$F$10:$O$24,4),IF(AND(H88>=1972,H88<1977),VLOOKUP(I88,Feuil1!$F$10:$O$24,3),IF(AND(H88>=1977,H88<1982),VLOOKUP(I88,Feuil1!$F$10:$O$24,2),VLOOKUP(I88,Feuil1!$F$10:$O$24,2)))))))))) ->  | AA88: =T88-HLOOKUP(Y88,Feuil1!$C$1:$BF$9,2,FALSE) ->  | AB88: =T88-HLOOKUP(Y88,Feuil1!$C$1:$BF$9,3,FALSE) ->  | AC88: =T88-HLOOKUP(Y88,Feuil1!$C$1:$BF$9,4,FALSE) ->  | AD88: =T88-HLOOKUP(Y88,Feuil1!$C$1:$BF$9,5,FALSE) ->  | AE88: =T88-HLOOKUP(Y88,Feuil1!$C$1:$BF$9,6,FALSE) ->  | AF88: =T88-HLOOKUP(Y88,Feuil1!$C$1:$BF$9,7,FALSE) ->  | AG88: =T88-HLOOKUP(Y88,Feuil1!$C$1:$BF$9,8,FALSE) ->  | AH88: =T88-HLOOKUP(Y88,Feuil1!$C$1:$BF$9,9,FALSE) ->  | AQ88: 2017 | AS88: =IF(AQ88,VLOOKUP(AQ88,FEM!$AS$468:$AT$523,2)) -> 4.493
A89: F | X89: FALSE | Y89: =IF(AND(H89<1936),VLOOKUP(I89,Feuil1!$F$10:$O$24,9),IF(AND(H89>=1942,H89<1947),VLOOKUP(I89,Feuil1!$F$10:$O$24,9),IF(AND(H89>=1947,H89<1952),VLOOKUP(I89,Feuil1!$F$10:$O$24,8),IF(AND(H89>=1952,H89<1957),VLOOKUP(I89,Feuil1!$F$10:$O$24,7),IF(AND(H89>=1957,H89<1962),VLOOKUP(I89,Feuil1!$F$10:$O$24,6),IF(AND(H89>=1962,H89<1967),VLOOKUP(I89,Feuil1!$F$10:$O$24,5),IF(AND(H89>=1967,H89<1972),VLOOKUP(I89,Feuil1!$F$10:$O$24,4),IF(AND(H89>=1972,H89<1977),VLOOKUP(I89,Feuil1!$F$10:$O$24,3),IF(AND(H89>=1977,H89<1982),VLOOKUP(I89,Feuil1!$F$10:$O$24,2),VLOOKUP(I89,Feuil1!$F$10:$O$24,2)))))))))) ->  | AA89: =T89-HLOOKUP(Y89,Feuil1!$C$1:$BF$9,2,FALSE) ->  | AB89: =T89-HLOOKUP(Y89,Feuil1!$C$1:$BF$9,3,FALSE) ->  | AC89: =T89-HLOOKUP(Y89,Feuil1!$C$1:$BF$9,4,FALSE) ->  | AD89: =T89-HLOOKUP(Y89,Feuil1!$C$1:$BF$9,5,FALSE) ->  | AE89: =T89-HLOOKUP(Y89,Feuil1!$C$1:$BF$9,6,FALSE) ->  | AF89: =T89-HLOOKUP(Y89,Feuil1!$C$1:$BF$9,7,FALSE) ->  | AG89: =T89-HLOOKUP(Y89,Feuil1!$C$1:$BF$9,8,FALSE) ->  | AH89: =T89-HLOOKUP(Y89,Feuil1!$C$1:$BF$9,9,FALSE) ->  | AQ89: 2017 | AS89: =IF(AQ89,VLOOKUP(AQ89,FEM!$AS$468:$AT$523,2)) -> 4.493
A90: F | X90: FALSE | Y90: =IF(AND(H90<1936),VLOOKUP(I90,Feuil1!$F$10:$O$24,9),IF(AND(H90>=1942,H90<1947),VLOOKUP(I90,Feuil1!$F$10:$O$24,9),IF(AND(H90>=1947,H90<1952),VLOOKUP(I90,Feuil1!$F$10:$O$24,8),IF(AND(H90>=1952,H90<1957),VLOOKUP(I90,Feuil1!$F$10:$O$24,7),IF(AND(H90>=1957,H90<1962),VLOOKUP(I90,Feuil1!$F$10:$O$24,6),IF(AND(H90>=1962,H90<1967),VLOOKUP(I90,Feuil1!$F$10:$O$24,5),IF(AND(H90>=1967,H90<1972),VLOOKUP(I90,Feuil1!$F$10:$O$24,4),IF(AND(H90>=1972,H90<1977),VLOOKUP(I90,Feuil1!$F$10:$O$24,3),IF(AND(H90>=1977,H90<1982),VLOOKUP(I90,Feuil1!$F$10:$O$24,2),VLOOKUP(I90,Feuil1!$F$10:$O$24,2)))))))))) ->  | AA90: =T90-HLOOKUP(Y90,Feuil1!$C$1:$BF$9,2,FALSE) ->  | AB90: =T90-HLOOKUP(Y90,Feuil1!$C$1:$BF$9,3,FALSE) ->  | AC90: =T90-HLOOKUP(Y90,Feuil1!$C$1:$BF$9,4,FALSE) ->  | AD90: =T90-HLOOKUP(Y90,Feuil1!$C$1:$BF$9,5,FALSE) ->  | AE90: =T90-HLOOKUP(Y90,Feuil1!$C$1:$BF$9,6,FALSE) ->  | AF90: =T90-HLOOKUP(Y90,Feuil1!$C$1:$BF$9,7,FALSE) ->  | AG90: =T90-HLOOKUP(Y90,Feuil1!$C$1:$BF$9,8,FALSE) ->  | AH90: =T90-HLOOKUP(Y90,Feuil1!$C$1:$BF$9,9,FALSE) ->  | AQ90: 2017 | AS90: =IF(AQ90,VLOOKUP(AQ90,FEM!$AS$468:$AT$523,2)) -> 4.493
A91: F | X91: FALSE | Y91: =IF(AND(H91<1936),VLOOKUP(I91,Feuil1!$F$10:$O$24,9),IF(AND(H91>=1942,H91<1947),VLOOKUP(I91,Feuil1!$F$10:$O$24,9),IF(AND(H91>=1947,H91<1952),VLOOKUP(I91,Feuil1!$F$10:$O$24,8),IF(AND(H91>=1952,H91<1957),VLOOKUP(I91,Feuil1!$F$10:$O$24,7),IF(AND(H91>=1957,H91<1962),VLOOKUP(I91,Feuil1!$F$10:$O$24,6),IF(AND(H91>=1962,H91<1967),VLOOKUP(I91,Feuil1!$F$10:$O$24,5),IF(AND(H91>=1967,H91<1972),VLOOKUP(I91,Feuil1!$F$10:$O$24,4),IF(AND(H91>=1972,H91<1977),VLOOKUP(I91,Feuil1!$F$10:$O$24,3),IF(AND(H91>=1977,H91<1982),VLOOKUP(I91,Feuil1!$F$10:$O$24,2),VLOOKUP(I91,Feuil1!$F$10:$O$24,2)))))))))) ->  | AA91: =T91-HLOOKUP(Y91,Feuil1!$C$1:$BF$9,2,FALSE) ->  | AB91: =T91-HLOOKUP(Y91,Feuil1!$C$1:$BF$9,3,FALSE) ->  | AC91: =T91-HLOOKUP(Y91,Feuil1!$C$1:$BF$9,4,FALSE) ->  | AD91: =T91-HLOOKUP(Y91,Feuil1!$C$1:$BF$9,5,FALSE) ->  | AE91: =T91-HLOOKUP(Y91,Feuil1!$C$1:$BF$9,6,FALSE) ->  | AF91: =T91-HLOOKUP(Y91,Feuil1!$C$1:$BF$9,7,FALSE) ->  | AG91: =T91-HLOOKUP(Y91,Feuil1!$C$1:$BF$9,8,FALSE) ->  | AH91: =T91-HLOOKUP(Y91,Feuil1!$C$1:$BF$9,9,FALSE) ->  | AQ91: 2017 | AS91: =IF(AQ91,VLOOKUP(AQ91,FEM!$AS$468:$AT$523,2)) -> 4.493
A92: F | X92: FALSE | Y92: =IF(AND(H92<1936),VLOOKUP(I92,Feuil1!$F$10:$O$24,9),IF(AND(H92>=1942,H92<1947),VLOOKUP(I92,Feuil1!$F$10:$O$24,9),IF(AND(H92>=1947,H92<1952),VLOOKUP(I92,Feuil1!$F$10:$O$24,8),IF(AND(H92>=1952,H92<1957),VLOOKUP(I92,Feuil1!$F$10:$O$24,7),IF(AND(H92>=1957,H92<1962),VLOOKUP(I92,Feuil1!$F$10:$O$24,6),IF(AND(H92>=1962,H92<1967),VLOOKUP(I92,Feuil1!$F$10:$O$24,5),IF(AND(H92>=1967,H92<1972),VLOOKUP(I92,Feuil1!$F$10:$O$24,4),IF(AND(H92>=1972,H92<1977),VLOOKUP(I92,Feuil1!$F$10:$O$24,3),IF(AND(H92>=1977,H92<1982),VLOOKUP(I92,Feuil1!$F$10:$O$24,2),VLOOKUP(I92,Feuil1!$F$10:$O$24,2)))))))))) ->  | AA92: =T92-HLOOKUP(Y92,Feuil1!$C$1:$BF$9,2,FALSE) ->  | AB92: =T92-HLOOKUP(Y92,Feuil1!$C$1:$BF$9,3,FALSE) ->  | AC92: =T92-HLOOKUP(Y92,Feuil1!$C$1:$BF$9,4,FALSE) ->  | AD92: =T92-HLOOKUP(Y92,Feuil1!$C$1:$BF$9,5,FALSE) ->  | AE92: =T92-HLOOKUP(Y92,Feuil1!$C$1:$BF$9,6,FALSE) ->  | AF92: =T92-HLOOKUP(Y92,Feuil1!$C$1:$BF$9,7,FALSE) ->  | AG92: =T92-HLOOKUP(Y92,Feuil1!$C$1:$BF$9,8,FALSE) ->  | AH92: =T92-HLOOKUP(Y92,Feuil1!$C$1:$BF$9,9,FALSE) ->  | AQ92: 2017 | AS92: =IF(AQ92,VLOOKUP(AQ92,FEM!$AS$468:$AT$523,2)) -> 4.493
A93: F | X93: FALSE | Y93: =IF(AND(H93<1936),VLOOKUP(I93,Feuil1!$F$10:$O$24,9),IF(AND(H93>=1942,H93<1947),VLOOKUP(I93,Feuil1!$F$10:$O$24,9),IF(AND(H93>=1947,H93<1952),VLOOKUP(I93,Feuil1!$F$10:$O$24,8),IF(AND(H93>=1952,H93<1957),VLOOKUP(I93,Feuil1!$F$10:$O$24,7),IF(AND(H93>=1957,H93<1962),VLOOKUP(I93,Feuil1!$F$10:$O$24,6),IF(AND(H93>=1962,H93<1967),VLOOKUP(I93,Feuil1!$F$10:$O$24,5),IF(AND(H93>=1967,H93<1972),VLOOKUP(I93,Feuil1!$F$10:$O$24,4),IF(AND(H93>=1972,H93<1977),VLOOKUP(I93,Feuil1!$F$10:$O$24,3),IF(AND(H93>=1977,H93<1982),VLOOKUP(I93,Feuil1!$F$10:$O$24,2),VLOOKUP(I93,Feuil1!$F$10:$O$24,2)))))))))) ->  | AA93: =T93-HLOOKUP(Y93,Feuil1!$C$1:$BF$9,2,FALSE) ->  | AB93: =T93-HLOOKUP(Y93,Feuil1!$C$1:$BF$9,3,FALSE) ->  | AC93: =T93-HLOOKUP(Y93,Feuil1!$C$1:$BF$9,4,FALSE) ->  | AD93: =T93-HLOOKUP(Y93,Feuil1!$C$1:$BF$9,5,FALSE) ->  | AE93: =T93-HLOOKUP(Y93,Feuil1!$C$1:$BF$9,6,FALSE) ->  | AF93: =T93-HLOOKUP(Y93,Feuil1!$C$1:$BF$9,7,FALSE) ->  | AG93: =T93-HLOOKUP(Y93,Feuil1!$C$1:$BF$9,8,FALSE) ->  | AH93: =T93-HLOOKUP(Y93,Feuil1!$C$1:$BF$9,9,FALSE) ->  | AQ93: 2017 | AS93: =IF(AQ93,VLOOKUP(AQ93,FEM!$AS$468:$AT$523,2)) -> 4.493
A94: F | X94: FALSE | Y94: =IF(AND(H94<1936),VLOOKUP(I94,Feuil1!$F$10:$O$24,9),IF(AND(H94>=1942,H94<1947),VLOOKUP(I94,Feuil1!$F$10:$O$24,9),IF(AND(H94>=1947,H94<1952),VLOOKUP(I94,Feuil1!$F$10:$O$24,8),IF(AND(H94>=1952,H94<1957),VLOOKUP(I94,Feuil1!$F$10:$O$24,7),IF(AND(H94>=1957,H94<1962),VLOOKUP(I94,Feuil1!$F$10:$O$24,6),IF(AND(H94>=1962,H94<1967),VLOOKUP(I94,Feuil1!$F$10:$O$24,5),IF(AND(H94>=1967,H94<1972),VLOOKUP(I94,Feuil1!$F$10:$O$24,4),IF(AND(H94>=1972,H94<1977),VLOOKUP(I94,Feuil1!$F$10:$O$24,3),IF(AND(H94>=1977,H94<1982),VLOOKUP(I94,Feuil1!$F$10:$O$24,2),VLOOKUP(I94,Feuil1!$F$10:$O$24,2)))))))))) ->  | AA94: =T94-HLOOKUP(Y94,Feuil1!$C$1:$BF$9,2,FALSE) ->  | AB94: =T94-HLOOKUP(Y94,Feuil1!$C$1:$BF$9,3,FALSE) ->  | AC94: =T94-HLOOKUP(Y94,Feuil1!$C$1:$BF$9,4,FALSE) ->  | AD94: =T94-HLOOKUP(Y94,Feuil1!$C$1:$BF$9,5,FALSE) ->  | AE94: =T94-HLOOKUP(Y94,Feuil1!$C$1:$BF$9,6,FALSE) ->  | AF94: =T94-HLOOKUP(Y94,Feuil1!$C$1:$BF$9,7,FALSE) ->  | AG94: =T94-HLOOKUP(Y94,Feuil1!$C$1:$BF$9,8,FALSE) ->  | AH94: =T94-HLOOKUP(Y94,Feuil1!$C$1:$BF$9,9,FALSE) ->  | AQ94: 2017 | AS94: =IF(AQ94,VLOOKUP(AQ94,FEM!$AS$468:$AT$523,2)) -> 4.493
A95: F | X95: FALSE | Y95: =IF(AND(H95<1936),VLOOKUP(I95,Feuil1!$F$10:$O$24,9),IF(AND(H95>=1942,H95<1947),VLOOKUP(I95,Feuil1!$F$10:$O$24,9),IF(AND(H95>=1947,H95<1952),VLOOKUP(I95,Feuil1!$F$10:$O$24,8),IF(AND(H95>=1952,H95<1957),VLOOKUP(I95,Feuil1!$F$10:$O$24,7),IF(AND(H95>=1957,H95<1962),VLOOKUP(I95,Feuil1!$F$10:$O$24,6),IF(AND(H95>=1962,H95<1967),VLOOKUP(I95,Feuil1!$F$10:$O$24,5),IF(AND(H95>=1967,H95<1972),VLOOKUP(I95,Feuil1!$F$10:$O$24,4),IF(AND(H95>=1972,H95<1977),VLOOKUP(I95,Feuil1!$F$10:$O$24,3),IF(AND(H95>=1977,H95<1982),VLOOKUP(I95,Feuil1!$F$10:$O$24,2),VLOOKUP(I95,Feuil1!$F$10:$O$24,2)))))))))) ->  | AA95: =T95-HLOOKUP(Y95,Feuil1!$C$1:$BF$9,2,FALSE) ->  | AB95: =T95-HLOOKUP(Y95,Feuil1!$C$1:$BF$9,3,FALSE) ->  | AC95: =T95-HLOOKUP(Y95,Feuil1!$C$1:$BF$9,4,FALSE) ->  | AD95: =T95-HLOOKUP(Y95,Feuil1!$C$1:$BF$9,5,FALSE) ->  | AE95: =T95-HLOOKUP(Y95,Feuil1!$C$1:$BF$9,6,FALSE) ->  | AF95: =T95-HLOOKUP(Y95,Feuil1!$C$1:$BF$9,7,FALSE) ->  | AG95: =T95-HLOOKUP(Y95,Feuil1!$C$1:$BF$9,8,FALSE) ->  | AH95: =T95-HLOOKUP(Y95,Feuil1!$C$1:$BF$9,9,FALSE) ->  | AQ95: 2017 | AS95: =IF(AQ95,VLOOKUP(AQ95,FEM!$AS$468:$AT$523,2)) -> 4.493
A96: F | X96: FALSE | Y96: =IF(AND(H96<1936),VLOOKUP(I96,Feuil1!$F$10:$O$24,9),IF(AND(H96>=1942,H96<1947),VLOOKUP(I96,Feuil1!$F$10:$O$24,9),IF(AND(H96>=1947,H96<1952),VLOOKUP(I96,Feuil1!$F$10:$O$24,8),IF(AND(H96>=1952,H96<1957),VLOOKUP(I96,Feuil1!$F$10:$O$24,7),IF(AND(H96>=1957,H96<1962),VLOOKUP(I96,Feuil1!$F$10:$O$24,6),IF(AND(H96>=1962,H96<1967),VLOOKUP(I96,Feuil1!$F$10:$O$24,5),IF(AND(H96>=1967,H96<1972),VLOOKUP(I96,Feuil1!$F$10:$O$24,4),IF(AND(H96>=1972,H96<1977),VLOOKUP(I96,Feuil1!$F$10:$O$24,3),IF(AND(H96>=1977,H96<1982),VLOOKUP(I96,Feuil1!$F$10:$O$24,2),VLOOKUP(I96,Feuil1!$F$10:$O$24,2)))))))))) ->  | AA96: =T96-HLOOKUP(Y96,Feuil1!$C$1:$BF$9,2,FALSE) ->  | AB96: =T96-HLOOKUP(Y96,Feuil1!$C$1:$BF$9,3,FALSE) ->  | AC96: =T96-HLOOKUP(Y96,Feuil1!$C$1:$BF$9,4,FALSE) ->  | AD96: =T96-HLOOKUP(Y96,Feuil1!$C$1:$BF$9,5,FALSE) ->  | AE96: =T96-HLOOKUP(Y96,Feuil1!$C$1:$BF$9,6,FALSE) ->  | AF96: =T96-HLOOKUP(Y96,Feuil1!$C$1:$BF$9,7,FALSE) ->  | AG96: =T96-HLOOKUP(Y96,Feuil1!$C$1:$BF$9,8,FALSE) ->  | AH96: =T96-HLOOKUP(Y96,Feuil1!$C$1:$BF$9,9,FALSE) ->  | AQ96: 2017 | AS96: =IF(AQ96,VLOOKUP(AQ96,FEM!$AS$468:$AT$523,2)) -> 4.493
A97: F | X97: FALSE | Y97: =IF(AND(H97<1936),VLOOKUP(I97,Feuil1!$F$10:$O$24,9),IF(AND(H97>=1942,H97<1947),VLOOKUP(I97,Feuil1!$F$10:$O$24,9),IF(AND(H97>=1947,H97<1952),VLOOKUP(I97,Feuil1!$F$10:$O$24,8),IF(AND(H97>=1952,H97<1957),VLOOKUP(I97,Feuil1!$F$10:$O$24,7),IF(AND(H97>=1957,H97<1962),VLOOKUP(I97,Feuil1!$F$10:$O$24,6),IF(AND(H97>=1962,H97<1967),VLOOKUP(I97,Feuil1!$F$10:$O$24,5),IF(AND(H97>=1967,H97<1972),VLOOKUP(I97,Feuil1!$F$10:$O$24,4),IF(AND(H97>=1972,H97<1977),VLOOKUP(I97,Feuil1!$F$10:$O$24,3),IF(AND(H97>=1977,H97<1982),VLOOKUP(I97,Feuil1!$F$10:$O$24,2),VLOOKUP(I97,Feuil1!$F$10:$O$24,2)))))))))) ->  | AA97: =T97-HLOOKUP(Y97,Feuil1!$C$1:$BF$9,2,FALSE) ->  | AB97: =T97-HLOOKUP(Y97,Feuil1!$C$1:$BF$9,3,FALSE) ->  | AC97: =T97-HLOOKUP(Y97,Feuil1!$C$1:$BF$9,4,FALSE) ->  | AD97: =T97-HLOOKUP(Y97,Feuil1!$C$1:$BF$9,5,FALSE) ->  | AE97: =T97-HLOOKUP(Y97,Feuil1!$C$1:$BF$9,6,FALSE) ->  | AF97: =T97-HLOOKUP(Y97,Feuil1!$C$1:$BF$9,7,FALSE) ->  | AG97: =T97-HLOOKUP(Y97,Feuil1!$C$1:$BF$9,8,FALSE) ->  | AH97: =T97-HLOOKUP(Y97,Feuil1!$C$1:$BF$9,9,FALSE) ->  | AQ97: 2017 | AS97: =IF(AQ97,VLOOKUP(AQ97,FEM!$AS$468:$AT$523,2)) -> 4.493
A98: F | X98: FALSE | Y98: =IF(AND(H98<1936),VLOOKUP(I98,Feuil1!$F$10:$O$24,9),IF(AND(H98>=1942,H98<1947),VLOOKUP(I98,Feuil1!$F$10:$O$24,9),IF(AND(H98>=1947,H98<1952),VLOOKUP(I98,Feuil1!$F$10:$O$24,8),IF(AND(H98>=1952,H98<1957),VLOOKUP(I98,Feuil1!$F$10:$O$24,7),IF(AND(H98>=1957,H98<1962),VLOOKUP(I98,Feuil1!$F$10:$O$24,6),IF(AND(H98>=1962,H98<1967),VLOOKUP(I98,Feuil1!$F$10:$O$24,5),IF(AND(H98>=1967,H98<1972),VLOOKUP(I98,Feuil1!$F$10:$O$24,4),IF(AND(H98>=1972,H98<1977),VLOOKUP(I98,Feuil1!$F$10:$O$24,3),IF(AND(H98>=1977,H98<1982),VLOOKUP(I98,Feuil1!$F$10:$O$24,2),VLOOKUP(I98,Feuil1!$F$10:$O$24,2)))))))))) ->  | AA98: =T98-HLOOKUP(Y98,Feuil1!$C$1:$BF$9,2,FALSE) ->  | AB98: =T98-HLOOKUP(Y98,Feuil1!$C$1:$BF$9,3,FALSE) ->  | AC98: =T98-HLOOKUP(Y98,Feuil1!$C$1:$BF$9,4,FALSE) ->  | AD98: =T98-HLOOKUP(Y98,Feuil1!$C$1:$BF$9,5,FALSE) ->  | AE98: =T98-HLOOKUP(Y98,Feuil1!$C$1:$BF$9,6,FALSE) ->  | AF98: =T98-HLOOKUP(Y98,Feuil1!$C$1:$BF$9,7,FALSE) ->  | AG98: =T98-HLOOKUP(Y98,Feuil1!$C$1:$BF$9,8,FALSE) ->  | AH98: =T98-HLOOKUP(Y98,Feuil1!$C$1:$BF$9,9,FALSE) ->  | AQ98: 2017 | AS98: =IF(AQ98,VLOOKUP(AQ98,FEM!$AS$468:$AT$523,2)) -> 4.493
A99: F | X99: FALSE | Y99: =IF(AND(H99<1936),VLOOKUP(I99,Feuil1!$F$10:$O$24,9),IF(AND(H99>=1942,H99<1947),VLOOKUP(I99,Feuil1!$F$10:$O$24,9),IF(AND(H99>=1947,H99<1952),VLOOKUP(I99,Feuil1!$F$10:$O$24,8),IF(AND(H99>=1952,H99<1957),VLOOKUP(I99,Feuil1!$F$10:$O$24,7),IF(AND(H99>=1957,H99<1962),VLOOKUP(I99,Feuil1!$F$10:$O$24,6),IF(AND(H99>=1962,H99<1967),VLOOKUP(I99,Feuil1!$F$10:$O$24,5),IF(AND(H99>=1967,H99<1972),VLOOKUP(I99,Feuil1!$F$10:$O$24,4),IF(AND(H99>=1972,H99<1977),VLOOKUP(I99,Feuil1!$F$10:$O$24,3),IF(AND(H99>=1977,H99<1982),VLOOKUP(I99,Feuil1!$F$10:$O$24,2),VLOOKUP(I99,Feuil1!$F$10:$O$24,2)))))))))) ->  | AA99: =T99-HLOOKUP(Y99,Feuil1!$C$1:$BF$9,2,FALSE) ->  | AB99: =T99-HLOOKUP(Y99,Feuil1!$C$1:$BF$9,3,FALSE) ->  | AC99: =T99-HLOOKUP(Y99,Feuil1!$C$1:$BF$9,4,FALSE) ->  | AD99: =T99-HLOOKUP(Y99,Feuil1!$C$1:$BF$9,5,FALSE) ->  | AE99: =T99-HLOOKUP(Y99,Feuil1!$C$1:$BF$9,6,FALSE) ->  | AF99: =T99-HLOOKUP(Y99,Feuil1!$C$1:$BF$9,7,FALSE) ->  | AG99: =T99-HLOOKUP(Y99,Feuil1!$C$1:$BF$9,8,FALSE) ->  | AH99: =T99-HLOOKUP(Y99,Feuil1!$C$1:$BF$9,9,FALSE) ->  | AQ99: 2017 | AS99: =IF(AQ99,VLOOKUP(AQ99,FEM!$AS$468:$AT$523,2)) -> 4.493
A100: F | X100: FALSE | Y100: =IF(AND(H100<1936),VLOOKUP(I100,Feuil1!$F$10:$O$24,9),IF(AND(H100>=1942,H100<1947),VLOOKUP(I100,Feuil1!$F$10:$O$24,9),IF(AND(H100>=1947,H100<1952),VLOOKUP(I100,Feuil1!$F$10:$O$24,8),IF(AND(H100>=1952,H100<1957),VLOOKUP(I100,Feuil1!$F$10:$O$24,7),IF(AND(H100>=1957,H100<1962),VLOOKUP(I100,Feuil1!$F$10:$O$24,6),IF(AND(H100>=1962,H100<1967),VLOOKUP(I100,Feuil1!$F$10:$O$24,5),IF(AND(H100>=1967,H100<1972),VLOOKUP(I100,Feuil1!$F$10:$O$24,4),IF(AND(H100>=1972,H100<1977),VLOOKUP(I100,Feuil1!$F$10:$O$24,3),IF(AND(H100>=1977,H100<1982),VLOOKUP(I100,Feuil1!$F$10:$O$24,2),VLOOKUP(I100,Feuil1!$F$10:$O$24,2)))))))))) ->  | AA100: =T100-HLOOKUP(Y100,Feuil1!$C$1:$BF$9,2,FALSE) ->  | AB100: =T100-HLOOKUP(Y100,Feuil1!$C$1:$BF$9,3,FALSE) ->  | AC100: =T100-HLOOKUP(Y100,Feuil1!$C$1:$BF$9,4,FALSE) ->  | AD100: =T100-HLOOKUP(Y100,Feuil1!$C$1:$BF$9,5,FALSE) ->  | AE100: =T100-HLOOKUP(Y100,Feuil1!$C$1:$BF$9,6,FALSE) ->  | AF100: =T100-HLOOKUP(Y100,Feuil1!$C$1:$BF$9,7,FALSE) ->  | AG100: =T100-HLOOKUP(Y100,Feuil1!$C$1:$BF$9,8,FALSE) ->  | AH100: =T100-HLOOKUP(Y100,Feuil1!$C$1:$BF$9,9,FALSE) ->  | AQ100: 2017 | AS100: =IF(AQ100,VLOOKUP(AQ100,FEM!$AS$468:$AT$523,2)) -> 4.493
A101: F | X101: FALSE | Y101: =IF(AND(H101<1936),VLOOKUP(I101,Feuil1!$F$10:$O$24,9),IF(AND(H101>=1942,H101<1947),VLOOKUP(I101,Feuil1!$F$10:$O$24,9),IF(AND(H101>=1947,H101<1952),VLOOKUP(I101,Feuil1!$F$10:$O$24,8),IF(AND(H101>=1952,H101<1957),VLOOKUP(I101,Feuil1!$F$10:$O$24,7),IF(AND(H101>=1957,H101<1962),VLOOKUP(I101,Feuil1!$F$10:$O$24,6),IF(AND(H101>=1962,H101<1967),VLOOKUP(I101,Feuil1!$F$10:$O$24,5),IF(AND(H101>=1967,H101<1972),VLOOKUP(I101,Feuil1!$F$10:$O$24,4),IF(AND(H101>=1972,H101<1977),VLOOKUP(I101,Feuil1!$F$10:$O$24,3),IF(AND(H101>=1977,H101<1982),VLOOKUP(I101,Feuil1!$F$10:$O$24,2),VLOOKUP(I101,Feuil1!$F$10:$O$24,2)))))))))) ->  | AA101: =T101-HLOOKUP(Y101,Feuil1!$C$1:$BF$9,2,FALSE) ->  | AB101: =T101-HLOOKUP(Y101,Feuil1!$C$1:$BF$9,3,FALSE) ->  | AC101: =T101-HLOOKUP(Y101,Feuil1!$C$1:$BF$9,4,FALSE) ->  | AD101: =T101-HLOOKUP(Y101,Feuil1!$C$1:$BF$9,5,FALSE) ->  | AE101: =T101-HLOOKUP(Y101,Feuil1!$C$1:$BF$9,6,FALSE) ->  | AF101: =T101-HLOOKUP(Y101,Feuil1!$C$1:$BF$9,7,FALSE) ->  | AG101: =T101-HLOOKUP(Y101,Feuil1!$C$1:$BF$9,8,FALSE) ->  | AH101: =T101-HLOOKUP(Y101,Feuil1!$C$1:$BF$9,9,FALSE) ->  | AQ101: 2017 | AS101: =IF(AQ101,VLOOKUP(AQ101,FEM!$AS$468:$AT$523,2)) -> 4.493
A102: F | X102: FALSE | Y102: =IF(AND(H102<1936),VLOOKUP(I102,Feuil1!$F$10:$O$24,9),IF(AND(H102>=1942,H102<1947),VLOOKUP(I102,Feuil1!$F$10:$O$24,9),IF(AND(H102>=1947,H102<1952),VLOOKUP(I102,Feuil1!$F$10:$O$24,8),IF(AND(H102>=1952,H102<1957),VLOOKUP(I102,Feuil1!$F$10:$O$24,7),IF(AND(H102>=1957,H102<1962),VLOOKUP(I102,Feuil1!$F$10:$O$24,6),IF(AND(H102>=1962,H102<1967),VLOOKUP(I102,Feuil1!$F$10:$O$24,5),IF(AND(H102>=1967,H102<1972),VLOOKUP(I102,Feuil1!$F$10:$O$24,4),IF(AND(H102>=1972,H102<1977),VLOOKUP(I102,Feuil1!$F$10:$O$24,3),IF(AND(H102>=1977,H102<1982),VLOOKUP(I102,Feuil1!$F$10:$O$24,2),VLOOKUP(I102,Feuil1!$F$10:$O$24,2)))))))))) ->  | AA102: =T102-HLOOKUP(Y102,Feuil1!$C$1:$BF$9,2,FALSE) ->  | AB102: =T102-HLOOKUP(Y102,Feuil1!$C$1:$BF$9,3,FALSE) ->  | AC102: =T102-HLOOKUP(Y102,Feuil1!$C$1:$BF$9,4,FALSE) ->  | AD102: =T102-HLOOKUP(Y102,Feuil1!$C$1:$BF$9,5,FALSE) ->  | AE102: =T102-HLOOKUP(Y102,Feuil1!$C$1:$BF$9,6,FALSE) ->  | AF102: =T102-HLOOKUP(Y102,Feuil1!$C$1:$BF$9,7,FALSE) ->  | AG102: =T102-HLOOKUP(Y102,Feuil1!$C$1:$BF$9,8,FALSE) ->  | AH102: =T102-HLOOKUP(Y102,Feuil1!$C$1:$BF$9,9,FALSE) ->  | AQ102: 2017 | AS102: =IF(AQ102,VLOOKUP(AQ102,FEM!$AS$468:$AT$523,2)) -> 4.493
A103: F | X103: FALSE | Y103: =IF(AND(H103<1936),VLOOKUP(I103,Feuil1!$F$10:$O$24,9),IF(AND(H103>=1942,H103<1947),VLOOKUP(I103,Feuil1!$F$10:$O$24,9),IF(AND(H103>=1947,H103<1952),VLOOKUP(I103,Feuil1!$F$10:$O$24,8),IF(AND(H103>=1952,H103<1957),VLOOKUP(I103,Feuil1!$F$10:$O$24,7),IF(AND(H103>=1957,H103<1962),VLOOKUP(I103,Feuil1!$F$10:$O$24,6),IF(AND(H103>=1962,H103<1967),VLOOKUP(I103,Feuil1!$F$10:$O$24,5),IF(AND(H103>=1967,H103<1972),VLOOKUP(I103,Feuil1!$F$10:$O$24,4),IF(AND(H103>=1972,H103<1977),VLOOKUP(I103,Feuil1!$F$10:$O$24,3),IF(AND(H103>=1977,H103<1982),VLOOKUP(I103,Feuil1!$F$10:$O$24,2),VLOOKUP(I103,Feuil1!$F$10:$O$24,2)))))))))) ->  | AA103: =T103-HLOOKUP(Y103,Feuil1!$C$1:$BF$9,2,FALSE) ->  | AB103: =T103-HLOOKUP(Y103,Feuil1!$C$1:$BF$9,3,FALSE) ->  | AC103: =T103-HLOOKUP(Y103,Feuil1!$C$1:$BF$9,4,FALSE) ->  | AD103: =T103-HLOOKUP(Y103,Feuil1!$C$1:$BF$9,5,FALSE) ->  | AE103: =T103-HLOOKUP(Y103,Feuil1!$C$1:$BF$9,6,FALSE) ->  | AF103: =T103-HLOOKUP(Y103,Feuil1!$C$1:$BF$9,7,FALSE) ->  | AG103: =T103-HLOOKUP(Y103,Feuil1!$C$1:$BF$9,8,FALSE) ->  | AH103: =T103-HLOOKUP(Y103,Feuil1!$C$1:$BF$9,9,FALSE) ->  | AQ103: 2017 | AS103: =IF(AQ103,VLOOKUP(AQ103,FEM!$AS$468:$AT$523,2)) -> 4.493
A104: F | X104: FALSE | Y104: =IF(AND(H104<1936),VLOOKUP(I104,Feuil1!$F$10:$O$24,9),IF(AND(H104>=1942,H104<1947),VLOOKUP(I104,Feuil1!$F$10:$O$24,9),IF(AND(H104>=1947,H104<1952),VLOOKUP(I104,Feuil1!$F$10:$O$24,8),IF(AND(H104>=1952,H104<1957),VLOOKUP(I104,Feuil1!$F$10:$O$24,7),IF(AND(H104>=1957,H104<1962),VLOOKUP(I104,Feuil1!$F$10:$O$24,6),IF(AND(H104>=1962,H104<1967),VLOOKUP(I104,Feuil1!$F$10:$O$24,5),IF(AND(H104>=1967,H104<1972),VLOOKUP(I104,Feuil1!$F$10:$O$24,4),IF(AND(H104>=1972,H104<1977),VLOOKUP(I104,Feuil1!$F$10:$O$24,3),IF(AND(H104>=1977,H104<1982),VLOOKUP(I104,Feuil1!$F$10:$O$24,2),VLOOKUP(I104,Feuil1!$F$10:$O$24,2)))))))))) ->  | AA104: =T104-HLOOKUP(Y104,Feuil1!$C$1:$BF$9,2,FALSE) ->  | AB104: =T104-HLOOKUP(Y104,Feuil1!$C$1:$BF$9,3,FALSE) ->  | AC104: =T104-HLOOKUP(Y104,Feuil1!$C$1:$BF$9,4,FALSE) ->  | AD104: =T104-HLOOKUP(Y104,Feuil1!$C$1:$BF$9,5,FALSE) ->  | AE104: =T104-HLOOKUP(Y104,Feuil1!$C$1:$BF$9,6,FALSE) ->  | AF104: =T104-HLOOKUP(Y104,Feuil1!$C$1:$BF$9,7,FALSE) ->  | AG104: =T104-HLOOKUP(Y104,Feuil1!$C$1:$BF$9,8,FALSE) ->  | AH104: =T104-HLOOKUP(Y104,Feuil1!$C$1:$BF$9,9,FALSE) ->  | AQ104: 2017 | AS104: =IF(AQ104,VLOOKUP(AQ104,FEM!$AS$468:$AT$523,2)) -> 4.493
A105: F | X105: FALSE | Y105: =IF(AND(H105<1936),VLOOKUP(I105,Feuil1!$F$10:$O$24,9),IF(AND(H105>=1942,H105<1947),VLOOKUP(I105,Feuil1!$F$10:$O$24,9),IF(AND(H105>=1947,H105<1952),VLOOKUP(I105,Feuil1!$F$10:$O$24,8),IF(AND(H105>=1952,H105<1957),VLOOKUP(I105,Feuil1!$F$10:$O$24,7),IF(AND(H105>=1957,H105<1962),VLOOKUP(I105,Feuil1!$F$10:$O$24,6),IF(AND(H105>=1962,H105<1967),VLOOKUP(I105,Feuil1!$F$10:$O$24,5),IF(AND(H105>=1967,H105<1972),VLOOKUP(I105,Feuil1!$F$10:$O$24,4),IF(AND(H105>=1972,H105<1977),VLOOKUP(I105,Feuil1!$F$10:$O$24,3),IF(AND(H105>=1977,H105<1982),VLOOKUP(I105,Feuil1!$F$10:$O$24,2),VLOOKUP(I105,Feuil1!$F$10:$O$24,2)))))))))) ->  | AA105: =T105-HLOOKUP(Y105,Feuil1!$C$1:$BF$9,2,FALSE) ->  | AB105: =T105-HLOOKUP(Y105,Feuil1!$C$1:$BF$9,3,FALSE) ->  | AC105: =T105-HLOOKUP(Y105,Feuil1!$C$1:$BF$9,4,FALSE) ->  | AD105: =T105-HLOOKUP(Y105,Feuil1!$C$1:$BF$9,5,FALSE) ->  | AE105: =T105-HLOOKUP(Y105,Feuil1!$C$1:$BF$9,6,FALSE) ->  | AF105: =T105-HLOOKUP(Y105,Feuil1!$C$1:$BF$9,7,FALSE) ->  | AG105: =T105-HLOOKUP(Y105,Feuil1!$C$1:$BF$9,8,FALSE) ->  | AH105: =T105-HLOOKUP(Y105,Feuil1!$C$1:$BF$9,9,FALSE) ->  | AQ105: 2017 | AS105: =IF(AQ105,VLOOKUP(AQ105,FEM!$AS$468:$AT$523,2)) -> 4.493
A106: F | O106: =IF(I106="","",IF(MAXA(L106:N106)<=0,0,MAXA(L106:N106))) ->  | S106: =IF(I106="","",IF(MAXA(P106:R106)<=0,0,MAXA(P106:R106))) ->  | T106: =IF(I106="","",IF(OR(O106=0,S106=0),0,O106+S106)) ->  | U106: =IF(I106="","",IF(A106="H",10^(0.794358141*LOG(I106/174.393)^2)*T106*AS106,IF(A106="F",10^(0.89726074 * LOG(I106/148.026)^2)*T106*AS106,""))) ->  | V106: =IF(I106="","",AP106) ->  | W106: =IF(I106="","",IF(AH106>=0,AH106,IF(AG106>=0,AG106,IF(AF106>=0,AF106,IF(AE106>=0,AE106,IF(AD106>=0,AD106,IF(AC106>=0,AC106,IF(AB106>=0,AB106,AA106)))))))) ->  | X106: =IF(AQ106<95,IF(AQ106<=90,VLOOKUP(AQ106,$AQ$467:$AR$522,2))) -> FALSE | Y106: =IF(AND(H106<1936),VLOOKUP(I106,Feuil1!$F$10:$O$24,9),IF(AND(H106>=1942,H106<1947),VLOOKUP(I106,Feuil1!$F$10:$O$24,9),IF(AND(H106>=1947,H106<1952),VLOOKUP(I106,Feuil1!$F$10:$O$24,8),IF(AND(H106>=1952,H106<1957),VLOOKUP(I106,Feuil1!$F$10:$O$24,7),IF(AND(H106>=1957,H106<1962),VLOOKUP(I106,Feuil1!$F$10:$O$24,6),IF(AND(H106>=1962,H106<1967),VLOOKUP(I106,Feuil1!$F$10:$O$24,5),IF(AND(H106>=1967,H106<1972),VLOOKUP(I106,Feuil1!$F$10:$O$24,4),IF(AND(H106>=1972,H106<1977),VLOOKUP(I106,Feuil1!$F$10:$O$24,3),IF(AND(H106>=1977,H106<1982),VLOOKUP(I106,Feuil1!$F$10:$O$24,2),VLOOKUP(I106,Feuil1!$F$10:$O$24,2)))))))))) ->  | AA106: =T106-HLOOKUP(Y106,Feuil1!$C$1:$BF$9,2,FALSE) ->  | AB106: =T106-HLOOKUP(Y106,Feuil1!$C$1:$BF$9,3,FALSE) ->  | AC106: =T106-HLOOKUP(Y106,Feuil1!$C$1:$BF$9,4,FALSE) ->  | AD106: =T106-HLOOKUP(Y106,Feuil1!$C$1:$BF$9,5,FALSE) ->  | AE106: =T106-HLOOKUP(Y106,Feuil1!$C$1:$BF$9,6,FALSE) ->  | AF106: =T106-HLOOKUP(Y106,Feuil1!$C$1:$BF$9,7,FALSE) ->  | AG106: =T106-HLOOKUP(Y106,Feuil1!$C$1:$BF$9,8,FALSE) ->  | AH106: =T106-HLOOKUP(Y106,Feuil1!$C$1:$BF$9,9,FALSE) ->  | AP106: =IF(AH106>=0,$AH$5,IF(AG106>=0,$AG$5,IF(AF106>=0,$AF$5,IF(AE106>=0,$AE$5,IF(AD106>=0,$AD$5,IF(AC106>=0,$AC$5,IF(AB106>=0,$AB$5,IF(AA106>=0,$AA$5,$AI$5)))))))) ->  | AQ106: 2017 | AS106: =IF(AQ106,VLOOKUP(AQ106,FEM!$AS$468:$AT$523,2)) -> 4.493
A107: F | X107: FALSE | Y107: =IF(AND(H107<1936),VLOOKUP(I107,Feuil1!$F$10:$O$24,9),IF(AND(H107>=1942,H107<1947),VLOOKUP(I107,Feuil1!$F$10:$O$24,9),IF(AND(H107>=1947,H107<1952),VLOOKUP(I107,Feuil1!$F$10:$O$24,8),IF(AND(H107>=1952,H107<1957),VLOOKUP(I107,Feuil1!$F$10:$O$24,7),IF(AND(H107>=1957,H107<1962),VLOOKUP(I107,Feuil1!$F$10:$O$24,6),IF(AND(H107>=1962,H107<1967),VLOOKUP(I107,Feuil1!$F$10:$O$24,5),IF(AND(H107>=1967,H107<1972),VLOOKUP(I107,Feuil1!$F$10:$O$24,4),IF(AND(H107>=1972,H107<1977),VLOOKUP(I107,Feuil1!$F$10:$O$24,3),IF(AND(H107>=1977,H107<1982),VLOOKUP(I107,Feuil1!$F$10:$O$24,2),VLOOKUP(I107,Feuil1!$F$10:$O$24,2)))))))))) ->  | AA107: =T107-HLOOKUP(Y107,Feuil1!$C$1:$BF$9,2,FALSE) ->  | AB107: =T107-HLOOKUP(Y107,Feuil1!$C$1:$BF$9,3,FALSE) ->  | AC107: =T107-HLOOKUP(Y107,Feuil1!$C$1:$BF$9,4,FALSE) ->  | AD107: =T107-HLOOKUP(Y107,Feuil1!$C$1:$BF$9,5,FALSE) ->  | AE107: =T107-HLOOKUP(Y107,Feuil1!$C$1:$BF$9,6,FALSE) ->  | AF107: =T107-HLOOKUP(Y107,Feuil1!$C$1:$BF$9,7,FALSE) ->  | AG107: =T107-HLOOKUP(Y107,Feuil1!$C$1:$BF$9,8,FALSE) ->  | AH107: =T107-HLOOKUP(Y107,Feuil1!$C$1:$BF$9,9,FALSE) ->  | AQ107: 2017 | AS107: =IF(AQ107,VLOOKUP(AQ107,FEM!$AS$468:$AT$523,2)) -> 4.493
A108: F | X108: FALSE | Y108: =IF(AND(H108<1936),VLOOKUP(I108,Feuil1!$F$10:$O$24,9),IF(AND(H108>=1942,H108<1947),VLOOKUP(I108,Feuil1!$F$10:$O$24,9),IF(AND(H108>=1947,H108<1952),VLOOKUP(I108,Feuil1!$F$10:$O$24,8),IF(AND(H108>=1952,H108<1957),VLOOKUP(I108,Feuil1!$F$10:$O$24,7),IF(AND(H108>=1957,H108<1962),VLOOKUP(I108,Feuil1!$F$10:$O$24,6),IF(AND(H108>=1962,H108<1967),VLOOKUP(I108,Feuil1!$F$10:$O$24,5),IF(AND(H108>=1967,H108<1972),VLOOKUP(I108,Feuil1!$F$10:$O$24,4),IF(AND(H108>=1972,H108<1977),VLOOKUP(I108,Feuil1!$F$10:$O$24,3),IF(AND(H108>=1977,H108<1982),VLOOKUP(I108,Feuil1!$F$10:$O$24,2),VLOOKUP(I108,Feuil1!$F$10:$O$24,2)))))))))) ->  | AA108: =T108-HLOOKUP(Y108,Feuil1!$C$1:$BF$9,2,FALSE) ->  | AB108: =T108-HLOOKUP(Y108,Feuil1!$C$1:$BF$9,3,FALSE) ->  | AC108: =T108-HLOOKUP(Y108,Feuil1!$C$1:$BF$9,4,FALSE) ->  | AD108: =T108-HLOOKUP(Y108,Feuil1!$C$1:$BF$9,5,FALSE) ->  | AE108: =T108-HLOOKUP(Y108,Feuil1!$C$1:$BF$9,6,FALSE) ->  | AF108: =T108-HLOOKUP(Y108,Feuil1!$C$1:$BF$9,7,FALSE) ->  | AG108: =T108-HLOOKUP(Y108,Feuil1!$C$1:$BF$9,8,FALSE) ->  | AH108: =T108-HLOOKUP(Y108,Feuil1!$C$1:$BF$9,9,FALSE) ->  | AQ108: 2017 | AS108: =IF(AQ108,VLOOKUP(AQ108,FEM!$AS$468:$AT$523,2)) -> 4.493
A109: F | X109: FALSE | Y109: =IF(AND(H109<1936),VLOOKUP(I109,Feuil1!$F$10:$O$24,9),IF(AND(H109>=1942,H109<1947),VLOOKUP(I109,Feuil1!$F$10:$O$24,9),IF(AND(H109>=1947,H109<1952),VLOOKUP(I109,Feuil1!$F$10:$O$24,8),IF(AND(H109>=1952,H109<1957),VLOOKUP(I109,Feuil1!$F$10:$O$24,7),IF(AND(H109>=1957,H109<1962),VLOOKUP(I109,Feuil1!$F$10:$O$24,6),IF(AND(H109>=1962,H109<1967),VLOOKUP(I109,Feuil1!$F$10:$O$24,5),IF(AND(H109>=1967,H109<1972),VLOOKUP(I109,Feuil1!$F$10:$O$24,4),IF(AND(H109>=1972,H109<1977),VLOOKUP(I109,Feuil1!$F$10:$O$24,3),IF(AND(H109>=1977,H109<1982),VLOOKUP(I109,Feuil1!$F$10:$O$24,2),VLOOKUP(I109,Feuil1!$F$10:$O$24,2)))))))))) ->  | AA109: =T109-HLOOKUP(Y109,Feuil1!$C$1:$BF$9,2,FALSE) ->  | AB109: =T109-HLOOKUP(Y109,Feuil1!$C$1:$BF$9,3,FALSE) ->  | AC109: =T109-HLOOKUP(Y109,Feuil1!$C$1:$BF$9,4,FALSE) ->  | AD109: =T109-HLOOKUP(Y109,Feuil1!$C$1:$BF$9,5,FALSE) ->  | AE109: =T109-HLOOKUP(Y109,Feuil1!$C$1:$BF$9,6,FALSE) ->  | AF109: =T109-HLOOKUP(Y109,Feuil1!$C$1:$BF$9,7,FALSE) ->  | AG109: =T109-HLOOKUP(Y109,Feuil1!$C$1:$BF$9,8,FALSE) ->  | AH109: =T109-HLOOKUP(Y109,Feuil1!$C$1:$BF$9,9,FALSE) ->  | AQ109: 2017 | AS109: =IF(AQ109,VLOOKUP(AQ109,FEM!$AS$468:$AT$523,2)) -> 4.493
A110: F | X110: FALSE | Y110: =IF(AND(H110<1936),VLOOKUP(I110,Feuil1!$F$10:$O$24,9),IF(AND(H110>=1942,H110<1947),VLOOKUP(I110,Feuil1!$F$10:$O$24,9),IF(AND(H110>=1947,H110<1952),VLOOKUP(I110,Feuil1!$F$10:$O$24,8),IF(AND(H110>=1952,H110<1957),VLOOKUP(I110,Feuil1!$F$10:$O$24,7),IF(AND(H110>=1957,H110<1962),VLOOKUP(I110,Feuil1!$F$10:$O$24,6),IF(AND(H110>=1962,H110<1967),VLOOKUP(I110,Feuil1!$F$10:$O$24,5),IF(AND(H110>=1967,H110<1972),VLOOKUP(I110,Feuil1!$F$10:$O$24,4),IF(AND(H110>=1972,H110<1977),VLOOKUP(I110,Feuil1!$F$10:$O$24,3),IF(AND(H110>=1977,H110<1982),VLOOKUP(I110,Feuil1!$F$10:$O$24,2),VLOOKUP(I110,Feuil1!$F$10:$O$24,2)))))))))) ->  | AA110: =T110-HLOOKUP(Y110,Feuil1!$C$1:$BF$9,2,FALSE) ->  | AB110: =T110-HLOOKUP(Y110,Feuil1!$C$1:$BF$9,3,FALSE) ->  | AC110: =T110-HLOOKUP(Y110,Feuil1!$C$1:$BF$9,4,FALSE) ->  | AD110: =T110-HLOOKUP(Y110,Feuil1!$C$1:$BF$9,5,FALSE) ->  | AE110: =T110-HLOOKUP(Y110,Feuil1!$C$1:$BF$9,6,FALSE) ->  | AF110: =T110-HLOOKUP(Y110,Feuil1!$C$1:$BF$9,7,FALSE) ->  | AG110: =T110-HLOOKUP(Y110,Feuil1!$C$1:$BF$9,8,FALSE) ->  | AH110: =T110-HLOOKUP(Y110,Feuil1!$C$1:$BF$9,9,FALSE) ->  | AQ110: 2017 | AS110: =IF(AQ110,VLOOKUP(AQ110,FEM!$AS$468:$AT$523,2)) -> 4.493
A111: F | X111: FALSE | Y111: =IF(AND(H111<1936),VLOOKUP(I111,Feuil1!$F$10:$O$24,9),IF(AND(H111>=1942,H111<1947),VLOOKUP(I111,Feuil1!$F$10:$O$24,9),IF(AND(H111>=1947,H111<1952),VLOOKUP(I111,Feuil1!$F$10:$O$24,8),IF(AND(H111>=1952,H111<1957),VLOOKUP(I111,Feuil1!$F$10:$O$24,7),IF(AND(H111>=1957,H111<1962),VLOOKUP(I111,Feuil1!$F$10:$O$24,6),IF(AND(H111>=1962,H111<1967),VLOOKUP(I111,Feuil1!$F$10:$O$24,5),IF(AND(H111>=1967,H111<1972),VLOOKUP(I111,Feuil1!$F$10:$O$24,4),IF(AND(H111>=1972,H111<1977),VLOOKUP(I111,Feuil1!$F$10:$O$24,3),IF(AND(H111>=1977,H111<1982),VLOOKUP(I111,Feuil1!$F$10:$O$24,2),VLOOKUP(I111,Feuil1!$F$10:$O$24,2)))))))))) ->  | AA111: =T111-HLOOKUP(Y111,Feuil1!$C$1:$BF$9,2,FALSE) ->  | AB111: =T111-HLOOKUP(Y111,Feuil1!$C$1:$BF$9,3,FALSE) ->  | AC111: =T111-HLOOKUP(Y111,Feuil1!$C$1:$BF$9,4,FALSE) ->  | AD111: =T111-HLOOKUP(Y111,Feuil1!$C$1:$BF$9,5,FALSE) ->  | AE111: =T111-HLOOKUP(Y111,Feuil1!$C$1:$BF$9,6,FALSE) ->  | AF111: =T111-HLOOKUP(Y111,Feuil1!$C$1:$BF$9,7,FALSE) ->  | AG111: =T111-HLOOKUP(Y111,Feuil1!$C$1:$BF$9,8,FALSE) ->  | AH111: =T111-HLOOKUP(Y111,Feuil1!$C$1:$BF$9,9,FALSE) ->  | AQ111: 2017 | AS111: =IF(AQ111,VLOOKUP(AQ111,FEM!$AS$468:$AT$523,2)) -> 4.493
A112: F | X112: FALSE | Y112: =IF(AND(H112<1936),VLOOKUP(I112,Feuil1!$F$10:$O$24,9),IF(AND(H112>=1942,H112<1947),VLOOKUP(I112,Feuil1!$F$10:$O$24,9),IF(AND(H112>=1947,H112<1952),VLOOKUP(I112,Feuil1!$F$10:$O$24,8),IF(AND(H112>=1952,H112<1957),VLOOKUP(I112,Feuil1!$F$10:$O$24,7),IF(AND(H112>=1957,H112<1962),VLOOKUP(I112,Feuil1!$F$10:$O$24,6),IF(AND(H112>=1962,H112<1967),VLOOKUP(I112,Feuil1!$F$10:$O$24,5),IF(AND(H112>=1967,H112<1972),VLOOKUP(I112,Feuil1!$F$10:$O$24,4),IF(AND(H112>=1972,H112<1977),VLOOKUP(I112,Feuil1!$F$10:$O$24,3),IF(AND(H112>=1977,H112<1982),VLOOKUP(I112,Feuil1!$F$10:$O$24,2),VLOOKUP(I112,Feuil1!$F$10:$O$24,2)))))))))) ->  | AA112: =T112-HLOOKUP(Y112,Feuil1!$C$1:$BF$9,2,FALSE) ->  | AB112: =T112-HLOOKUP(Y112,Feuil1!$C$1:$BF$9,3,FALSE) ->  | AC112: =T112-HLOOKUP(Y112,Feuil1!$C$1:$BF$9,4,FALSE) ->  | AD112: =T112-HLOOKUP(Y112,Feuil1!$C$1:$BF$9,5,FALSE) ->  | AE112: =T112-HLOOKUP(Y112,Feuil1!$C$1:$BF$9,6,FALSE) ->  | AF112: =T112-HLOOKUP(Y112,Feuil1!$C$1:$BF$9,7,FALSE) ->  | AG112: =T112-HLOOKUP(Y112,Feuil1!$C$1:$BF$9,8,FALSE) ->  | AH112: =T112-HLOOKUP(Y112,Feuil1!$C$1:$BF$9,9,FALSE) ->  | AQ112: 2017 | AS112: =IF(AQ112,VLOOKUP(AQ112,FEM!$AS$468:$AT$523,2)) -> 4.493
A113: F | X113: FALSE | Y113: =IF(AND(H113<1936),VLOOKUP(I113,Feuil1!$F$10:$O$24,9),IF(AND(H113>=1942,H113<1947),VLOOKUP(I113,Feuil1!$F$10:$O$24,9),IF(AND(H113>=1947,H113<1952),VLOOKUP(I113,Feuil1!$F$10:$O$24,8),IF(AND(H113>=1952,H113<1957),VLOOKUP(I113,Feuil1!$F$10:$O$24,7),IF(AND(H113>=1957,H113<1962),VLOOKUP(I113,Feuil1!$F$10:$O$24,6),IF(AND(H113>=1962,H113<1967),VLOOKUP(I113,Feuil1!$F$10:$O$24,5),IF(AND(H113>=1967,H113<1972),VLOOKUP(I113,Feuil1!$F$10:$O$24,4),IF(AND(H113>=1972,H113<1977),VLOOKUP(I113,Feuil1!$F$10:$O$24,3),IF(AND(H113>=1977,H113<1982),VLOOKUP(I113,Feuil1!$F$10:$O$24,2),VLOOKUP(I113,Feuil1!$F$10:$O$24,2)))))))))) ->  | AA113: =T113-HLOOKUP(Y113,Feuil1!$C$1:$BF$9,2,FALSE) ->  | AB113: =T113-HLOOKUP(Y113,Feuil1!$C$1:$BF$9,3,FALSE) ->  | AC113: =T113-HLOOKUP(Y113,Feuil1!$C$1:$BF$9,4,FALSE) ->  | AD113: =T113-HLOOKUP(Y113,Feuil1!$C$1:$BF$9,5,FALSE) ->  | AE113: =T113-HLOOKUP(Y113,Feuil1!$C$1:$BF$9,6,FALSE) ->  | AF113: =T113-HLOOKUP(Y113,Feuil1!$C$1:$BF$9,7,FALSE) ->  | AG113: =T113-HLOOKUP(Y113,Feuil1!$C$1:$BF$9,8,FALSE) ->  | AH113: =T113-HLOOKUP(Y113,Feuil1!$C$1:$BF$9,9,FALSE) ->  | AQ113: 2017 | AS113: =IF(AQ113,VLOOKUP(AQ113,FEM!$AS$468:$AT$523,2)) -> 4.493
A114: F | X114: FALSE | Y114: =IF(AND(H114<1936),VLOOKUP(I114,Feuil1!$F$10:$O$24,9),IF(AND(H114>=1942,H114<1947),VLOOKUP(I114,Feuil1!$F$10:$O$24,9),IF(AND(H114>=1947,H114<1952),VLOOKUP(I114,Feuil1!$F$10:$O$24,8),IF(AND(H114>=1952,H114<1957),VLOOKUP(I114,Feuil1!$F$10:$O$24,7),IF(AND(H114>=1957,H114<1962),VLOOKUP(I114,Feuil1!$F$10:$O$24,6),IF(AND(H114>=1962,H114<1967),VLOOKUP(I114,Feuil1!$F$10:$O$24,5),IF(AND(H114>=1967,H114<1972),VLOOKUP(I114,Feuil1!$F$10:$O$24,4),IF(AND(H114>=1972,H114<1977),VLOOKUP(I114,Feuil1!$F$10:$O$24,3),IF(AND(H114>=1977,H114<1982),VLOOKUP(I114,Feuil1!$F$10:$O$24,2),VLOOKUP(I114,Feuil1!$F$10:$O$24,2)))))))))) ->  | AA114: =T114-HLOOKUP(Y114,Feuil1!$C$1:$BF$9,2,FALSE) ->  | AB114: =T114-HLOOKUP(Y114,Feuil1!$C$1:$BF$9,3,FALSE) ->  | AC114: =T114-HLOOKUP(Y114,Feuil1!$C$1:$BF$9,4,FALSE) ->  | AD114: =T114-HLOOKUP(Y114,Feuil1!$C$1:$BF$9,5,FALSE) ->  | AE114: =T114-HLOOKUP(Y114,Feuil1!$C$1:$BF$9,6,FALSE) ->  | AF114: =T114-HLOOKUP(Y114,Feuil1!$C$1:$BF$9,7,FALSE) ->  | AG114: =T114-HLOOKUP(Y114,Feuil1!$C$1:$BF$9,8,FALSE) ->  | AH114: =T114-HLOOKUP(Y114,Feuil1!$C$1:$BF$9,9,FALSE) ->  | AQ114: 2017 | AS114: =IF(AQ114,VLOOKUP(AQ114,FEM!$AS$468:$AT$523,2)) -> 4.493
A115: F | X115: FALSE | Y115: =IF(AND(H115<1936),VLOOKUP(I115,Feuil1!$F$10:$O$24,9),IF(AND(H115>=1942,H115<1947),VLOOKUP(I115,Feuil1!$F$10:$O$24,9),IF(AND(H115>=1947,H115<1952),VLOOKUP(I115,Feuil1!$F$10:$O$24,8),IF(AND(H115>=1952,H115<1957),VLOOKUP(I115,Feuil1!$F$10:$O$24,7),IF(AND(H115>=1957,H115<1962),VLOOKUP(I115,Feuil1!$F$10:$O$24,6),IF(AND(H115>=1962,H115<1967),VLOOKUP(I115,Feuil1!$F$10:$O$24,5),IF(AND(H115>=1967,H115<1972),VLOOKUP(I115,Feuil1!$F$10:$O$24,4),IF(AND(H115>=1972,H115<1977),VLOOKUP(I115,Feuil1!$F$10:$O$24,3),IF(AND(H115>=1977,H115<1982),VLOOKUP(I115,Feuil1!$F$10:$O$24,2),VLOOKUP(I115,Feuil1!$F$10:$O$24,2)))))))))) ->  | AA115: =T115-HLOOKUP(Y115,Feuil1!$C$1:$BF$9,2,FALSE) ->  | AB115: =T115-HLOOKUP(Y115,Feuil1!$C$1:$BF$9,3,FALSE) ->  | AC115: =T115-HLOOKUP(Y115,Feuil1!$C$1:$BF$9,4,FALSE) ->  | AD115: =T115-HLOOKUP(Y115,Feuil1!$C$1:$BF$9,5,FALSE) ->  | AE115: =T115-HLOOKUP(Y115,Feuil1!$C$1:$BF$9,6,FALSE) ->  | AF115: =T115-HLOOKUP(Y115,Feuil1!$C$1:$BF$9,7,FALSE) ->  | AG115: =T115-HLOOKUP(Y115,Feuil1!$C$1:$BF$9,8,FALSE) ->  | AH115: =T115-HLOOKUP(Y115,Feuil1!$C$1:$BF$9,9,FALSE) ->  | AQ115: 2017 | AS115: =IF(AQ115,VLOOKUP(AQ115,FEM!$AS$468:$AT$523,2)) -> 4.493
A116: F | X116: FALSE | Y116: =IF(AND(H116<1936),VLOOKUP(I116,Feuil1!$F$10:$O$24,9),IF(AND(H116>=1942,H116<1947),VLOOKUP(I116,Feuil1!$F$10:$O$24,9),IF(AND(H116>=1947,H116<1952),VLOOKUP(I116,Feuil1!$F$10:$O$24,8),IF(AND(H116>=1952,H116<1957),VLOOKUP(I116,Feuil1!$F$10:$O$24,7),IF(AND(H116>=1957,H116<1962),VLOOKUP(I116,Feuil1!$F$10:$O$24,6),IF(AND(H116>=1962,H116<1967),VLOOKUP(I116,Feuil1!$F$10:$O$24,5),IF(AND(H116>=1967,H116<1972),VLOOKUP(I116,Feuil1!$F$10:$O$24,4),IF(AND(H116>=1972,H116<1977),VLOOKUP(I116,Feuil1!$F$10:$O$24,3),IF(AND(H116>=1977,H116<1982),VLOOKUP(I116,Feuil1!$F$10:$O$24,2),VLOOKUP(I116,Feuil1!$F$10:$O$24,2)))))))))) ->  | AA116: =T116-HLOOKUP(Y116,Feuil1!$C$1:$BF$9,2,FALSE) ->  | AB116: =T116-HLOOKUP(Y116,Feuil1!$C$1:$BF$9,3,FALSE) ->  | AC116: =T116-HLOOKUP(Y116,Feuil1!$C$1:$BF$9,4,FALSE) ->  | AD116: =T116-HLOOKUP(Y116,Feuil1!$C$1:$BF$9,5,FALSE) ->  | AE116: =T116-HLOOKUP(Y116,Feuil1!$C$1:$BF$9,6,FALSE) ->  | AF116: =T116-HLOOKUP(Y116,Feuil1!$C$1:$BF$9,7,FALSE) ->  | AG116: =T116-HLOOKUP(Y116,Feuil1!$C$1:$BF$9,8,FALSE) ->  | AH116: =T116-HLOOKUP(Y116,Feuil1!$C$1:$BF$9,9,FALSE) ->  | AQ116: 2017 | AS116: =IF(AQ116,VLOOKUP(AQ116,FEM!$AS$468:$AT$523,2)) -> 4.493
A117: F | X117: FALSE | Y117: =IF(AND(H117<1936),VLOOKUP(I117,Feuil1!$F$10:$O$24,9),IF(AND(H117>=1942,H117<1947),VLOOKUP(I117,Feuil1!$F$10:$O$24,9),IF(AND(H117>=1947,H117<1952),VLOOKUP(I117,Feuil1!$F$10:$O$24,8),IF(AND(H117>=1952,H117<1957),VLOOKUP(I117,Feuil1!$F$10:$O$24,7),IF(AND(H117>=1957,H117<1962),VLOOKUP(I117,Feuil1!$F$10:$O$24,6),IF(AND(H117>=1962,H117<1967),VLOOKUP(I117,Feuil1!$F$10:$O$24,5),IF(AND(H117>=1967,H117<1972),VLOOKUP(I117,Feuil1!$F$10:$O$24,4),IF(AND(H117>=1972,H117<1977),VLOOKUP(I117,Feuil1!$F$10:$O$24,3),IF(AND(H117>=1977,H117<1982),VLOOKUP(I117,Feuil1!$F$10:$O$24,2),VLOOKUP(I117,Feuil1!$F$10:$O$24,2)))))))))) ->  | AA117: =T117-HLOOKUP(Y117,Feuil1!$C$1:$BF$9,2,FALSE) ->  | AB117: =T117-HLOOKUP(Y117,Feuil1!$C$1:$BF$9,3,FALSE) ->  | AC117: =T117-HLOOKUP(Y117,Feuil1!$C$1:$BF$9,4,FALSE) ->  | AD117: =T117-HLOOKUP(Y117,Feuil1!$C$1:$BF$9,5,FALSE) ->  | AE117: =T117-HLOOKUP(Y117,Feuil1!$C$1:$BF$9,6,FALSE) ->  | AF117: =T117-HLOOKUP(Y117,Feuil1!$C$1:$BF$9,7,FALSE) ->  | AG117: =T117-HLOOKUP(Y117,Feuil1!$C$1:$BF$9,8,FALSE) ->  | AH117: =T117-HLOOKUP(Y117,Feuil1!$C$1:$BF$9,9,FALSE) ->  | AQ117: 2017 | AS117: =IF(AQ117,VLOOKUP(AQ117,FEM!$AS$468:$AT$523,2)) -> 4.493
A118: F | X118: FALSE | Y118: =IF(AND(H118<1936),VLOOKUP(I118,Feuil1!$F$10:$O$24,9),IF(AND(H118>=1942,H118<1947),VLOOKUP(I118,Feuil1!$F$10:$O$24,9),IF(AND(H118>=1947,H118<1952),VLOOKUP(I118,Feuil1!$F$10:$O$24,8),IF(AND(H118>=1952,H118<1957),VLOOKUP(I118,Feuil1!$F$10:$O$24,7),IF(AND(H118>=1957,H118<1962),VLOOKUP(I118,Feuil1!$F$10:$O$24,6),IF(AND(H118>=1962,H118<1967),VLOOKUP(I118,Feuil1!$F$10:$O$24,5),IF(AND(H118>=1967,H118<1972),VLOOKUP(I118,Feuil1!$F$10:$O$24,4),IF(AND(H118>=1972,H118<1977),VLOOKUP(I118,Feuil1!$F$10:$O$24,3),IF(AND(H118>=1977,H118<1982),VLOOKUP(I118,Feuil1!$F$10:$O$24,2),VLOOKUP(I118,Feuil1!$F$10:$O$24,2)))))))))) ->  | AA118: =T118-HLOOKUP(Y118,Feuil1!$C$1:$BF$9,2,FALSE) ->  | AB118: =T118-HLOOKUP(Y118,Feuil1!$C$1:$BF$9,3,FALSE) ->  | AC118: =T118-HLOOKUP(Y118,Feuil1!$C$1:$BF$9,4,FALSE) ->  | AD118: =T118-HLOOKUP(Y118,Feuil1!$C$1:$BF$9,5,FALSE) ->  | AE118: =T118-HLOOKUP(Y118,Feuil1!$C$1:$BF$9,6,FALSE) ->  | AF118: =T118-HLOOKUP(Y118,Feuil1!$C$1:$BF$9,7,FALSE) ->  | AG118: =T118-HLOOKUP(Y118,Feuil1!$C$1:$BF$9,8,FALSE) ->  | AH118: =T118-HLOOKUP(Y118,Feuil1!$C$1:$BF$9,9,FALSE) ->  | AQ118: 2017 | AS118: =IF(AQ118,VLOOKUP(AQ118,FEM!$AS$468:$AT$523,2)) -> 4.493
A119: F | X119: FALSE | Y119: =IF(AND(H119<1936),VLOOKUP(I119,Feuil1!$F$10:$O$24,9),IF(AND(H119>=1942,H119<1947),VLOOKUP(I119,Feuil1!$F$10:$O$24,9),IF(AND(H119>=1947,H119<1952),VLOOKUP(I119,Feuil1!$F$10:$O$24,8),IF(AND(H119>=1952,H119<1957),VLOOKUP(I119,Feuil1!$F$10:$O$24,7),IF(AND(H119>=1957,H119<1962),VLOOKUP(I119,Feuil1!$F$10:$O$24,6),IF(AND(H119>=1962,H119<1967),VLOOKUP(I119,Feuil1!$F$10:$O$24,5),IF(AND(H119>=1967,H119<1972),VLOOKUP(I119,Feuil1!$F$10:$O$24,4),IF(AND(H119>=1972,H119<1977),VLOOKUP(I119,Feuil1!$F$10:$O$24,3),IF(AND(H119>=1977,H119<1982),VLOOKUP(I119,Feuil1!$F$10:$O$24,2),VLOOKUP(I119,Feuil1!$F$10:$O$24,2)))))))))) ->  | AA119: =T119-HLOOKUP(Y119,Feuil1!$C$1:$BF$9,2,FALSE) ->  | AB119: =T119-HLOOKUP(Y119,Feuil1!$C$1:$BF$9,3,FALSE) ->  | AC119: =T119-HLOOKUP(Y119,Feuil1!$C$1:$BF$9,4,FALSE) ->  | AD119: =T119-HLOOKUP(Y119,Feuil1!$C$1:$BF$9,5,FALSE) ->  | AE119: =T119-HLOOKUP(Y119,Feuil1!$C$1:$BF$9,6,FALSE) ->  | AF119: =T119-HLOOKUP(Y119,Feuil1!$C$1:$BF$9,7,FALSE) ->  | AG119: =T119-HLOOKUP(Y119,Feuil1!$C$1:$BF$9,8,FALSE) ->  | AH119: =T119-HLOOKUP(Y119,Feuil1!$C$1:$BF$9,9,FALSE) ->  | AQ119: 2017 | AS119: =IF(AQ119,VLOOKUP(AQ119,FEM!$AS$468:$AT$523,2)) -> 4.493
A120: F | X120: FALSE | Y120: =IF(AND(H120<1936),VLOOKUP(I120,Feuil1!$F$10:$O$24,9),IF(AND(H120>=1942,H120<1947),VLOOKUP(I120,Feuil1!$F$10:$O$24,9),IF(AND(H120>=1947,H120<1952),VLOOKUP(I120,Feuil1!$F$10:$O$24,8),IF(AND(H120>=1952,H120<1957),VLOOKUP(I120,Feuil1!$F$10:$O$24,7),IF(AND(H120>=1957,H120<1962),VLOOKUP(I120,Feuil1!$F$10:$O$24,6),IF(AND(H120>=1962,H120<1967),VLOOKUP(I120,Feuil1!$F$10:$O$24,5),IF(AND(H120>=1967,H120<1972),VLOOKUP(I120,Feuil1!$F$10:$O$24,4),IF(AND(H120>=1972,H120<1977),VLOOKUP(I120,Feuil1!$F$10:$O$24,3),IF(AND(H120>=1977,H120<1982),VLOOKUP(I120,Feuil1!$F$10:$O$24,2),VLOOKUP(I120,Feuil1!$F$10:$O$24,2)))))))))) ->  | AA120: =T120-HLOOKUP(Y120,Feuil1!$C$1:$BF$9,2,FALSE) ->  | AB120: =T120-HLOOKUP(Y120,Feuil1!$C$1:$BF$9,3,FALSE) ->  | AC120: =T120-HLOOKUP(Y120,Feuil1!$C$1:$BF$9,4,FALSE) ->  | AD120: =T120-HLOOKUP(Y120,Feuil1!$C$1:$BF$9,5,FALSE) ->  | AE120: =T120-HLOOKUP(Y120,Feuil1!$C$1:$BF$9,6,FALSE) ->  | AF120: =T120-HLOOKUP(Y120,Feuil1!$C$1:$BF$9,7,FALSE) ->  | AG120: =T120-HLOOKUP(Y120,Feuil1!$C$1:$BF$9,8,FALSE) ->  | AH120: =T120-HLOOKUP(Y120,Feuil1!$C$1:$BF$9,9,FALSE) ->  | AQ120: 2017 | AS120: =IF(AQ120,VLOOKUP(AQ120,FEM!$AS$468:$AT$523,2)) -> 4.493
A121: F | X121: FALSE | Y121: =IF(AND(H121<1936),VLOOKUP(I121,Feuil1!$F$10:$O$24,9),IF(AND(H121>=1942,H121<1947),VLOOKUP(I121,Feuil1!$F$10:$O$24,9),IF(AND(H121>=1947,H121<1952),VLOOKUP(I121,Feuil1!$F$10:$O$24,8),IF(AND(H121>=1952,H121<1957),VLOOKUP(I121,Feuil1!$F$10:$O$24,7),IF(AND(H121>=1957,H121<1962),VLOOKUP(I121,Feuil1!$F$10:$O$24,6),IF(AND(H121>=1962,H121<1967),VLOOKUP(I121,Feuil1!$F$10:$O$24,5),IF(AND(H121>=1967,H121<1972),VLOOKUP(I121,Feuil1!$F$10:$O$24,4),IF(AND(H121>=1972,H121<1977),VLOOKUP(I121,Feuil1!$F$10:$O$24,3),IF(AND(H121>=1977,H121<1982),VLOOKUP(I121,Feuil1!$F$10:$O$24,2),VLOOKUP(I121,Feuil1!$F$10:$O$24,2)))))))))) ->  | AA121: =T121-HLOOKUP(Y121,Feuil1!$C$1:$BF$9,2,FALSE) ->  | AB121: =T121-HLOOKUP(Y121,Feuil1!$C$1:$BF$9,3,FALSE) ->  | AC121: =T121-HLOOKUP(Y121,Feuil1!$C$1:$BF$9,4,FALSE) ->  | AD121: =T121-HLOOKUP(Y121,Feuil1!$C$1:$BF$9,5,FALSE) ->  | AE121: =T121-HLOOKUP(Y121,Feuil1!$C$1:$BF$9,6,FALSE) ->  | AF121: =T121-HLOOKUP(Y121,Feuil1!$C$1:$BF$9,7,FALSE) ->  | AG121: =T121-HLOOKUP(Y121,Feuil1!$C$1:$BF$9,8,FALSE) ->  | AH121: =T121-HLOOKUP(Y121,Feuil1!$C$1:$BF$9,9,FALSE) ->  | AQ121: 2017 | AS121: =IF(AQ121,VLOOKUP(AQ121,FEM!$AS$468:$AT$523,2)) -> 4.493
A122: F | X122: FALSE | Y122: =IF(AND(H122<1936),VLOOKUP(I122,Feuil1!$F$10:$O$24,9),IF(AND(H122>=1942,H122<1947),VLOOKUP(I122,Feuil1!$F$10:$O$24,9),IF(AND(H122>=1947,H122<1952),VLOOKUP(I122,Feuil1!$F$10:$O$24,8),IF(AND(H122>=1952,H122<1957),VLOOKUP(I122,Feuil1!$F$10:$O$24,7),IF(AND(H122>=1957,H122<1962),VLOOKUP(I122,Feuil1!$F$10:$O$24,6),IF(AND(H122>=1962,H122<1967),VLOOKUP(I122,Feuil1!$F$10:$O$24,5),IF(AND(H122>=1967,H122<1972),VLOOKUP(I122,Feuil1!$F$10:$O$24,4),IF(AND(H122>=1972,H122<1977),VLOOKUP(I122,Feuil1!$F$10:$O$24,3),IF(AND(H122>=1977,H122<1982),VLOOKUP(I122,Feuil1!$F$10:$O$24,2),VLOOKUP(I122,Feuil1!$F$10:$O$24,2)))))))))) ->  | AA122: =T122-HLOOKUP(Y122,Feuil1!$C$1:$BF$9,2,FALSE) ->  | AB122: =T122-HLOOKUP(Y122,Feuil1!$C$1:$BF$9,3,FALSE) ->  | AC122: =T122-HLOOKUP(Y122,Feuil1!$C$1:$BF$9,4,FALSE) ->  | AD122: =T122-HLOOKUP(Y122,Feuil1!$C$1:$BF$9,5,FALSE) ->  | AE122: =T122-HLOOKUP(Y122,Feuil1!$C$1:$BF$9,6,FALSE) ->  | AF122: =T122-HLOOKUP(Y122,Feuil1!$C$1:$BF$9,7,FALSE) ->  | AG122: =T122-HLOOKUP(Y122,Feuil1!$C$1:$BF$9,8,FALSE) ->  | AH122: =T122-HLOOKUP(Y122,Feuil1!$C$1:$BF$9,9,FALSE) ->  | AQ122: 2017 | AS122: =IF(AQ122,VLOOKUP(AQ122,FEM!$AS$468:$AT$523,2)) -> 4.493
A123: F | X123: FALSE | Y123: =IF(AND(H123<1936),VLOOKUP(I123,Feuil1!$F$10:$O$24,9),IF(AND(H123>=1942,H123<1947),VLOOKUP(I123,Feuil1!$F$10:$O$24,9),IF(AND(H123>=1947,H123<1952),VLOOKUP(I123,Feuil1!$F$10:$O$24,8),IF(AND(H123>=1952,H123<1957),VLOOKUP(I123,Feuil1!$F$10:$O$24,7),IF(AND(H123>=1957,H123<1962),VLOOKUP(I123,Feuil1!$F$10:$O$24,6),IF(AND(H123>=1962,H123<1967),VLOOKUP(I123,Feuil1!$F$10:$O$24,5),IF(AND(H123>=1967,H123<1972),VLOOKUP(I123,Feuil1!$F$10:$O$24,4),IF(AND(H123>=1972,H123<1977),VLOOKUP(I123,Feuil1!$F$10:$O$24,3),IF(AND(H123>=1977,H123<1982),VLOOKUP(I123,Feuil1!$F$10:$O$24,2),VLOOKUP(I123,Feuil1!$F$10:$O$24,2)))))))))) ->  | AA123: =T123-HLOOKUP(Y123,Feuil1!$C$1:$BF$9,2,FALSE) ->  | AB123: =T123-HLOOKUP(Y123,Feuil1!$C$1:$BF$9,3,FALSE) ->  | AC123: =T123-HLOOKUP(Y123,Feuil1!$C$1:$BF$9,4,FALSE) ->  | AD123: =T123-HLOOKUP(Y123,Feuil1!$C$1:$BF$9,5,FALSE) ->  | AE123: =T123-HLOOKUP(Y123,Feuil1!$C$1:$BF$9,6,FALSE) ->  | AF123: =T123-HLOOKUP(Y123,Feuil1!$C$1:$BF$9,7,FALSE) ->  | AG123: =T123-HLOOKUP(Y123,Feuil1!$C$1:$BF$9,8,FALSE) ->  | AH123: =T123-HLOOKUP(Y123,Feuil1!$C$1:$BF$9,9,FALSE) ->  | AQ123: 2017 | AS123: =IF(AQ123,VLOOKUP(AQ123,FEM!$AS$468:$AT$523,2)) -> 4.493
A124: F | X124: FALSE | Y124: =IF(AND(H124<1936),VLOOKUP(I124,Feuil1!$F$10:$O$24,9),IF(AND(H124>=1942,H124<1947),VLOOKUP(I124,Feuil1!$F$10:$O$24,9),IF(AND(H124>=1947,H124<1952),VLOOKUP(I124,Feuil1!$F$10:$O$24,8),IF(AND(H124>=1952,H124<1957),VLOOKUP(I124,Feuil1!$F$10:$O$24,7),IF(AND(H124>=1957,H124<1962),VLOOKUP(I124,Feuil1!$F$10:$O$24,6),IF(AND(H124>=1962,H124<1967),VLOOKUP(I124,Feuil1!$F$10:$O$24,5),IF(AND(H124>=1967,H124<1972),VLOOKUP(I124,Feuil1!$F$10:$O$24,4),IF(AND(H124>=1972,H124<1977),VLOOKUP(I124,Feuil1!$F$10:$O$24,3),IF(AND(H124>=1977,H124<1982),VLOOKUP(I124,Feuil1!$F$10:$O$24,2),VLOOKUP(I124,Feuil1!$F$10:$O$24,2)))))))))) ->  | AA124: =T124-HLOOKUP(Y124,Feuil1!$C$1:$BF$9,2,FALSE) ->  | AB124: =T124-HLOOKUP(Y124,Feuil1!$C$1:$BF$9,3,FALSE) ->  | AC124: =T124-HLOOKUP(Y124,Feuil1!$C$1:$BF$9,4,FALSE) ->  | AD124: =T124-HLOOKUP(Y124,Feuil1!$C$1:$BF$9,5,FALSE) ->  | AE124: =T124-HLOOKUP(Y124,Feuil1!$C$1:$BF$9,6,FALSE) ->  | AF124: =T124-HLOOKUP(Y124,Feuil1!$C$1:$BF$9,7,FALSE) ->  | AG124: =T124-HLOOKUP(Y124,Feuil1!$C$1:$BF$9,8,FALSE) ->  | AH124: =T124-HLOOKUP(Y124,Feuil1!$C$1:$BF$9,9,FALSE) ->  | AQ124: 2017 | AS124: =IF(AQ124,VLOOKUP(AQ124,FEM!$AS$468:$AT$523,2)) -> 4.493
A125: F | X125: FALSE | Y125: =IF(AND(H125<1936),VLOOKUP(I125,Feuil1!$F$10:$O$24,9),IF(AND(H125>=1942,H125<1947),VLOOKUP(I125,Feuil1!$F$10:$O$24,9),IF(AND(H125>=1947,H125<1952),VLOOKUP(I125,Feuil1!$F$10:$O$24,8),IF(AND(H125>=1952,H125<1957),VLOOKUP(I125,Feuil1!$F$10:$O$24,7),IF(AND(H125>=1957,H125<1962),VLOOKUP(I125,Feuil1!$F$10:$O$24,6),IF(AND(H125>=1962,H125<1967),VLOOKUP(I125,Feuil1!$F$10:$O$24,5),IF(AND(H125>=1967,H125<1972),VLOOKUP(I125,Feuil1!$F$10:$O$24,4),IF(AND(H125>=1972,H125<1977),VLOOKUP(I125,Feuil1!$F$10:$O$24,3),IF(AND(H125>=1977,H125<1982),VLOOKUP(I125,Feuil1!$F$10:$O$24,2),VLOOKUP(I125,Feuil1!$F$10:$O$24,2)))))))))) ->  | AA125: =T125-HLOOKUP(Y125,Feuil1!$C$1:$BF$9,2,FALSE) ->  | AB125: =T125-HLOOKUP(Y125,Feuil1!$C$1:$BF$9,3,FALSE) ->  | AC125: =T125-HLOOKUP(Y125,Feuil1!$C$1:$BF$9,4,FALSE) ->  | AD125: =T125-HLOOKUP(Y125,Feuil1!$C$1:$BF$9,5,FALSE) ->  | AE125: =T125-HLOOKUP(Y125,Feuil1!$C$1:$BF$9,6,FALSE) ->  | AF125: =T125-HLOOKUP(Y125,Feuil1!$C$1:$BF$9,7,FALSE) ->  | AG125: =T125-HLOOKUP(Y125,Feuil1!$C$1:$BF$9,8,FALSE) ->  | AH125: =T125-HLOOKUP(Y125,Feuil1!$C$1:$BF$9,9,FALSE) ->  | AQ125: 2017 | AS125: =IF(AQ125,VLOOKUP(AQ125,FEM!$AS$468:$AT$523,2)) -> 4.493
A126: F | X126: FALSE | Y126: =IF(AND(H126<1936),VLOOKUP(I126,Feuil1!$F$10:$O$24,9),IF(AND(H126>=1942,H126<1947),VLOOKUP(I126,Feuil1!$F$10:$O$24,9),IF(AND(H126>=1947,H126<1952),VLOOKUP(I126,Feuil1!$F$10:$O$24,8),IF(AND(H126>=1952,H126<1957),VLOOKUP(I126,Feuil1!$F$10:$O$24,7),IF(AND(H126>=1957,H126<1962),VLOOKUP(I126,Feuil1!$F$10:$O$24,6),IF(AND(H126>=1962,H126<1967),VLOOKUP(I126,Feuil1!$F$10:$O$24,5),IF(AND(H126>=1967,H126<1972),VLOOKUP(I126,Feuil1!$F$10:$O$24,4),IF(AND(H126>=1972,H126<1977),VLOOKUP(I126,Feuil1!$F$10:$O$24,3),IF(AND(H126>=1977,H126<1982),VLOOKUP(I126,Feuil1!$F$10:$O$24,2),VLOOKUP(I126,Feuil1!$F$10:$O$24,2)))))))))) ->  | AA126: =T126-HLOOKUP(Y126,Feuil1!$C$1:$BF$9,2,FALSE) ->  | AB126: =T126-HLOOKUP(Y126,Feuil1!$C$1:$BF$9,3,FALSE) ->  | AC126: =T126-HLOOKUP(Y126,Feuil1!$C$1:$BF$9,4,FALSE) ->  | AD126: =T126-HLOOKUP(Y126,Feuil1!$C$1:$BF$9,5,FALSE) ->  | AE126: =T126-HLOOKUP(Y126,Feuil1!$C$1:$BF$9,6,FALSE) ->  | AF126: =T126-HLOOKUP(Y126,Feuil1!$C$1:$BF$9,7,FALSE) ->  | AG126: =T126-HLOOKUP(Y126,Feuil1!$C$1:$BF$9,8,FALSE) ->  | AH126: =T126-HLOOKUP(Y126,Feuil1!$C$1:$BF$9,9,FALSE) ->  | AQ126: 2017 | AS126: =IF(AQ126,VLOOKUP(AQ126,FEM!$AS$468:$AT$523,2)) -> 4.493
A127: F | X127: FALSE | Y127: =IF(AND(H127<1936),VLOOKUP(I127,Feuil1!$F$10:$O$24,9),IF(AND(H127>=1942,H127<1947),VLOOKUP(I127,Feuil1!$F$10:$O$24,9),IF(AND(H127>=1947,H127<1952),VLOOKUP(I127,Feuil1!$F$10:$O$24,8),IF(AND(H127>=1952,H127<1957),VLOOKUP(I127,Feuil1!$F$10:$O$24,7),IF(AND(H127>=1957,H127<1962),VLOOKUP(I127,Feuil1!$F$10:$O$24,6),IF(AND(H127>=1962,H127<1967),VLOOKUP(I127,Feuil1!$F$10:$O$24,5),IF(AND(H127>=1967,H127<1972),VLOOKUP(I127,Feuil1!$F$10:$O$24,4),IF(AND(H127>=1972,H127<1977),VLOOKUP(I127,Feuil1!$F$10:$O$24,3),IF(AND(H127>=1977,H127<1982),VLOOKUP(I127,Feuil1!$F$10:$O$24,2),VLOOKUP(I127,Feuil1!$F$10:$O$24,2)))))))))) ->  | AA127: =T127-HLOOKUP(Y127,Feuil1!$C$1:$BF$9,2,FALSE) ->  | AB127: =T127-HLOOKUP(Y127,Feuil1!$C$1:$BF$9,3,FALSE) ->  | AC127: =T127-HLOOKUP(Y127,Feuil1!$C$1:$BF$9,4,FALSE) ->  | AD127: =T127-HLOOKUP(Y127,Feuil1!$C$1:$BF$9,5,FALSE) ->  | AE127: =T127-HLOOKUP(Y127,Feuil1!$C$1:$BF$9,6,FALSE) ->  | AF127: =T127-HLOOKUP(Y127,Feuil1!$C$1:$BF$9,7,FALSE) ->  | AG127: =T127-HLOOKUP(Y127,Feuil1!$C$1:$BF$9,8,FALSE) ->  | AH127: =T127-HLOOKUP(Y127,Feuil1!$C$1:$BF$9,9,FALSE) ->  | AQ127: 2017 | AS127: =IF(AQ127,VLOOKUP(AQ127,FEM!$AS$468:$AT$523,2)) -> 4.493
A128: F | X128: FALSE | Y128: =IF(AND(H128<1936),VLOOKUP(I128,Feuil1!$F$10:$O$24,9),IF(AND(H128>=1942,H128<1947),VLOOKUP(I128,Feuil1!$F$10:$O$24,9),IF(AND(H128>=1947,H128<1952),VLOOKUP(I128,Feuil1!$F$10:$O$24,8),IF(AND(H128>=1952,H128<1957),VLOOKUP(I128,Feuil1!$F$10:$O$24,7),IF(AND(H128>=1957,H128<1962),VLOOKUP(I128,Feuil1!$F$10:$O$24,6),IF(AND(H128>=1962,H128<1967),VLOOKUP(I128,Feuil1!$F$10:$O$24,5),IF(AND(H128>=1967,H128<1972),VLOOKUP(I128,Feuil1!$F$10:$O$24,4),IF(AND(H128>=1972,H128<1977),VLOOKUP(I128,Feuil1!$F$10:$O$24,3),IF(AND(H128>=1977,H128<1982),VLOOKUP(I128,Feuil1!$F$10:$O$24,2),VLOOKUP(I128,Feuil1!$F$10:$O$24,2)))))))))) ->  | AA128: =T128-HLOOKUP(Y128,Feuil1!$C$1:$BF$9,2,FALSE) ->  | AB128: =T128-HLOOKUP(Y128,Feuil1!$C$1:$BF$9,3,FALSE) ->  | AC128: =T128-HLOOKUP(Y128,Feuil1!$C$1:$BF$9,4,FALSE) ->  | AD128: =T128-HLOOKUP(Y128,Feuil1!$C$1:$BF$9,5,FALSE) ->  | AE128: =T128-HLOOKUP(Y128,Feuil1!$C$1:$BF$9,6,FALSE) ->  | AF128: =T128-HLOOKUP(Y128,Feuil1!$C$1:$BF$9,7,FALSE) ->  | AG128: =T128-HLOOKUP(Y128,Feuil1!$C$1:$BF$9,8,FALSE) ->  | AH128: =T128-HLOOKUP(Y128,Feuil1!$C$1:$BF$9,9,FALSE) ->  | AQ128: 2017 | AS128: =IF(AQ128,VLOOKUP(AQ128,FEM!$AS$468:$AT$523,2)) -> 4.493
A129: F | X129: FALSE | Y129: =IF(AND(H129<1936),VLOOKUP(I129,Feuil1!$F$10:$O$24,9),IF(AND(H129>=1942,H129<1947),VLOOKUP(I129,Feuil1!$F$10:$O$24,9),IF(AND(H129>=1947,H129<1952),VLOOKUP(I129,Feuil1!$F$10:$O$24,8),IF(AND(H129>=1952,H129<1957),VLOOKUP(I129,Feuil1!$F$10:$O$24,7),IF(AND(H129>=1957,H129<1962),VLOOKUP(I129,Feuil1!$F$10:$O$24,6),IF(AND(H129>=1962,H129<1967),VLOOKUP(I129,Feuil1!$F$10:$O$24,5),IF(AND(H129>=1967,H129<1972),VLOOKUP(I129,Feuil1!$F$10:$O$24,4),IF(AND(H129>=1972,H129<1977),VLOOKUP(I129,Feuil1!$F$10:$O$24,3),IF(AND(H129>=1977,H129<1982),VLOOKUP(I129,Feuil1!$F$10:$O$24,2),VLOOKUP(I129,Feuil1!$F$10:$O$24,2)))))))))) ->  | AA129: =T129-HLOOKUP(Y129,Feuil1!$C$1:$BF$9,2,FALSE) ->  | AB129: =T129-HLOOKUP(Y129,Feuil1!$C$1:$BF$9,3,FALSE) ->  | AC129: =T129-HLOOKUP(Y129,Feuil1!$C$1:$BF$9,4,FALSE) ->  | AD129: =T129-HLOOKUP(Y129,Feuil1!$C$1:$BF$9,5,FALSE) ->  | AE129: =T129-HLOOKUP(Y129,Feuil1!$C$1:$BF$9,6,FALSE) ->  | AF129: =T129-HLOOKUP(Y129,Feuil1!$C$1:$BF$9,7,FALSE) ->  | AG129: =T129-HLOOKUP(Y129,Feuil1!$C$1:$BF$9,8,FALSE) ->  | AH129: =T129-HLOOKUP(Y129,Feuil1!$C$1:$BF$9,9,FALSE) ->  | AQ129: 2017 | AS129: =IF(AQ129,VLOOKUP(AQ129,FEM!$AS$468:$AT$523,2)) -> 4.493
A130: F | X130: FALSE | Y130: =IF(AND(H130<1936),VLOOKUP(I130,Feuil1!$F$10:$O$24,9),IF(AND(H130>=1942,H130<1947),VLOOKUP(I130,Feuil1!$F$10:$O$24,9),IF(AND(H130>=1947,H130<1952),VLOOKUP(I130,Feuil1!$F$10:$O$24,8),IF(AND(H130>=1952,H130<1957),VLOOKUP(I130,Feuil1!$F$10:$O$24,7),IF(AND(H130>=1957,H130<1962),VLOOKUP(I130,Feuil1!$F$10:$O$24,6),IF(AND(H130>=1962,H130<1967),VLOOKUP(I130,Feuil1!$F$10:$O$24,5),IF(AND(H130>=1967,H130<1972),VLOOKUP(I130,Feuil1!$F$10:$O$24,4),IF(AND(H130>=1972,H130<1977),VLOOKUP(I130,Feuil1!$F$10:$O$24,3),IF(AND(H130>=1977,H130<1982),VLOOKUP(I130,Feuil1!$F$10:$O$24,2),VLOOKUP(I130,Feuil1!$F$10:$O$24,2)))))))))) ->  | AA130: =T130-HLOOKUP(Y130,Feuil1!$C$1:$BF$9,2,FALSE) ->  | AB130: =T130-HLOOKUP(Y130,Feuil1!$C$1:$BF$9,3,FALSE) ->  | AC130: =T130-HLOOKUP(Y130,Feuil1!$C$1:$BF$9,4,FALSE) ->  | AD130: =T130-HLOOKUP(Y130,Feuil1!$C$1:$BF$9,5,FALSE) ->  | AE130: =T130-HLOOKUP(Y130,Feuil1!$C$1:$BF$9,6,FALSE) ->  | AF130: =T130-HLOOKUP(Y130,Feuil1!$C$1:$BF$9,7,FALSE) ->  | AG130: =T130-HLOOKUP(Y130,Feuil1!$C$1:$BF$9,8,FALSE) ->  | AH130: =T130-HLOOKUP(Y130,Feuil1!$C$1:$BF$9,9,FALSE) ->  | AQ130: 2017 | AS130: =IF(AQ130,VLOOKUP(AQ130,FEM!$AS$468:$AT$523,2)) -> 4.493
A131: F | X131: FALSE | Y131: =IF(AND(H131<1936),VLOOKUP(I131,Feuil1!$F$10:$O$24,9),IF(AND(H131>=1942,H131<1947),VLOOKUP(I131,Feuil1!$F$10:$O$24,9),IF(AND(H131>=1947,H131<1952),VLOOKUP(I131,Feuil1!$F$10:$O$24,8),IF(AND(H131>=1952,H131<1957),VLOOKUP(I131,Feuil1!$F$10:$O$24,7),IF(AND(H131>=1957,H131<1962),VLOOKUP(I131,Feuil1!$F$10:$O$24,6),IF(AND(H131>=1962,H131<1967),VLOOKUP(I131,Feuil1!$F$10:$O$24,5),IF(AND(H131>=1967,H131<1972),VLOOKUP(I131,Feuil1!$F$10:$O$24,4),IF(AND(H131>=1972,H131<1977),VLOOKUP(I131,Feuil1!$F$10:$O$24,3),IF(AND(H131>=1977,H131<1982),VLOOKUP(I131,Feuil1!$F$10:$O$24,2),VLOOKUP(I131,Feuil1!$F$10:$O$24,2)))))))))) ->  | AA131: =T131-HLOOKUP(Y131,Feuil1!$C$1:$BF$9,2,FALSE) ->  | AB131: =T131-HLOOKUP(Y131,Feuil1!$C$1:$BF$9,3,FALSE) ->  | AC131: =T131-HLOOKUP(Y131,Feuil1!$C$1:$BF$9,4,FALSE) ->  | AD131: =T131-HLOOKUP(Y131,Feuil1!$C$1:$BF$9,5,FALSE) ->  | AE131: =T131-HLOOKUP(Y131,Feuil1!$C$1:$BF$9,6,FALSE) ->  | AF131: =T131-HLOOKUP(Y131,Feuil1!$C$1:$BF$9,7,FALSE) ->  | AG131: =T131-HLOOKUP(Y131,Feuil1!$C$1:$BF$9,8,FALSE) ->  | AH131: =T131-HLOOKUP(Y131,Feuil1!$C$1:$BF$9,9,FALSE) ->  | AQ131: 2017 | AS131: =IF(AQ131,VLOOKUP(AQ131,FEM!$AS$468:$AT$523,2)) -> 4.493
A132: F | X132: FALSE | Y132: =IF(AND(H132<1936),VLOOKUP(I132,Feuil1!$F$10:$O$24,9),IF(AND(H132>=1942,H132<1947),VLOOKUP(I132,Feuil1!$F$10:$O$24,9),IF(AND(H132>=1947,H132<1952),VLOOKUP(I132,Feuil1!$F$10:$O$24,8),IF(AND(H132>=1952,H132<1957),VLOOKUP(I132,Feuil1!$F$10:$O$24,7),IF(AND(H132>=1957,H132<1962),VLOOKUP(I132,Feuil1!$F$10:$O$24,6),IF(AND(H132>=1962,H132<1967),VLOOKUP(I132,Feuil1!$F$10:$O$24,5),IF(AND(H132>=1967,H132<1972),VLOOKUP(I132,Feuil1!$F$10:$O$24,4),IF(AND(H132>=1972,H132<1977),VLOOKUP(I132,Feuil1!$F$10:$O$24,3),IF(AND(H132>=1977,H132<1982),VLOOKUP(I132,Feuil1!$F$10:$O$24,2),VLOOKUP(I132,Feuil1!$F$10:$O$24,2)))))))))) ->  | AA132: =T132-HLOOKUP(Y132,Feuil1!$C$1:$BF$9,2,FALSE) ->  | AB132: =T132-HLOOKUP(Y132,Feuil1!$C$1:$BF$9,3,FALSE) ->  | AC132: =T132-HLOOKUP(Y132,Feuil1!$C$1:$BF$9,4,FALSE) ->  | AD132: =T132-HLOOKUP(Y132,Feuil1!$C$1:$BF$9,5,FALSE) ->  | AE132: =T132-HLOOKUP(Y132,Feuil1!$C$1:$BF$9,6,FALSE) ->  | AF132: =T132-HLOOKUP(Y132,Feuil1!$C$1:$BF$9,7,FALSE) ->  | AG132: =T132-HLOOKUP(Y132,Feuil1!$C$1:$BF$9,8,FALSE) ->  | AH132: =T132-HLOOKUP(Y132,Feuil1!$C$1:$BF$9,9,FALSE) ->  | AQ132: 2017 | AS132: =IF(AQ132,VLOOKUP(AQ132,FEM!$AS$468:$AT$523,2)) -> 4.493
A133: F | X133: FALSE | Y133: =IF(AND(H133<1936),VLOOKUP(I133,Feuil1!$F$10:$O$24,9),IF(AND(H133>=1942,H133<1947),VLOOKUP(I133,Feuil1!$F$10:$O$24,9),IF(AND(H133>=1947,H133<1952),VLOOKUP(I133,Feuil1!$F$10:$O$24,8),IF(AND(H133>=1952,H133<1957),VLOOKUP(I133,Feuil1!$F$10:$O$24,7),IF(AND(H133>=1957,H133<1962),VLOOKUP(I133,Feuil1!$F$10:$O$24,6),IF(AND(H133>=1962,H133<1967),VLOOKUP(I133,Feuil1!$F$10:$O$24,5),IF(AND(H133>=1967,H133<1972),VLOOKUP(I133,Feuil1!$F$10:$O$24,4),IF(AND(H133>=1972,H133<1977),VLOOKUP(I133,Feuil1!$F$10:$O$24,3),IF(AND(H133>=1977,H133<1982),VLOOKUP(I133,Feuil1!$F$10:$O$24,2),VLOOKUP(I133,Feuil1!$F$10:$O$24,2)))))))))) ->  | AA133: =T133-HLOOKUP(Y133,Feuil1!$C$1:$BF$9,2,FALSE) ->  | AB133: =T133-HLOOKUP(Y133,Feuil1!$C$1:$BF$9,3,FALSE) ->  | AC133: =T133-HLOOKUP(Y133,Feuil1!$C$1:$BF$9,4,FALSE) ->  | AD133: =T133-HLOOKUP(Y133,Feuil1!$C$1:$BF$9,5,FALSE) ->  | AE133: =T133-HLOOKUP(Y133,Feuil1!$C$1:$BF$9,6,FALSE) ->  | AF133: =T133-HLOOKUP(Y133,Feuil1!$C$1:$BF$9,7,FALSE) ->  | AG133: =T133-HLOOKUP(Y133,Feuil1!$C$1:$BF$9,8,FALSE) ->  | AH133: =T133-HLOOKUP(Y133,Feuil1!$C$1:$BF$9,9,FALSE) ->  | AQ133: 2017 | AS133: =IF(AQ133,VLOOKUP(AQ133,FEM!$AS$468:$AT$523,2)) -> 4.493
A134: F | X134: FALSE | Y134: =IF(AND(H134<1936),VLOOKUP(I134,Feuil1!$F$10:$O$24,9),IF(AND(H134>=1942,H134<1947),VLOOKUP(I134,Feuil1!$F$10:$O$24,9),IF(AND(H134>=1947,H134<1952),VLOOKUP(I134,Feuil1!$F$10:$O$24,8),IF(AND(H134>=1952,H134<1957),VLOOKUP(I134,Feuil1!$F$10:$O$24,7),IF(AND(H134>=1957,H134<1962),VLOOKUP(I134,Feuil1!$F$10:$O$24,6),IF(AND(H134>=1962,H134<1967),VLOOKUP(I134,Feuil1!$F$10:$O$24,5),IF(AND(H134>=1967,H134<1972),VLOOKUP(I134,Feuil1!$F$10:$O$24,4),IF(AND(H134>=1972,H134<1977),VLOOKUP(I134,Feuil1!$F$10:$O$24,3),IF(AND(H134>=1977,H134<1982),VLOOKUP(I134,Feuil1!$F$10:$O$24,2),VLOOKUP(I134,Feuil1!$F$10:$O$24,2)))))))))) ->  | AA134: =T134-HLOOKUP(Y134,Feuil1!$C$1:$BF$9,2,FALSE) ->  | AB134: =T134-HLOOKUP(Y134,Feuil1!$C$1:$BF$9,3,FALSE) ->  | AC134: =T134-HLOOKUP(Y134,Feuil1!$C$1:$BF$9,4,FALSE) ->  | AD134: =T134-HLOOKUP(Y134,Feuil1!$C$1:$BF$9,5,FALSE) ->  | AE134: =T134-HLOOKUP(Y134,Feuil1!$C$1:$BF$9,6,FALSE) ->  | AF134: =T134-HLOOKUP(Y134,Feuil1!$C$1:$BF$9,7,FALSE) ->  | AG134: =T134-HLOOKUP(Y134,Feuil1!$C$1:$BF$9,8,FALSE) ->  | AH134: =T134-HLOOKUP(Y134,Feuil1!$C$1:$BF$9,9,FALSE) ->  | AQ134: 2017 | AS134: =IF(AQ134,VLOOKUP(AQ134,FEM!$AS$468:$AT$523,2)) -> 4.493
A135: F | X135: FALSE | Y135: =IF(AND(H135<1936),VLOOKUP(I135,Feuil1!$F$10:$O$24,9),IF(AND(H135>=1942,H135<1947),VLOOKUP(I135,Feuil1!$F$10:$O$24,9),IF(AND(H135>=1947,H135<1952),VLOOKUP(I135,Feuil1!$F$10:$O$24,8),IF(AND(H135>=1952,H135<1957),VLOOKUP(I135,Feuil1!$F$10:$O$24,7),IF(AND(H135>=1957,H135<1962),VLOOKUP(I135,Feuil1!$F$10:$O$24,6),IF(AND(H135>=1962,H135<1967),VLOOKUP(I135,Feuil1!$F$10:$O$24,5),IF(AND(H135>=1967,H135<1972),VLOOKUP(I135,Feuil1!$F$10:$O$24,4),IF(AND(H135>=1972,H135<1977),VLOOKUP(I135,Feuil1!$F$10:$O$24,3),IF(AND(H135>=1977,H135<1982),VLOOKUP(I135,Feuil1!$F$10:$O$24,2),VLOOKUP(I135,Feuil1!$F$10:$O$24,2)))))))))) ->  | AA135: =T135-HLOOKUP(Y135,Feuil1!$C$1:$BF$9,2,FALSE) ->  | AB135: =T135-HLOOKUP(Y135,Feuil1!$C$1:$BF$9,3,FALSE) ->  | AC135: =T135-HLOOKUP(Y135,Feuil1!$C$1:$BF$9,4,FALSE) ->  | AD135: =T135-HLOOKUP(Y135,Feuil1!$C$1:$BF$9,5,FALSE) ->  | AE135: =T135-HLOOKUP(Y135,Feuil1!$C$1:$BF$9,6,FALSE) ->  | AF135: =T135-HLOOKUP(Y135,Feuil1!$C$1:$BF$9,7,FALSE) ->  | AG135: =T135-HLOOKUP(Y135,Feuil1!$C$1:$BF$9,8,FALSE) ->  | AH135: =T135-HLOOKUP(Y135,Feuil1!$C$1:$BF$9,9,FALSE) ->  | AQ135: 2017 | AS135: =IF(AQ135,VLOOKUP(AQ135,FEM!$AS$468:$AT$523,2)) -> 4.493
A136: F | X136: FALSE | Y136: =IF(AND(H136<1936),VLOOKUP(I136,Feuil1!$F$10:$O$24,9),IF(AND(H136>=1942,H136<1947),VLOOKUP(I136,Feuil1!$F$10:$O$24,9),IF(AND(H136>=1947,H136<1952),VLOOKUP(I136,Feuil1!$F$10:$O$24,8),IF(AND(H136>=1952,H136<1957),VLOOKUP(I136,Feuil1!$F$10:$O$24,7),IF(AND(H136>=1957,H136<1962),VLOOKUP(I136,Feuil1!$F$10:$O$24,6),IF(AND(H136>=1962,H136<1967),VLOOKUP(I136,Feuil1!$F$10:$O$24,5),IF(AND(H136>=1967,H136<1972),VLOOKUP(I136,Feuil1!$F$10:$O$24,4),IF(AND(H136>=1972,H136<1977),VLOOKUP(I136,Feuil1!$F$10:$O$24,3),IF(AND(H136>=1977,H136<1982),VLOOKUP(I136,Feuil1!$F$10:$O$24,2),VLOOKUP(I136,Feuil1!$F$10:$O$24,2)))))))))) ->  | AA136: =T136-HLOOKUP(Y136,Feuil1!$C$1:$BF$9,2,FALSE) ->  | AB136: =T136-HLOOKUP(Y136,Feuil1!$C$1:$BF$9,3,FALSE) ->  | AC136: =T136-HLOOKUP(Y136,Feuil1!$C$1:$BF$9,4,FALSE) ->  | AD136: =T136-HLOOKUP(Y136,Feuil1!$C$1:$BF$9,5,FALSE) ->  | AE136: =T136-HLOOKUP(Y136,Feuil1!$C$1:$BF$9,6,FALSE) ->  | AF136: =T136-HLOOKUP(Y136,Feuil1!$C$1:$BF$9,7,FALSE) ->  | AG136: =T136-HLOOKUP(Y136,Feuil1!$C$1:$BF$9,8,FALSE) ->  | AH136: =T136-HLOOKUP(Y136,Feuil1!$C$1:$BF$9,9,FALSE) ->  | AQ136: =2017-H136 -> 2017 | AS136: =IF(AQ136,VLOOKUP(AQ136,FEM!$AS$468:$AT$523,2)) -> 4.493
A137: F | X137: FALSE | Y137: =IF(AND(H137<1936),VLOOKUP(I137,Feuil1!$F$10:$O$24,9),IF(AND(H137>=1942,H137<1947),VLOOKUP(I137,Feuil1!$F$10:$O$24,9),IF(AND(H137>=1947,H137<1952),VLOOKUP(I137,Feuil1!$F$10:$O$24,8),IF(AND(H137>=1952,H137<1957),VLOOKUP(I137,Feuil1!$F$10:$O$24,7),IF(AND(H137>=1957,H137<1962),VLOOKUP(I137,Feuil1!$F$10:$O$24,6),IF(AND(H137>=1962,H137<1967),VLOOKUP(I137,Feuil1!$F$10:$O$24,5),IF(AND(H137>=1967,H137<1972),VLOOKUP(I137,Feuil1!$F$10:$O$24,4),IF(AND(H137>=1972,H137<1977),VLOOKUP(I137,Feuil1!$F$10:$O$24,3),IF(AND(H137>=1977,H137<1982),VLOOKUP(I137,Feuil1!$F$10:$O$24,2),VLOOKUP(I137,Feuil1!$F$10:$O$24,2)))))))))) ->  | AA137: =T137-HLOOKUP(Y137,Feuil1!$C$1:$BF$9,2,FALSE) ->  | AB137: =T137-HLOOKUP(Y137,Feuil1!$C$1:$BF$9,3,FALSE) ->  | AC137: =T137-HLOOKUP(Y137,Feuil1!$C$1:$BF$9,4,FALSE) ->  | AD137: =T137-HLOOKUP(Y137,Feuil1!$C$1:$BF$9,5,FALSE) ->  | AE137: =T137-HLOOKUP(Y137,Feuil1!$C$1:$BF$9,6,FALSE) ->  | AF137: =T137-HLOOKUP(Y137,Feuil1!$C$1:$BF$9,7,FALSE) ->  | AG137: =T137-HLOOKUP(Y137,Feuil1!$C$1:$BF$9,8,FALSE) ->  | AH137: =T137-HLOOKUP(Y137,Feuil1!$C$1:$BF$9,9,FALSE) ->  | AQ137: 2017 | AS137: =IF(AQ137,VLOOKUP(AQ137,FEM!$AS$468:$AT$523,2)) -> 4.493
Y138: =IF(AND(H138<1936),VLOOKUP(I138,Feuil1!$F$10:$O$24,9),IF(AND(H138>=1942,H138<1947),VLOOKUP(I138,Feuil1!$F$10:$O$24,9),IF(AND(H138>=1947,H138<1952),VLOOKUP(I138,Feuil1!$F$10:$O$24,8),IF(AND(H138>=1952,H138<1957),VLOOKUP(I138,Feuil1!$F$10:$O$24,7),IF(AND(H138>=1957,H138<1962),VLOOKUP(I138,Feuil1!$F$10:$O$24,6),IF(AND(H138>=1962,H138<1967),VLOOKUP(I138,Feuil1!$F$10:$O$24,5),IF(AND(H138>=1967,H138<1972),VLOOKUP(I138,Feuil1!$F$10:$O$24,4),IF(AND(H138>=1972,H138<1977),VLOOKUP(I138,Feuil1!$F$10:$O$24,3),IF(AND(H138>=1977,H138<1982),VLOOKUP(I138,Feuil1!$F$10:$O$24,2),VLOOKUP(I138,Feuil1!$F$10:$O$24,2)))))))))) ->  | AP138: =IF(AH138>=0,$AH$5,IF(AG138>=0,$AG$5,IF(AF138>=0,$AF$5,IF(AE138>=0,$AE$5,IF(AD138>=0,$AD$5,IF(AC138>=0,$AC$5,IF(AB138>=0,$AB$5,IF(AA138>=0,$AA$5,$AI$5)))))))) -> OLY + | AQ138: 2017 | AS138: =IF(AQ138,VLOOKUP(AQ138,FEM!$AS$468:$AT$523,2)) -> 4.493
Y139: =IF(AND(H139<1936),VLOOKUP(I139,Feuil1!$F$10:$O$24,9),IF(AND(H139>=1942,H139<1947),VLOOKUP(I139,Feuil1!$F$10:$O$24,9),IF(AND(H139>=1947,H139<1952),VLOOKUP(I139,Feuil1!$F$10:$O$24,8),IF(AND(H139>=1952,H139<1957),VLOOKUP(I139,Feuil1!$F$10:$O$24,7),IF(AND(H139>=1957,H139<1962),VLOOKUP(I139,Feuil1!$F$10:$O$24,6),IF(AND(H139>=1962,H139<1967),VLOOKUP(I139,Feuil1!$F$10:$O$24,5),IF(AND(H139>=1967,H139<1972),VLOOKUP(I139,Feuil1!$F$10:$O$24,4),IF(AND(H139>=1972,H139<1977),VLOOKUP(I139,Feuil1!$F$10:$O$24,3),IF(AND(H139>=1977,H139<1982),VLOOKUP(I139,Feuil1!$F$10:$O$24,2),VLOOKUP(I139,Feuil1!$F$10:$O$24,2)))))))))) ->  | AP139: OLY + | AQ139: 2017 | AS139: =IF(AQ139,VLOOKUP(AQ139,FEM!$AS$468:$AT$523,2)) -> 4.493
Y140: =IF(AND(H140<1936),VLOOKUP(I140,Feuil1!$F$10:$O$24,9),IF(AND(H140>=1942,H140<1947),VLOOKUP(I140,Feuil1!$F$10:$O$24,9),IF(AND(H140>=1947,H140<1952),VLOOKUP(I140,Feuil1!$F$10:$O$24,8),IF(AND(H140>=1952,H140<1957),VLOOKUP(I140,Feuil1!$F$10:$O$24,7),IF(AND(H140>=1957,H140<1962),VLOOKUP(I140,Feuil1!$F$10:$O$24,6),IF(AND(H140>=1962,H140<1967),VLOOKUP(I140,Feuil1!$F$10:$O$24,5),IF(AND(H140>=1967,H140<1972),VLOOKUP(I140,Feuil1!$F$10:$O$24,4),IF(AND(H140>=1972,H140<1977),VLOOKUP(I140,Feuil1!$F$10:$O$24,3),IF(AND(H140>=1977,H140<1982),VLOOKUP(I140,Feuil1!$F$10:$O$24,2),VLOOKUP(I140,Feuil1!$F$10:$O$24,2)))))))))) ->  | AP140: OLY + | AQ140: 2017 | AS140: =IF(AQ140,VLOOKUP(AQ140,FEM!$AS$468:$AT$523,2)) -> 4.493
Y141: =IF(AND(H141<1936),VLOOKUP(I141,Feuil1!$F$10:$O$24,9),IF(AND(H141>=1942,H141<1947),VLOOKUP(I141,Feuil1!$F$10:$O$24,9),IF(AND(H141>=1947,H141<1952),VLOOKUP(I141,Feuil1!$F$10:$O$24,8),IF(AND(H141>=1952,H141<1957),VLOOKUP(I141,Feuil1!$F$10:$O$24,7),IF(AND(H141>=1957,H141<1962),VLOOKUP(I141,Feuil1!$F$10:$O$24,6),IF(AND(H141>=1962,H141<1967),VLOOKUP(I141,Feuil1!$F$10:$O$24,5),IF(AND(H141>=1967,H141<1972),VLOOKUP(I141,Feuil1!$F$10:$O$24,4),IF(AND(H141>=1972,H141<1977),VLOOKUP(I141,Feuil1!$F$10:$O$24,3),IF(AND(H141>=1977,H141<1982),VLOOKUP(I141,Feuil1!$F$10:$O$24,2),VLOOKUP(I141,Feuil1!$F$10:$O$24,2)))))))))) ->  | AP141: OLY + | AQ141: 2017 | AS141: =IF(AQ141,VLOOKUP(AQ141,FEM!$AS$468:$AT$523,2)) -> 4.493
Y142: =IF(AND(H142<1936),VLOOKUP(I142,Feuil1!$F$10:$O$24,9),IF(AND(H142>=1942,H142<1947),VLOOKUP(I142,Feuil1!$F$10:$O$24,9),IF(AND(H142>=1947,H142<1952),VLOOKUP(I142,Feuil1!$F$10:$O$24,8),IF(AND(H142>=1952,H142<1957),VLOOKUP(I142,Feuil1!$F$10:$O$24,7),IF(AND(H142>=1957,H142<1962),VLOOKUP(I142,Feuil1!$F$10:$O$24,6),IF(AND(H142>=1962,H142<1967),VLOOKUP(I142,Feuil1!$F$10:$O$24,5),IF(AND(H142>=1967,H142<1972),VLOOKUP(I142,Feuil1!$F$10:$O$24,4),IF(AND(H142>=1972,H142<1977),VLOOKUP(I142,Feuil1!$F$10:$O$24,3),IF(AND(H142>=1977,H142<1982),VLOOKUP(I142,Feuil1!$F$10:$O$24,2),VLOOKUP(I142,Feuil1!$F$10:$O$24,2)))))))))) ->  | AP142: OLY + | AQ142: 2017 | AS142: =IF(AQ142,VLOOKUP(AQ142,FEM!$AS$468:$AT$523,2)) -> 4.493
Y143: =IF(AND(H143<1936),VLOOKUP(I143,Feuil1!$F$10:$O$24,9),IF(AND(H143>=1942,H143<1947),VLOOKUP(I143,Feuil1!$F$10:$O$24,9),IF(AND(H143>=1947,H143<1952),VLOOKUP(I143,Feuil1!$F$10:$O$24,8),IF(AND(H143>=1952,H143<1957),VLOOKUP(I143,Feuil1!$F$10:$O$24,7),IF(AND(H143>=1957,H143<1962),VLOOKUP(I143,Feuil1!$F$10:$O$24,6),IF(AND(H143>=1962,H143<1967),VLOOKUP(I143,Feuil1!$F$10:$O$24,5),IF(AND(H143>=1967,H143<1972),VLOOKUP(I143,Feuil1!$F$10:$O$24,4),IF(AND(H143>=1972,H143<1977),VLOOKUP(I143,Feuil1!$F$10:$O$24,3),IF(AND(H143>=1977,H143<1982),VLOOKUP(I143,Feuil1!$F$10:$O$24,2),VLOOKUP(I143,Feuil1!$F$10:$O$24,2)))))))))) ->  | AP143: OLY + | AQ143: 2017 | AS143: =IF(AQ143,VLOOKUP(AQ143,FEM!$AS$468:$AT$523,2)) -> 4.493
Y144: =IF(AND(H144<1936),VLOOKUP(I144,Feuil1!$F$10:$O$24,9),IF(AND(H144>=1942,H144<1947),VLOOKUP(I144,Feuil1!$F$10:$O$24,9),IF(AND(H144>=1947,H144<1952),VLOOKUP(I144,Feuil1!$F$10:$O$24,8),IF(AND(H144>=1952,H144<1957),VLOOKUP(I144,Feuil1!$F$10:$O$24,7),IF(AND(H144>=1957,H144<1962),VLOOKUP(I144,Feuil1!$F$10:$O$24,6),IF(AND(H144>=1962,H144<1967),VLOOKUP(I144,Feuil1!$F$10:$O$24,5),IF(AND(H144>=1967,H144<1972),VLOOKUP(I144,Feuil1!$F$10:$O$24,4),IF(AND(H144>=1972,H144<1977),VLOOKUP(I144,Feuil1!$F$10:$O$24,3),IF(AND(H144>=1977,H144<1982),VLOOKUP(I144,Feuil1!$F$10:$O$24,2),VLOOKUP(I144,Feuil1!$F$10:$O$24,2)))))))))) ->  | AP144: OLY + | AQ144: 2017 | AS144: =IF(AQ144,VLOOKUP(AQ144,FEM!$AS$468:$AT$523,2)) -> 4.493
Y145: =IF(AND(H145<1936),VLOOKUP(I145,Feuil1!$F$10:$O$24,9),IF(AND(H145>=1942,H145<1947),VLOOKUP(I145,Feuil1!$F$10:$O$24,9),IF(AND(H145>=1947,H145<1952),VLOOKUP(I145,Feuil1!$F$10:$O$24,8),IF(AND(H145>=1952,H145<1957),VLOOKUP(I145,Feuil1!$F$10:$O$24,7),IF(AND(H145>=1957,H145<1962),VLOOKUP(I145,Feuil1!$F$10:$O$24,6),IF(AND(H145>=1962,H145<1967),VLOOKUP(I145,Feuil1!$F$10:$O$24,5),IF(AND(H145>=1967,H145<1972),VLOOKUP(I145,Feuil1!$F$10:$O$24,4),IF(AND(H145>=1972,H145<1977),VLOOKUP(I145,Feuil1!$F$10:$O$24,3),IF(AND(H145>=1977,H145<1982),VLOOKUP(I145,Feuil1!$F$10:$O$24,2),VLOOKUP(I145,Feuil1!$F$10:$O$24,2)))))))))) ->  | AP145: OLY + | AQ145: 2017 | AS145: =IF(AQ145,VLOOKUP(AQ145,FEM!$AS$468:$AT$523,2)) -> 4.493
Y146: =IF(AND(H146<1936),VLOOKUP(I146,Feuil1!$F$10:$O$24,9),IF(AND(H146>=1942,H146<1947),VLOOKUP(I146,Feuil1!$F$10:$O$24,9),IF(AND(H146>=1947,H146<1952),VLOOKUP(I146,Feuil1!$F$10:$O$24,8),IF(AND(H146>=1952,H146<1957),VLOOKUP(I146,Feuil1!$F$10:$O$24,7),IF(AND(H146>=1957,H146<1962),VLOOKUP(I146,Feuil1!$F$10:$O$24,6),IF(AND(H146>=1962,H146<1967),VLOOKUP(I146,Feuil1!$F$10:$O$24,5),IF(AND(H146>=1967,H146<1972),VLOOKUP(I146,Feuil1!$F$10:$O$24,4),IF(AND(H146>=1972,H146<1977),VLOOKUP(I146,Feuil1!$F$10:$O$24,3),IF(AND(H146>=1977,H146<1982),VLOOKUP(I146,Feuil1!$F$10:$O$24,2),VLOOKUP(I146,Feuil1!$F$10:$O$24,2)))))))))) ->  | AP146: OLY + | AQ146: 2017 | AS146: =IF(AQ146,VLOOKUP(AQ146,FEM!$AS$468:$AT$523,2)) -> 4.493
Y147: =IF(AND(H147<1936),VLOOKUP(I147,Feuil1!$F$10:$O$24,9),IF(AND(H147>=1942,H147<1947),VLOOKUP(I147,Feuil1!$F$10:$O$24,9),IF(AND(H147>=1947,H147<1952),VLOOKUP(I147,Feuil1!$F$10:$O$24,8),IF(AND(H147>=1952,H147<1957),VLOOKUP(I147,Feuil1!$F$10:$O$24,7),IF(AND(H147>=1957,H147<1962),VLOOKUP(I147,Feuil1!$F$10:$O$24,6),IF(AND(H147>=1962,H147<1967),VLOOKUP(I147,Feuil1!$F$10:$O$24,5),IF(AND(H147>=1967,H147<1972),VLOOKUP(I147,Feuil1!$F$10:$O$24,4),IF(AND(H147>=1972,H147<1977),VLOOKUP(I147,Feuil1!$F$10:$O$24,3),IF(AND(H147>=1977,H147<1982),VLOOKUP(I147,Feuil1!$F$10:$O$24,2),VLOOKUP(I147,Feuil1!$F$10:$O$24,2)))))))))) ->  | AP147: OLY + | AQ147: 2017 | AS147: =IF(AQ147,VLOOKUP(AQ147,FEM!$AS$468:$AT$523,2)) -> 4.493
Y148: =IF(AND(H148<1936),VLOOKUP(I148,Feuil1!$F$10:$O$24,9),IF(AND(H148>=1942,H148<1947),VLOOKUP(I148,Feuil1!$F$10:$O$24,9),IF(AND(H148>=1947,H148<1952),VLOOKUP(I148,Feuil1!$F$10:$O$24,8),IF(AND(H148>=1952,H148<1957),VLOOKUP(I148,Feuil1!$F$10:$O$24,7),IF(AND(H148>=1957,H148<1962),VLOOKUP(I148,Feuil1!$F$10:$O$24,6),IF(AND(H148>=1962,H148<1967),VLOOKUP(I148,Feuil1!$F$10:$O$24,5),IF(AND(H148>=1967,H148<1972),VLOOKUP(I148,Feuil1!$F$10:$O$24,4),IF(AND(H148>=1972,H148<1977),VLOOKUP(I148,Feuil1!$F$10:$O$24,3),IF(AND(H148>=1977,H148<1982),VLOOKUP(I148,Feuil1!$F$10:$O$24,2),VLOOKUP(I148,Feuil1!$F$10:$O$24,2)))))))))) ->  | AP148: OLY + | AQ148: 2017 | AS148: =IF(AQ148,VLOOKUP(AQ148,FEM!$AS$468:$AT$523,2)) -> 4.493
Y149: =IF(AND(H149<1936),VLOOKUP(I149,Feuil1!$F$10:$O$24,9),IF(AND(H149>=1942,H149<1947),VLOOKUP(I149,Feuil1!$F$10:$O$24,9),IF(AND(H149>=1947,H149<1952),VLOOKUP(I149,Feuil1!$F$10:$O$24,8),IF(AND(H149>=1952,H149<1957),VLOOKUP(I149,Feuil1!$F$10:$O$24,7),IF(AND(H149>=1957,H149<1962),VLOOKUP(I149,Feuil1!$F$10:$O$24,6),IF(AND(H149>=1962,H149<1967),VLOOKUP(I149,Feuil1!$F$10:$O$24,5),IF(AND(H149>=1967,H149<1972),VLOOKUP(I149,Feuil1!$F$10:$O$24,4),IF(AND(H149>=1972,H149<1977),VLOOKUP(I149,Feuil1!$F$10:$O$24,3),IF(AND(H149>=1977,H149<1982),VLOOKUP(I149,Feuil1!$F$10:$O$24,2),VLOOKUP(I149,Feuil1!$F$10:$O$24,2)))))))))) ->  | AP149: OLY + | AQ149: 2017 | AS149: =IF(AQ149,VLOOKUP(AQ149,FEM!$AS$468:$AT$523,2)) -> 4.493
Y150: =IF(AND(H150<1936),VLOOKUP(I150,Feuil1!$F$10:$O$24,9),IF(AND(H150>=1942,H150<1947),VLOOKUP(I150,Feuil1!$F$10:$O$24,9),IF(AND(H150>=1947,H150<1952),VLOOKUP(I150,Feuil1!$F$10:$O$24,8),IF(AND(H150>=1952,H150<1957),VLOOKUP(I150,Feuil1!$F$10:$O$24,7),IF(AND(H150>=1957,H150<1962),VLOOKUP(I150,Feuil1!$F$10:$O$24,6),IF(AND(H150>=1962,H150<1967),VLOOKUP(I150,Feuil1!$F$10:$O$24,5),IF(AND(H150>=1967,H150<1972),VLOOKUP(I150,Feuil1!$F$10:$O$24,4),IF(AND(H150>=1972,H150<1977),VLOOKUP(I150,Feuil1!$F$10:$O$24,3),IF(AND(H150>=1977,H150<1982),VLOOKUP(I150,Feuil1!$F$10:$O$24,2),VLOOKUP(I150,Feuil1!$F$10:$O$24,2)))))))))) ->  | AP150: OLY + | AQ150: 2017 | AS150: =IF(AQ150,VLOOKUP(AQ150,FEM!$AS$468:$AT$523,2)) -> 4.493
Y151: =IF(AND(H151<1936),VLOOKUP(I151,Feuil1!$F$10:$O$24,9),IF(AND(H151>=1942,H151<1947),VLOOKUP(I151,Feuil1!$F$10:$O$24,9),IF(AND(H151>=1947,H151<1952),VLOOKUP(I151,Feuil1!$F$10:$O$24,8),IF(AND(H151>=1952,H151<1957),VLOOKUP(I151,Feuil1!$F$10:$O$24,7),IF(AND(H151>=1957,H151<1962),VLOOKUP(I151,Feuil1!$F$10:$O$24,6),IF(AND(H151>=1962,H151<1967),VLOOKUP(I151,Feuil1!$F$10:$O$24,5),IF(AND(H151>=1967,H151<1972),VLOOKUP(I151,Feuil1!$F$10:$O$24,4),IF(AND(H151>=1972,H151<1977),VLOOKUP(I151,Feuil1!$F$10:$O$24,3),IF(AND(H151>=1977,H151<1982),VLOOKUP(I151,Feuil1!$F$10:$O$24,2),VLOOKUP(I151,Feuil1!$F$10:$O$24,2)))))))))) ->  | AP151: OLY + | AQ151: 2017 | AS151: =IF(AQ151,VLOOKUP(AQ151,FEM!$AS$468:$AT$523,2)) -> 4.493
Y152: =IF(AND(H152<1936),VLOOKUP(I152,Feuil1!$F$10:$O$24,9),IF(AND(H152>=1942,H152<1947),VLOOKUP(I152,Feuil1!$F$10:$O$24,9),IF(AND(H152>=1947,H152<1952),VLOOKUP(I152,Feuil1!$F$10:$O$24,8),IF(AND(H152>=1952,H152<1957),VLOOKUP(I152,Feuil1!$F$10:$O$24,7),IF(AND(H152>=1957,H152<1962),VLOOKUP(I152,Feuil1!$F$10:$O$24,6),IF(AND(H152>=1962,H152<1967),VLOOKUP(I152,Feuil1!$F$10:$O$24,5),IF(AND(H152>=1967,H152<1972),VLOOKUP(I152,Feuil1!$F$10:$O$24,4),IF(AND(H152>=1972,H152<1977),VLOOKUP(I152,Feuil1!$F$10:$O$24,3),IF(AND(H152>=1977,H152<1982),VLOOKUP(I152,Feuil1!$F$10:$O$24,2),VLOOKUP(I152,Feuil1!$F$10:$O$24,2)))))))))) ->  | AP152: OLY + | AQ152: 2017 | AS152: =IF(AQ152,VLOOKUP(AQ152,FEM!$AS$468:$AT$523,2)) -> 4.493
Y153: =IF(AND(H153<1936),VLOOKUP(I153,Feuil1!$F$10:$O$24,9),IF(AND(H153>=1942,H153<1947),VLOOKUP(I153,Feuil1!$F$10:$O$24,9),IF(AND(H153>=1947,H153<1952),VLOOKUP(I153,Feuil1!$F$10:$O$24,8),IF(AND(H153>=1952,H153<1957),VLOOKUP(I153,Feuil1!$F$10:$O$24,7),IF(AND(H153>=1957,H153<1962),VLOOKUP(I153,Feuil1!$F$10:$O$24,6),IF(AND(H153>=1962,H153<1967),VLOOKUP(I153,Feuil1!$F$10:$O$24,5),IF(AND(H153>=1967,H153<1972),VLOOKUP(I153,Feuil1!$F$10:$O$24,4),IF(AND(H153>=1972,H153<1977),VLOOKUP(I153,Feuil1!$F$10:$O$24,3),IF(AND(H153>=1977,H153<1982),VLOOKUP(I153,Feuil1!$F$10:$O$24,2),VLOOKUP(I153,Feuil1!$F$10:$O$24,2)))))))))) ->  | AP153: OLY + | AQ153: 2017 | AS153: =IF(AQ153,VLOOKUP(AQ153,FEM!$AS$468:$AT$523,2)) -> 4.493
Y154: =IF(AND(H154<1936),VLOOKUP(I154,Feuil1!$F$10:$O$24,9),IF(AND(H154>=1942,H154<1947),VLOOKUP(I154,Feuil1!$F$10:$O$24,9),IF(AND(H154>=1947,H154<1952),VLOOKUP(I154,Feuil1!$F$10:$O$24,8),IF(AND(H154>=1952,H154<1957),VLOOKUP(I154,Feuil1!$F$10:$O$24,7),IF(AND(H154>=1957,H154<1962),VLOOKUP(I154,Feuil1!$F$10:$O$24,6),IF(AND(H154>=1962,H154<1967),VLOOKUP(I154,Feuil1!$F$10:$O$24,5),IF(AND(H154>=1967,H154<1972),VLOOKUP(I154,Feuil1!$F$10:$O$24,4),IF(AND(H154>=1972,H154<1977),VLOOKUP(I154,Feuil1!$F$10:$O$24,3),IF(AND(H154>=1977,H154<1982),VLOOKUP(I154,Feuil1!$F$10:$O$24,2),VLOOKUP(I154,Feuil1!$F$10:$O$24,2)))))))))) ->  | AP154: OLY + | AQ154: 2017 | AS154: =IF(AQ154,VLOOKUP(AQ154,FEM!$AS$468:$AT$523,2)) -> 4.493
Y155: =IF(AND(H155<1936),VLOOKUP(I155,Feuil1!$F$10:$O$24,9),IF(AND(H155>=1942,H155<1947),VLOOKUP(I155,Feuil1!$F$10:$O$24,9),IF(AND(H155>=1947,H155<1952),VLOOKUP(I155,Feuil1!$F$10:$O$24,8),IF(AND(H155>=1952,H155<1957),VLOOKUP(I155,Feuil1!$F$10:$O$24,7),IF(AND(H155>=1957,H155<1962),VLOOKUP(I155,Feuil1!$F$10:$O$24,6),IF(AND(H155>=1962,H155<1967),VLOOKUP(I155,Feuil1!$F$10:$O$24,5),IF(AND(H155>=1967,H155<1972),VLOOKUP(I155,Feuil1!$F$10:$O$24,4),IF(AND(H155>=1972,H155<1977),VLOOKUP(I155,Feuil1!$F$10:$O$24,3),IF(AND(H155>=1977,H155<1982),VLOOKUP(I155,Feuil1!$F$10:$O$24,2),VLOOKUP(I155,Feuil1!$F$10:$O$24,2)))))))))) ->  | AP155: OLY + | AQ155: 2017 | AS155: =IF(AQ155,VLOOKUP(AQ155,FEM!$AS$468:$AT$523,2)) -> 4.493
Y156: =IF(AND(H156<1936),VLOOKUP(I156,Feuil1!$F$10:$O$24,9),IF(AND(H156>=1942,H156<1947),VLOOKUP(I156,Feuil1!$F$10:$O$24,9),IF(AND(H156>=1947,H156<1952),VLOOKUP(I156,Feuil1!$F$10:$O$24,8),IF(AND(H156>=1952,H156<1957),VLOOKUP(I156,Feuil1!$F$10:$O$24,7),IF(AND(H156>=1957,H156<1962),VLOOKUP(I156,Feuil1!$F$10:$O$24,6),IF(AND(H156>=1962,H156<1967),VLOOKUP(I156,Feuil1!$F$10:$O$24,5),IF(AND(H156>=1967,H156<1972),VLOOKUP(I156,Feuil1!$F$10:$O$24,4),IF(AND(H156>=1972,H156<1977),VLOOKUP(I156,Feuil1!$F$10:$O$24,3),IF(AND(H156>=1977,H156<1982),VLOOKUP(I156,Feuil1!$F$10:$O$24,2),VLOOKUP(I156,Feuil1!$F$10:$O$24,2)))))))))) ->  | AP156: OLY + | AQ156: 2017 | AS156: =IF(AQ156,VLOOKUP(AQ156,FEM!$AS$468:$AT$523,2)) -> 4.493
Y157: =IF(AND(H157<1936),VLOOKUP(I157,Feuil1!$F$10:$O$24,9),IF(AND(H157>=1942,H157<1947),VLOOKUP(I157,Feuil1!$F$10:$O$24,9),IF(AND(H157>=1947,H157<1952),VLOOKUP(I157,Feuil1!$F$10:$O$24,8),IF(AND(H157>=1952,H157<1957),VLOOKUP(I157,Feuil1!$F$10:$O$24,7),IF(AND(H157>=1957,H157<1962),VLOOKUP(I157,Feuil1!$F$10:$O$24,6),IF(AND(H157>=1962,H157<1967),VLOOKUP(I157,Feuil1!$F$10:$O$24,5),IF(AND(H157>=1967,H157<1972),VLOOKUP(I157,Feuil1!$F$10:$O$24,4),IF(AND(H157>=1972,H157<1977),VLOOKUP(I157,Feuil1!$F$10:$O$24,3),IF(AND(H157>=1977,H157<1982),VLOOKUP(I157,Feuil1!$F$10:$O$24,2),VLOOKUP(I157,Feuil1!$F$10:$O$24,2)))))))))) ->  | AP157: OLY + | AQ157: 2017 | AS157: =IF(AQ157,VLOOKUP(AQ157,FEM!$AS$468:$AT$523,2)) -> 4.493
Y158: =IF(AND(H158<1936),VLOOKUP(I158,Feuil1!$F$10:$O$24,9),IF(AND(H158>=1942,H158<1947),VLOOKUP(I158,Feuil1!$F$10:$O$24,9),IF(AND(H158>=1947,H158<1952),VLOOKUP(I158,Feuil1!$F$10:$O$24,8),IF(AND(H158>=1952,H158<1957),VLOOKUP(I158,Feuil1!$F$10:$O$24,7),IF(AND(H158>=1957,H158<1962),VLOOKUP(I158,Feuil1!$F$10:$O$24,6),IF(AND(H158>=1962,H158<1967),VLOOKUP(I158,Feuil1!$F$10:$O$24,5),IF(AND(H158>=1967,H158<1972),VLOOKUP(I158,Feuil1!$F$10:$O$24,4),IF(AND(H158>=1972,H158<1977),VLOOKUP(I158,Feuil1!$F$10:$O$24,3),IF(AND(H158>=1977,H158<1982),VLOOKUP(I158,Feuil1!$F$10:$O$24,2),VLOOKUP(I158,Feuil1!$F$10:$O$24,2)))))))))) ->  | AP158: OLY + | AQ158: 2017 | AS158: =IF(AQ158,VLOOKUP(AQ158,FEM!$AS$468:$AT$523,2)) -> 4.493
Y159: =IF(AND(H159<1936),VLOOKUP(I159,Feuil1!$F$10:$O$24,9),IF(AND(H159>=1942,H159<1947),VLOOKUP(I159,Feuil1!$F$10:$O$24,9),IF(AND(H159>=1947,H159<1952),VLOOKUP(I159,Feuil1!$F$10:$O$24,8),IF(AND(H159>=1952,H159<1957),VLOOKUP(I159,Feuil1!$F$10:$O$24,7),IF(AND(H159>=1957,H159<1962),VLOOKUP(I159,Feuil1!$F$10:$O$24,6),IF(AND(H159>=1962,H159<1967),VLOOKUP(I159,Feuil1!$F$10:$O$24,5),IF(AND(H159>=1967,H159<1972),VLOOKUP(I159,Feuil1!$F$10:$O$24,4),IF(AND(H159>=1972,H159<1977),VLOOKUP(I159,Feuil1!$F$10:$O$24,3),IF(AND(H159>=1977,H159<1982),VLOOKUP(I159,Feuil1!$F$10:$O$24,2),VLOOKUP(I159,Feuil1!$F$10:$O$24,2)))))))))) ->  | AP159: OLY + | AQ159: 2017 | AS159: =IF(AQ159,VLOOKUP(AQ159,FEM!$AS$468:$AT$523,2)) -> 4.493
Y160: =IF(AND(H160<1936),VLOOKUP(I160,Feuil1!$F$10:$O$24,9),IF(AND(H160>=1942,H160<1947),VLOOKUP(I160,Feuil1!$F$10:$O$24,9),IF(AND(H160>=1947,H160<1952),VLOOKUP(I160,Feuil1!$F$10:$O$24,8),IF(AND(H160>=1952,H160<1957),VLOOKUP(I160,Feuil1!$F$10:$O$24,7),IF(AND(H160>=1957,H160<1962),VLOOKUP(I160,Feuil1!$F$10:$O$24,6),IF(AND(H160>=1962,H160<1967),VLOOKUP(I160,Feuil1!$F$10:$O$24,5),IF(AND(H160>=1967,H160<1972),VLOOKUP(I160,Feuil1!$F$10:$O$24,4),IF(AND(H160>=1972,H160<1977),VLOOKUP(I160,Feuil1!$F$10:$O$24,3),IF(AND(H160>=1977,H160<1982),VLOOKUP(I160,Feuil1!$F$10:$O$24,2),VLOOKUP(I160,Feuil1!$F$10:$O$24,2)))))))))) ->  | AP160: OLY + | AQ160: 2017 | AS160: =IF(AQ160,VLOOKUP(AQ160,FEM!$AS$468:$AT$523,2)) -> 4.493
Y161: =IF(AND(H161<1936),VLOOKUP(I161,Feuil1!$F$10:$O$24,9),IF(AND(H161>=1942,H161<1947),VLOOKUP(I161,Feuil1!$F$10:$O$24,9),IF(AND(H161>=1947,H161<1952),VLOOKUP(I161,Feuil1!$F$10:$O$24,8),IF(AND(H161>=1952,H161<1957),VLOOKUP(I161,Feuil1!$F$10:$O$24,7),IF(AND(H161>=1957,H161<1962),VLOOKUP(I161,Feuil1!$F$10:$O$24,6),IF(AND(H161>=1962,H161<1967),VLOOKUP(I161,Feuil1!$F$10:$O$24,5),IF(AND(H161>=1967,H161<1972),VLOOKUP(I161,Feuil1!$F$10:$O$24,4),IF(AND(H161>=1972,H161<1977),VLOOKUP(I161,Feuil1!$F$10:$O$24,3),IF(AND(H161>=1977,H161<1982),VLOOKUP(I161,Feuil1!$F$10:$O$24,2),VLOOKUP(I161,Feuil1!$F$10:$O$24,2)))))))))) ->  | AP161: OLY + | AQ161: 2017 | AS161: =IF(AQ161,VLOOKUP(AQ161,FEM!$AS$468:$AT$523,2)) -> 4.493
Y162: =IF(AND(H162<1936),VLOOKUP(I162,Feuil1!$F$10:$O$24,9),IF(AND(H162>=1942,H162<1947),VLOOKUP(I162,Feuil1!$F$10:$O$24,9),IF(AND(H162>=1947,H162<1952),VLOOKUP(I162,Feuil1!$F$10:$O$24,8),IF(AND(H162>=1952,H162<1957),VLOOKUP(I162,Feuil1!$F$10:$O$24,7),IF(AND(H162>=1957,H162<1962),VLOOKUP(I162,Feuil1!$F$10:$O$24,6),IF(AND(H162>=1962,H162<1967),VLOOKUP(I162,Feuil1!$F$10:$O$24,5),IF(AND(H162>=1967,H162<1972),VLOOKUP(I162,Feuil1!$F$10:$O$24,4),IF(AND(H162>=1972,H162<1977),VLOOKUP(I162,Feuil1!$F$10:$O$24,3),IF(AND(H162>=1977,H162<1982),VLOOKUP(I162,Feuil1!$F$10:$O$24,2),VLOOKUP(I162,Feuil1!$F$10:$O$24,2)))))))))) ->  | AP162: OLY + | AQ162: 2017 | AS162: =IF(AQ162,VLOOKUP(AQ162,FEM!$AS$468:$AT$523,2)) -> 4.493
Y163: =IF(AND(H163<1936),VLOOKUP(I163,Feuil1!$F$10:$O$24,9),IF(AND(H163>=1942,H163<1947),VLOOKUP(I163,Feuil1!$F$10:$O$24,9),IF(AND(H163>=1947,H163<1952),VLOOKUP(I163,Feuil1!$F$10:$O$24,8),IF(AND(H163>=1952,H163<1957),VLOOKUP(I163,Feuil1!$F$10:$O$24,7),IF(AND(H163>=1957,H163<1962),VLOOKUP(I163,Feuil1!$F$10:$O$24,6),IF(AND(H163>=1962,H163<1967),VLOOKUP(I163,Feuil1!$F$10:$O$24,5),IF(AND(H163>=1967,H163<1972),VLOOKUP(I163,Feuil1!$F$10:$O$24,4),IF(AND(H163>=1972,H163<1977),VLOOKUP(I163,Feuil1!$F$10:$O$24,3),IF(AND(H163>=1977,H163<1982),VLOOKUP(I163,Feuil1!$F$10:$O$24,2),VLOOKUP(I163,Feuil1!$F$10:$O$24,2)))))))))) ->  | AP163: OLY + | AQ163: 2017 | AS163: =IF(AQ163,VLOOKUP(AQ163,FEM!$AS$468:$AT$523,2)) -> 4.493
Y164: =IF(AND(H164<1936),VLOOKUP(I164,Feuil1!$F$10:$O$24,9),IF(AND(H164>=1942,H164<1947),VLOOKUP(I164,Feuil1!$F$10:$O$24,9),IF(AND(H164>=1947,H164<1952),VLOOKUP(I164,Feuil1!$F$10:$O$24,8),IF(AND(H164>=1952,H164<1957),VLOOKUP(I164,Feuil1!$F$10:$O$24,7),IF(AND(H164>=1957,H164<1962),VLOOKUP(I164,Feuil1!$F$10:$O$24,6),IF(AND(H164>=1962,H164<1967),VLOOKUP(I164,Feuil1!$F$10:$O$24,5),IF(AND(H164>=1967,H164<1972),VLOOKUP(I164,Feuil1!$F$10:$O$24,4),IF(AND(H164>=1972,H164<1977),VLOOKUP(I164,Feuil1!$F$10:$O$24,3),IF(AND(H164>=1977,H164<1982),VLOOKUP(I164,Feuil1!$F$10:$O$24,2),VLOOKUP(I164,Feuil1!$F$10:$O$24,2)))))))))) ->  | AP164: OLY + | AQ164: 2017 | AS164: =IF(AQ164,VLOOKUP(AQ164,FEM!$AS$468:$AT$523,2)) -> 4.493
Y165: =IF(AND(H165<1936),VLOOKUP(I165,Feuil1!$F$10:$O$24,9),IF(AND(H165>=1942,H165<1947),VLOOKUP(I165,Feuil1!$F$10:$O$24,9),IF(AND(H165>=1947,H165<1952),VLOOKUP(I165,Feuil1!$F$10:$O$24,8),IF(AND(H165>=1952,H165<1957),VLOOKUP(I165,Feuil1!$F$10:$O$24,7),IF(AND(H165>=1957,H165<1962),VLOOKUP(I165,Feuil1!$F$10:$O$24,6),IF(AND(H165>=1962,H165<1967),VLOOKUP(I165,Feuil1!$F$10:$O$24,5),IF(AND(H165>=1967,H165<1972),VLOOKUP(I165,Feuil1!$F$10:$O$24,4),IF(AND(H165>=1972,H165<1977),VLOOKUP(I165,Feuil1!$F$10:$O$24,3),IF(AND(H165>=1977,H165<1982),VLOOKUP(I165,Feuil1!$F$10:$O$24,2),VLOOKUP(I165,Feuil1!$F$10:$O$24,2)))))))))) ->  | AP165: OLY + | AQ165: 2017 | AS165: =IF(AQ165,VLOOKUP(AQ165,FEM!$AS$468:$AT$523,2)) -> 4.493
Y166: =IF(AND(H166<1936),VLOOKUP(I166,Feuil1!$F$10:$O$24,9),IF(AND(H166>=1942,H166<1947),VLOOKUP(I166,Feuil1!$F$10:$O$24,9),IF(AND(H166>=1947,H166<1952),VLOOKUP(I166,Feuil1!$F$10:$O$24,8),IF(AND(H166>=1952,H166<1957),VLOOKUP(I166,Feuil1!$F$10:$O$24,7),IF(AND(H166>=1957,H166<1962),VLOOKUP(I166,Feuil1!$F$10:$O$24,6),IF(AND(H166>=1962,H166<1967),VLOOKUP(I166,Feuil1!$F$10:$O$24,5),IF(AND(H166>=1967,H166<1972),VLOOKUP(I166,Feuil1!$F$10:$O$24,4),IF(AND(H166>=1972,H166<1977),VLOOKUP(I166,Feuil1!$F$10:$O$24,3),IF(AND(H166>=1977,H166<1982),VLOOKUP(I166,Feuil1!$F$10:$O$24,2),VLOOKUP(I166,Feuil1!$F$10:$O$24,2)))))))))) ->  | AP166: OLY + | AQ166: 2017 | AS166: =IF(AQ166,VLOOKUP(AQ166,FEM!$AS$468:$AT$523,2)) -> 4.493
Y167: =IF(AND(H167<1936),VLOOKUP(I167,Feuil1!$F$10:$O$24,9),IF(AND(H167>=1942,H167<1947),VLOOKUP(I167,Feuil1!$F$10:$O$24,9),IF(AND(H167>=1947,H167<1952),VLOOKUP(I167,Feuil1!$F$10:$O$24,8),IF(AND(H167>=1952,H167<1957),VLOOKUP(I167,Feuil1!$F$10:$O$24,7),IF(AND(H167>=1957,H167<1962),VLOOKUP(I167,Feuil1!$F$10:$O$24,6),IF(AND(H167>=1962,H167<1967),VLOOKUP(I167,Feuil1!$F$10:$O$24,5),IF(AND(H167>=1967,H167<1972),VLOOKUP(I167,Feuil1!$F$10:$O$24,4),IF(AND(H167>=1972,H167<1977),VLOOKUP(I167,Feuil1!$F$10:$O$24,3),IF(AND(H167>=1977,H167<1982),VLOOKUP(I167,Feuil1!$F$10:$O$24,2),VLOOKUP(I167,Feuil1!$F$10:$O$24,2)))))))))) ->  | AP167: OLY + | AQ167: 2017 | AS167: =IF(AQ167,VLOOKUP(AQ167,FEM!$AS$468:$AT$523,2)) -> 4.493
Y168: =IF(AND(H168<1936),VLOOKUP(I168,Feuil1!$F$10:$O$24,9),IF(AND(H168>=1942,H168<1947),VLOOKUP(I168,Feuil1!$F$10:$O$24,9),IF(AND(H168>=1947,H168<1952),VLOOKUP(I168,Feuil1!$F$10:$O$24,8),IF(AND(H168>=1952,H168<1957),VLOOKUP(I168,Feuil1!$F$10:$O$24,7),IF(AND(H168>=1957,H168<1962),VLOOKUP(I168,Feuil1!$F$10:$O$24,6),IF(AND(H168>=1962,H168<1967),VLOOKUP(I168,Feuil1!$F$10:$O$24,5),IF(AND(H168>=1967,H168<1972),VLOOKUP(I168,Feuil1!$F$10:$O$24,4),IF(AND(H168>=1972,H168<1977),VLOOKUP(I168,Feuil1!$F$10:$O$24,3),IF(AND(H168>=1977,H168<1982),VLOOKUP(I168,Feuil1!$F$10:$O$24,2),VLOOKUP(I168,Feuil1!$F$10:$O$24,2)))))))))) ->  | AP168: OLY + | AQ168: 2017 | AS168: =IF(AQ168,VLOOKUP(AQ168,FEM!$AS$468:$AT$523,2)) -> 4.493
Y169: =IF(AND(H169<1936),VLOOKUP(I169,Feuil1!$F$10:$O$24,9),IF(AND(H169>=1942,H169<1947),VLOOKUP(I169,Feuil1!$F$10:$O$24,9),IF(AND(H169>=1947,H169<1952),VLOOKUP(I169,Feuil1!$F$10:$O$24,8),IF(AND(H169>=1952,H169<1957),VLOOKUP(I169,Feuil1!$F$10:$O$24,7),IF(AND(H169>=1957,H169<1962),VLOOKUP(I169,Feuil1!$F$10:$O$24,6),IF(AND(H169>=1962,H169<1967),VLOOKUP(I169,Feuil1!$F$10:$O$24,5),IF(AND(H169>=1967,H169<1972),VLOOKUP(I169,Feuil1!$F$10:$O$24,4),IF(AND(H169>=1972,H169<1977),VLOOKUP(I169,Feuil1!$F$10:$O$24,3),IF(AND(H169>=1977,H169<1982),VLOOKUP(I169,Feuil1!$F$10:$O$24,2),VLOOKUP(I169,Feuil1!$F$10:$O$24,2)))))))))) ->  | AP169: OLY + | AQ169: 2017 | AS169: =IF(AQ169,VLOOKUP(AQ169,FEM!$AS$468:$AT$523,2)) -> 4.493
Y170: =IF(AND(H170<1936),VLOOKUP(I170,Feuil1!$F$10:$O$24,9),IF(AND(H170>=1942,H170<1947),VLOOKUP(I170,Feuil1!$F$10:$O$24,9),IF(AND(H170>=1947,H170<1952),VLOOKUP(I170,Feuil1!$F$10:$O$24,8),IF(AND(H170>=1952,H170<1957),VLOOKUP(I170,Feuil1!$F$10:$O$24,7),IF(AND(H170>=1957,H170<1962),VLOOKUP(I170,Feuil1!$F$10:$O$24,6),IF(AND(H170>=1962,H170<1967),VLOOKUP(I170,Feuil1!$F$10:$O$24,5),IF(AND(H170>=1967,H170<1972),VLOOKUP(I170,Feuil1!$F$10:$O$24,4),IF(AND(H170>=1972,H170<1977),VLOOKUP(I170,Feuil1!$F$10:$O$24,3),IF(AND(H170>=1977,H170<1982),VLOOKUP(I170,Feuil1!$F$10:$O$24,2),VLOOKUP(I170,Feuil1!$F$10:$O$24,2)))))))))) ->  | AP170: =IF(AH170>=0,$AH$5,IF(AG170>=0,$AG$5,IF(AF170>=0,$AF$5,IF(AE170>=0,$AE$5,IF(AD170>=0,$AD$5,IF(AC170>=0,$AC$5,IF(AB170>=0,$AB$5,IF(AA170>=0,$AA$5,$AI$5)))))))) -> OLY + | AQ170: 2017 | AS170: =IF(AQ170,VLOOKUP(AQ170,FEM!$AS$468:$AT$523,2)) -> 4.493
Y171: =IF(AND(H171<1936),VLOOKUP(I171,Feuil1!$F$10:$O$24,9),IF(AND(H171>=1942,H171<1947),VLOOKUP(I171,Feuil1!$F$10:$O$24,9),IF(AND(H171>=1947,H171<1952),VLOOKUP(I171,Feuil1!$F$10:$O$24,8),IF(AND(H171>=1952,H171<1957),VLOOKUP(I171,Feuil1!$F$10:$O$24,7),IF(AND(H171>=1957,H171<1962),VLOOKUP(I171,Feuil1!$F$10:$O$24,6),IF(AND(H171>=1962,H171<1967),VLOOKUP(I171,Feuil1!$F$10:$O$24,5),IF(AND(H171>=1967,H171<1972),VLOOKUP(I171,Feuil1!$F$10:$O$24,4),IF(AND(H171>=1972,H171<1977),VLOOKUP(I171,Feuil1!$F$10:$O$24,3),IF(AND(H171>=1977,H171<1982),VLOOKUP(I171,Feuil1!$F$10:$O$24,2),VLOOKUP(I171,Feuil1!$F$10:$O$24,2)))))))))) ->  | AP171: OLY + | AQ171: 2017 | AS171: =IF(AQ171,VLOOKUP(AQ171,FEM!$AS$468:$AT$523,2)) -> 4.493
Y172: =IF(AND(H172<1936),VLOOKUP(I172,Feuil1!$F$10:$O$24,9),IF(AND(H172>=1942,H172<1947),VLOOKUP(I172,Feuil1!$F$10:$O$24,9),IF(AND(H172>=1947,H172<1952),VLOOKUP(I172,Feuil1!$F$10:$O$24,8),IF(AND(H172>=1952,H172<1957),VLOOKUP(I172,Feuil1!$F$10:$O$24,7),IF(AND(H172>=1957,H172<1962),VLOOKUP(I172,Feuil1!$F$10:$O$24,6),IF(AND(H172>=1962,H172<1967),VLOOKUP(I172,Feuil1!$F$10:$O$24,5),IF(AND(H172>=1967,H172<1972),VLOOKUP(I172,Feuil1!$F$10:$O$24,4),IF(AND(H172>=1972,H172<1977),VLOOKUP(I172,Feuil1!$F$10:$O$24,3),IF(AND(H172>=1977,H172<1982),VLOOKUP(I172,Feuil1!$F$10:$O$24,2),VLOOKUP(I172,Feuil1!$F$10:$O$24,2)))))))))) ->  | AP172: OLY + | AQ172: 2017 | AS172: =IF(AQ172,VLOOKUP(AQ172,FEM!$AS$468:$AT$523,2)) -> 4.493
Y173: =IF(AND(H173<1936),VLOOKUP(I173,Feuil1!$F$10:$O$24,9),IF(AND(H173>=1942,H173<1947),VLOOKUP(I173,Feuil1!$F$10:$O$24,9),IF(AND(H173>=1947,H173<1952),VLOOKUP(I173,Feuil1!$F$10:$O$24,8),IF(AND(H173>=1952,H173<1957),VLOOKUP(I173,Feuil1!$F$10:$O$24,7),IF(AND(H173>=1957,H173<1962),VLOOKUP(I173,Feuil1!$F$10:$O$24,6),IF(AND(H173>=1962,H173<1967),VLOOKUP(I173,Feuil1!$F$10:$O$24,5),IF(AND(H173>=1967,H173<1972),VLOOKUP(I173,Feuil1!$F$10:$O$24,4),IF(AND(H173>=1972,H173<1977),VLOOKUP(I173,Feuil1!$F$10:$O$24,3),IF(AND(H173>=1977,H173<1982),VLOOKUP(I173,Feuil1!$F$10:$O$24,2),VLOOKUP(I173,Feuil1!$F$10:$O$24,2)))))))))) ->  | AP173: OLY + | AQ173: 2017 | AS173: =IF(AQ173,VLOOKUP(AQ173,FEM!$AS$468:$AT$523,2)) -> 4.493
Y174: =IF(AND(H174<1936),VLOOKUP(I174,Feuil1!$F$10:$O$24,9),IF(AND(H174>=1942,H174<1947),VLOOKUP(I174,Feuil1!$F$10:$O$24,9),IF(AND(H174>=1947,H174<1952),VLOOKUP(I174,Feuil1!$F$10:$O$24,8),IF(AND(H174>=1952,H174<1957),VLOOKUP(I174,Feuil1!$F$10:$O$24,7),IF(AND(H174>=1957,H174<1962),VLOOKUP(I174,Feuil1!$F$10:$O$24,6),IF(AND(H174>=1962,H174<1967),VLOOKUP(I174,Feuil1!$F$10:$O$24,5),IF(AND(H174>=1967,H174<1972),VLOOKUP(I174,Feuil1!$F$10:$O$24,4),IF(AND(H174>=1972,H174<1977),VLOOKUP(I174,Feuil1!$F$10:$O$24,3),IF(AND(H174>=1977,H174<1982),VLOOKUP(I174,Feuil1!$F$10:$O$24,2),VLOOKUP(I174,Feuil1!$F$10:$O$24,2)))))))))) ->  | AP174: OLY + | AQ174: 2017 | AS174: =IF(AQ174,VLOOKUP(AQ174,FEM!$AS$468:$AT$523,2)) -> 4.493
Y175: =IF(AND(H175<1936),VLOOKUP(I175,Feuil1!$F$10:$O$24,9),IF(AND(H175>=1942,H175<1947),VLOOKUP(I175,Feuil1!$F$10:$O$24,9),IF(AND(H175>=1947,H175<1952),VLOOKUP(I175,Feuil1!$F$10:$O$24,8),IF(AND(H175>=1952,H175<1957),VLOOKUP(I175,Feuil1!$F$10:$O$24,7),IF(AND(H175>=1957,H175<1962),VLOOKUP(I175,Feuil1!$F$10:$O$24,6),IF(AND(H175>=1962,H175<1967),VLOOKUP(I175,Feuil1!$F$10:$O$24,5),IF(AND(H175>=1967,H175<1972),VLOOKUP(I175,Feuil1!$F$10:$O$24,4),IF(AND(H175>=1972,H175<1977),VLOOKUP(I175,Feuil1!$F$10:$O$24,3),IF(AND(H175>=1977,H175<1982),VLOOKUP(I175,Feuil1!$F$10:$O$24,2),VLOOKUP(I175,Feuil1!$F$10:$O$24,2)))))))))) ->  | AP175: OLY + | AQ175: 2017 | AS175: =IF(AQ175,VLOOKUP(AQ175,FEM!$AS$468:$AT$523,2)) -> 4.493
Y176: =IF(AND(H176<1936),VLOOKUP(I176,Feuil1!$F$10:$O$24,9),IF(AND(H176>=1942,H176<1947),VLOOKUP(I176,Feuil1!$F$10:$O$24,9),IF(AND(H176>=1947,H176<1952),VLOOKUP(I176,Feuil1!$F$10:$O$24,8),IF(AND(H176>=1952,H176<1957),VLOOKUP(I176,Feuil1!$F$10:$O$24,7),IF(AND(H176>=1957,H176<1962),VLOOKUP(I176,Feuil1!$F$10:$O$24,6),IF(AND(H176>=1962,H176<1967),VLOOKUP(I176,Feuil1!$F$10:$O$24,5),IF(AND(H176>=1967,H176<1972),VLOOKUP(I176,Feuil1!$F$10:$O$24,4),IF(AND(H176>=1972,H176<1977),VLOOKUP(I176,Feuil1!$F$10:$O$24,3),IF(AND(H176>=1977,H176<1982),VLOOKUP(I176,Feuil1!$F$10:$O$24,2),VLOOKUP(I176,Feuil1!$F$10:$O$24,2)))))))))) ->  | AP176: OLY + | AQ176: 2017 | AS176: =IF(AQ176,VLOOKUP(AQ176,FEM!$AS$468:$AT$523,2)) -> 4.493
Y177: =IF(AND(H177<1936),VLOOKUP(I177,Feuil1!$F$10:$O$24,9),IF(AND(H177>=1942,H177<1947),VLOOKUP(I177,Feuil1!$F$10:$O$24,9),IF(AND(H177>=1947,H177<1952),VLOOKUP(I177,Feuil1!$F$10:$O$24,8),IF(AND(H177>=1952,H177<1957),VLOOKUP(I177,Feuil1!$F$10:$O$24,7),IF(AND(H177>=1957,H177<1962),VLOOKUP(I177,Feuil1!$F$10:$O$24,6),IF(AND(H177>=1962,H177<1967),VLOOKUP(I177,Feuil1!$F$10:$O$24,5),IF(AND(H177>=1967,H177<1972),VLOOKUP(I177,Feuil1!$F$10:$O$24,4),IF(AND(H177>=1972,H177<1977),VLOOKUP(I177,Feuil1!$F$10:$O$24,3),IF(AND(H177>=1977,H177<1982),VLOOKUP(I177,Feuil1!$F$10:$O$24,2),VLOOKUP(I177,Feuil1!$F$10:$O$24,2)))))))))) ->  | AP177: OLY + | AQ177: 2017 | AS177: =IF(AQ177,VLOOKUP(AQ177,FEM!$AS$468:$AT$523,2)) -> 4.493
Y178: =IF(AND(H178<1936),VLOOKUP(I178,Feuil1!$F$10:$O$24,9),IF(AND(H178>=1942,H178<1947),VLOOKUP(I178,Feuil1!$F$10:$O$24,9),IF(AND(H178>=1947,H178<1952),VLOOKUP(I178,Feuil1!$F$10:$O$24,8),IF(AND(H178>=1952,H178<1957),VLOOKUP(I178,Feuil1!$F$10:$O$24,7),IF(AND(H178>=1957,H178<1962),VLOOKUP(I178,Feuil1!$F$10:$O$24,6),IF(AND(H178>=1962,H178<1967),VLOOKUP(I178,Feuil1!$F$10:$O$24,5),IF(AND(H178>=1967,H178<1972),VLOOKUP(I178,Feuil1!$F$10:$O$24,4),IF(AND(H178>=1972,H178<1977),VLOOKUP(I178,Feuil1!$F$10:$O$24,3),IF(AND(H178>=1977,H178<1982),VLOOKUP(I178,Feuil1!$F$10:$O$24,2),VLOOKUP(I178,Feuil1!$F$10:$O$24,2)))))))))) ->  | AP178: OLY + | AQ178: 2017 | AS178: =IF(AQ178,VLOOKUP(AQ178,FEM!$AS$468:$AT$523,2)) -> 4.493
Y179: =IF(AND(H179<1936),VLOOKUP(I179,Feuil1!$F$10:$O$24,9),IF(AND(H179>=1942,H179<1947),VLOOKUP(I179,Feuil1!$F$10:$O$24,9),IF(AND(H179>=1947,H179<1952),VLOOKUP(I179,Feuil1!$F$10:$O$24,8),IF(AND(H179>=1952,H179<1957),VLOOKUP(I179,Feuil1!$F$10:$O$24,7),IF(AND(H179>=1957,H179<1962),VLOOKUP(I179,Feuil1!$F$10:$O$24,6),IF(AND(H179>=1962,H179<1967),VLOOKUP(I179,Feuil1!$F$10:$O$24,5),IF(AND(H179>=1967,H179<1972),VLOOKUP(I179,Feuil1!$F$10:$O$24,4),IF(AND(H179>=1972,H179<1977),VLOOKUP(I179,Feuil1!$F$10:$O$24,3),IF(AND(H179>=1977,H179<1982),VLOOKUP(I179,Feuil1!$F$10:$O$24,2),VLOOKUP(I179,Feuil1!$F$10:$O$24,2)))))))))) ->  | AP179: OLY + | AQ179: 2017 | AS179: =IF(AQ179,VLOOKUP(AQ179,FEM!$AS$468:$AT$523,2)) -> 4.493
Y180: =IF(AND(H180<1936),VLOOKUP(I180,Feuil1!$F$10:$O$24,9),IF(AND(H180>=1942,H180<1947),VLOOKUP(I180,Feuil1!$F$10:$O$24,9),IF(AND(H180>=1947,H180<1952),VLOOKUP(I180,Feuil1!$F$10:$O$24,8),IF(AND(H180>=1952,H180<1957),VLOOKUP(I180,Feuil1!$F$10:$O$24,7),IF(AND(H180>=1957,H180<1962),VLOOKUP(I180,Feuil1!$F$10:$O$24,6),IF(AND(H180>=1962,H180<1967),VLOOKUP(I180,Feuil1!$F$10:$O$24,5),IF(AND(H180>=1967,H180<1972),VLOOKUP(I180,Feuil1!$F$10:$O$24,4),IF(AND(H180>=1972,H180<1977),VLOOKUP(I180,Feuil1!$F$10:$O$24,3),IF(AND(H180>=1977,H180<1982),VLOOKUP(I180,Feuil1!$F$10:$O$24,2),VLOOKUP(I180,Feuil1!$F$10:$O$24,2)))))))))) ->  | AP180: OLY + | AQ180: 2017 | AS180: =IF(AQ180,VLOOKUP(AQ180,FEM!$AS$468:$AT$523,2)) -> 4.493
Y181: =IF(AND(H181<1936),VLOOKUP(I181,Feuil1!$F$10:$O$24,9),IF(AND(H181>=1942,H181<1947),VLOOKUP(I181,Feuil1!$F$10:$O$24,9),IF(AND(H181>=1947,H181<1952),VLOOKUP(I181,Feuil1!$F$10:$O$24,8),IF(AND(H181>=1952,H181<1957),VLOOKUP(I181,Feuil1!$F$10:$O$24,7),IF(AND(H181>=1957,H181<1962),VLOOKUP(I181,Feuil1!$F$10:$O$24,6),IF(AND(H181>=1962,H181<1967),VLOOKUP(I181,Feuil1!$F$10:$O$24,5),IF(AND(H181>=1967,H181<1972),VLOOKUP(I181,Feuil1!$F$10:$O$24,4),IF(AND(H181>=1972,H181<1977),VLOOKUP(I181,Feuil1!$F$10:$O$24,3),IF(AND(H181>=1977,H181<1982),VLOOKUP(I181,Feuil1!$F$10:$O$24,2),VLOOKUP(I181,Feuil1!$F$10:$O$24,2)))))))))) ->  | AP181: OLY + | AQ181: 2017 | AS181: =IF(AQ181,VLOOKUP(AQ181,FEM!$AS$468:$AT$523,2)) -> 4.493
Y182: =IF(AND(H182<1936),VLOOKUP(I182,Feuil1!$F$10:$O$24,9),IF(AND(H182>=1942,H182<1947),VLOOKUP(I182,Feuil1!$F$10:$O$24,9),IF(AND(H182>=1947,H182<1952),VLOOKUP(I182,Feuil1!$F$10:$O$24,8),IF(AND(H182>=1952,H182<1957),VLOOKUP(I182,Feuil1!$F$10:$O$24,7),IF(AND(H182>=1957,H182<1962),VLOOKUP(I182,Feuil1!$F$10:$O$24,6),IF(AND(H182>=1962,H182<1967),VLOOKUP(I182,Feuil1!$F$10:$O$24,5),IF(AND(H182>=1967,H182<1972),VLOOKUP(I182,Feuil1!$F$10:$O$24,4),IF(AND(H182>=1972,H182<1977),VLOOKUP(I182,Feuil1!$F$10:$O$24,3),IF(AND(H182>=1977,H182<1982),VLOOKUP(I182,Feuil1!$F$10:$O$24,2),VLOOKUP(I182,Feuil1!$F$10:$O$24,2)))))))))) ->  | AP182: OLY + | AQ182: 2017 | AS182: =IF(AQ182,VLOOKUP(AQ182,FEM!$AS$468:$AT$523,2)) -> 4.493
Y183: =IF(AND(H183<1936),VLOOKUP(I183,Feuil1!$F$10:$O$24,9),IF(AND(H183>=1942,H183<1947),VLOOKUP(I183,Feuil1!$F$10:$O$24,9),IF(AND(H183>=1947,H183<1952),VLOOKUP(I183,Feuil1!$F$10:$O$24,8),IF(AND(H183>=1952,H183<1957),VLOOKUP(I183,Feuil1!$F$10:$O$24,7),IF(AND(H183>=1957,H183<1962),VLOOKUP(I183,Feuil1!$F$10:$O$24,6),IF(AND(H183>=1962,H183<1967),VLOOKUP(I183,Feuil1!$F$10:$O$24,5),IF(AND(H183>=1967,H183<1972),VLOOKUP(I183,Feuil1!$F$10:$O$24,4),IF(AND(H183>=1972,H183<1977),VLOOKUP(I183,Feuil1!$F$10:$O$24,3),IF(AND(H183>=1977,H183<1982),VLOOKUP(I183,Feuil1!$F$10:$O$24,2),VLOOKUP(I183,Feuil1!$F$10:$O$24,2)))))))))) ->  | AP183: OLY + | AQ183: 2017 | AS183: =IF(AQ183,VLOOKUP(AQ183,FEM!$AS$468:$AT$523,2)) -> 4.493
Y184: =IF(AND(H184<1936),VLOOKUP(I184,Feuil1!$F$10:$O$24,9),IF(AND(H184>=1942,H184<1947),VLOOKUP(I184,Feuil1!$F$10:$O$24,9),IF(AND(H184>=1947,H184<1952),VLOOKUP(I184,Feuil1!$F$10:$O$24,8),IF(AND(H184>=1952,H184<1957),VLOOKUP(I184,Feuil1!$F$10:$O$24,7),IF(AND(H184>=1957,H184<1962),VLOOKUP(I184,Feuil1!$F$10:$O$24,6),IF(AND(H184>=1962,H184<1967),VLOOKUP(I184,Feuil1!$F$10:$O$24,5),IF(AND(H184>=1967,H184<1972),VLOOKUP(I184,Feuil1!$F$10:$O$24,4),IF(AND(H184>=1972,H184<1977),VLOOKUP(I184,Feuil1!$F$10:$O$24,3),IF(AND(H184>=1977,H184<1982),VLOOKUP(I184,Feuil1!$F$10:$O$24,2),VLOOKUP(I184,Feuil1!$F$10:$O$24,2)))))))))) ->  | AP184: OLY + | AQ184: 2017 | AS184: =IF(AQ184,VLOOKUP(AQ184,FEM!$AS$468:$AT$523,2)) -> 4.493
Y185: =IF(AND(H185<1936),VLOOKUP(I185,Feuil1!$F$10:$O$24,9),IF(AND(H185>=1942,H185<1947),VLOOKUP(I185,Feuil1!$F$10:$O$24,9),IF(AND(H185>=1947,H185<1952),VLOOKUP(I185,Feuil1!$F$10:$O$24,8),IF(AND(H185>=1952,H185<1957),VLOOKUP(I185,Feuil1!$F$10:$O$24,7),IF(AND(H185>=1957,H185<1962),VLOOKUP(I185,Feuil1!$F$10:$O$24,6),IF(AND(H185>=1962,H185<1967),VLOOKUP(I185,Feuil1!$F$10:$O$24,5),IF(AND(H185>=1967,H185<1972),VLOOKUP(I185,Feuil1!$F$10:$O$24,4),IF(AND(H185>=1972,H185<1977),VLOOKUP(I185,Feuil1!$F$10:$O$24,3),IF(AND(H185>=1977,H185<1982),VLOOKUP(I185,Feuil1!$F$10:$O$24,2),VLOOKUP(I185,Feuil1!$F$10:$O$24,2)))))))))) ->  | AP185: OLY + | AQ185: 2017 | AS185: =IF(AQ185,VLOOKUP(AQ185,FEM!$AS$468:$AT$523,2)) -> 4.493
Y186: =IF(AND(H186<1936),VLOOKUP(I186,Feuil1!$F$10:$O$24,9),IF(AND(H186>=1942,H186<1947),VLOOKUP(I186,Feuil1!$F$10:$O$24,9),IF(AND(H186>=1947,H186<1952),VLOOKUP(I186,Feuil1!$F$10:$O$24,8),IF(AND(H186>=1952,H186<1957),VLOOKUP(I186,Feuil1!$F$10:$O$24,7),IF(AND(H186>=1957,H186<1962),VLOOKUP(I186,Feuil1!$F$10:$O$24,6),IF(AND(H186>=1962,H186<1967),VLOOKUP(I186,Feuil1!$F$10:$O$24,5),IF(AND(H186>=1967,H186<1972),VLOOKUP(I186,Feuil1!$F$10:$O$24,4),IF(AND(H186>=1972,H186<1977),VLOOKUP(I186,Feuil1!$F$10:$O$24,3),IF(AND(H186>=1977,H186<1982),VLOOKUP(I186,Feuil1!$F$10:$O$24,2),VLOOKUP(I186,Feuil1!$F$10:$O$24,2)))))))))) ->  | AP186: OLY + | AQ186: 2017 | AS186: =IF(AQ186,VLOOKUP(AQ186,FEM!$AS$468:$AT$523,2)) -> 4.493
Y187: =IF(AND(H187<1936),VLOOKUP(I187,Feuil1!$F$10:$O$24,9),IF(AND(H187>=1942,H187<1947),VLOOKUP(I187,Feuil1!$F$10:$O$24,9),IF(AND(H187>=1947,H187<1952),VLOOKUP(I187,Feuil1!$F$10:$O$24,8),IF(AND(H187>=1952,H187<1957),VLOOKUP(I187,Feuil1!$F$10:$O$24,7),IF(AND(H187>=1957,H187<1962),VLOOKUP(I187,Feuil1!$F$10:$O$24,6),IF(AND(H187>=1962,H187<1967),VLOOKUP(I187,Feuil1!$F$10:$O$24,5),IF(AND(H187>=1967,H187<1972),VLOOKUP(I187,Feuil1!$F$10:$O$24,4),IF(AND(H187>=1972,H187<1977),VLOOKUP(I187,Feuil1!$F$10:$O$24,3),IF(AND(H187>=1977,H187<1982),VLOOKUP(I187,Feuil1!$F$10:$O$24,2),VLOOKUP(I187,Feuil1!$F$10:$O$24,2)))))))))) ->  | AP187: OLY + | AQ187: 2017 | AS187: =IF(AQ187,VLOOKUP(AQ187,FEM!$AS$468:$AT$523,2)) -> 4.493
Y188: =IF(AND(H188<1936),VLOOKUP(I188,Feuil1!$F$10:$O$24,9),IF(AND(H188>=1942,H188<1947),VLOOKUP(I188,Feuil1!$F$10:$O$24,9),IF(AND(H188>=1947,H188<1952),VLOOKUP(I188,Feuil1!$F$10:$O$24,8),IF(AND(H188>=1952,H188<1957),VLOOKUP(I188,Feuil1!$F$10:$O$24,7),IF(AND(H188>=1957,H188<1962),VLOOKUP(I188,Feuil1!$F$10:$O$24,6),IF(AND(H188>=1962,H188<1967),VLOOKUP(I188,Feuil1!$F$10:$O$24,5),IF(AND(H188>=1967,H188<1972),VLOOKUP(I188,Feuil1!$F$10:$O$24,4),IF(AND(H188>=1972,H188<1977),VLOOKUP(I188,Feuil1!$F$10:$O$24,3),IF(AND(H188>=1977,H188<1982),VLOOKUP(I188,Feuil1!$F$10:$O$24,2),VLOOKUP(I188,Feuil1!$F$10:$O$24,2)))))))))) ->  | AP188: OLY + | AQ188: 2017 | AS188: =IF(AQ188,VLOOKUP(AQ188,FEM!$AS$468:$AT$523,2)) -> 4.493
AP189: OLY + | AQ189: 2017 | AS189: =IF(AQ189,VLOOKUP(AQ189,FEM!$AS$468:$AT$523,2)) -> 4.493
AP190: OLY + | AQ190: 2017 | AS190: =IF(AQ190,VLOOKUP(AQ190,FEM!$AS$468:$AT$523,2)) -> 4.493
AP191: OLY + | AQ191: 2017 | AS191: =IF(AQ191,VLOOKUP(AQ191,FEM!$AS$468:$AT$523,2)) -> 4.493
AP192: OLY + | AQ192: 2017 | AS192: =IF(AQ192,VLOOKUP(AQ192,FEM!$AS$468:$AT$523,2)) -> 4.493
AP193: OLY + | AQ193: 2017 | AS193: =IF(AQ193,VLOOKUP(AQ193,FEM!$AS$468:$AT$523,2)) -> 4.493
AP194: OLY + | AQ194: 2017 | AS194: =IF(AQ194,VLOOKUP(AQ194,FEM!$AS$468:$AT$523,2)) -> 4.493
AP195: OLY + | AQ195: 2017 | AS195: =IF(AQ195,VLOOKUP(AQ195,FEM!$AS$468:$AT$523,2)) -> 4.493
AP196: OLY + | AQ196: 2017 | AS196: =IF(AQ196,VLOOKUP(AQ196,FEM!$AS$468:$AT$523,2)) -> 4.493
AP197: OLY + | AQ197: 2017 | AS197: =IF(AQ197,VLOOKUP(AQ197,FEM!$AS$468:$AT$523,2)) -> 4.493
AP198: OLY + | AQ198: 2017 | AS198: =IF(AQ198,VLOOKUP(AQ198,FEM!$AS$468:$AT$523,2)) -> 4.493
AP199: OLY + | AQ199: 2017 | AS199: =IF(AQ199,VLOOKUP(AQ199,FEM!$AS$468:$AT$523,2)) -> 4.493
AP200: OLY + | AQ200: =2017-H200 -> 2017 | AS200: =IF(AQ200,VLOOKUP(AQ200,FEM!$AS$468:$AT$523,2)) -> 4.493
AP201: OLY + | AQ201: 2017 | AS201: =IF(AQ201,VLOOKUP(AQ201,FEM!$AS$468:$AT$523,2)) -> 4.493
AP202: OLY + | AQ202: 2017 | AS202: =IF(AQ202,VLOOKUP(AQ202,FEM!$AS$468:$AT$523,2)) -> 4.493
... 318 more rows

Sheet Feuil1 (hidden)
C1: VF35-48 | D1: VF35-53 | E1: VF35-58 | F1: VF35-63 | G1: VF35-69 | H1: VF35-75 | I1: VF35+75 | J1: VF40-48 | K1: VF40-53 | L1: VF40-58 | M1: VF40-63 | N1: VF40-69 | O1: VF40-75 | P1: VF40+75 | Q1: VF45-48 | R1: VF45-53 | S1: VF45-58 | T1: VF45-63 | U1: VF45-69 | V1: VF45-75 | W1: VF45+75 | X1: VF50-48 | Y1: VF50-53 | Z1: VF50-58 | AA1: VF50-63 | AB1: VF50-69 | AC1: VF50-75 | AD1: VF50+75 | AE1: VF55-48 | AF1: VF55-53 | AG1: VF55-58 | AH1: VF55-63 | AI1: VF55-69 | AJ1: VF55-75 | AK1: VF55+75 | AL1: VF60-48 | AM1: VF60-53 | AN1: VF60-58 | AO1: VF60-63 | AP1: VF60-69 | AQ1: VF60-75 | AR1: VF60+75 | AS1: VF65-48 | AT1: VF65-53 | AU1: VF65-58 | AV1: VF65-63 | AW1: VF65-69 | AX1: VF65-75 | AY1: VF65+75 | AZ1: VF70+-48 | BA1: VF70+-53 | BB1: VF70+-58 | BC1: VF70+-63 | BD1: VF70+-69 | BE1: VF70+-75 | BF1: VF70++75
B3: REGION | C3: 55 | D3: 60 | E3: 62 | F3: 65 | G3: 70 | H3: 72 | I3: 80 | J3: 52 | K3: 55 | L3: 60 | M3: 62 | N3: 65 | O3: 67 | P3: 75 | Q3: 50 | R3: 52 | S3: 55 | T3: 60 | U3: 62 | V3: 65 | W3: 72 | X3: 45 | Y3: 47 | Z3: 52 | AA3: 55 | AB3: 57 | AC3: 60 | AD3: 67 | AE3: 42 | AF3: 45 | AG3: 47 | AH3: 50 | AI3: 52 | AJ3: 55 | AK3: 57 | AL3: 40 | AM3: 42 | AN3: 45 | AO3: 47 | AP3: 50 | AQ3: 52 | AR3: 55 | AS3: 38 | AT3: 40 | AU3: 42 | AV3: 45 | AW3: 48 | AX3: 50 | AY3: 52 | AZ3: 36 | BA3: 38 | BB3: 40 | BC3: 43 | BD3: 45 | BE3: 48 | BF3: 50
B4: France | C4: 60 | D4: 62 | E4: 67 | F4: 70 | G4: 75 | H4: 77 | I4: 85 | J4: 55 | K4: 60 | L4: 62 | M4: 65 | N4: 70 | O4: 72 | P4: 80 | Q4: 52 | R4: 55 | S4: 60 | T4: 62 | U4: 65 | V4: 67 | W4: 75 | X4: 50 | Y4: 52 | Z4: 55 | AA4: 60 | AB4: 62 | AC4: 65 | AD4: 72 | AE4: 45 | AF4: 47 | AG4: 52 | AH4: 55 | AI4: 57 | AJ4: 60 | AK4: 67 | AL4: 42 | AM4: 45 | AN4: 47 | AO4: 50 | AP4: 52 | AQ4: 55 | AR4: 57 | AS4: 40 | AT4: 42 | AU4: 45 | AV4: 47 | AW4: 50 | AX4: 52 | AY4: 55 | AZ4: 38 | BA4: 40 | BB4: 42 | BC4: 45 | BD4: 48 | BE4: 50 | BF4: 52
B5: EUROPE | C5: 70 | D5: 72 | E5: 77 | F5: 80 | G5: 85 | H5: 87 | I5: 95 | J5: 65 | K5: 70 | L5: 72 | M5: 75 | N5: 80 | O5: 82 | P5: 90 | Q5: 62 | R5: 65 | S5: 70 | T5: 72 | U5: 75 | V5: 77 | W5: 85 | X5: 60 | Y5: 62 | Z5: 65 | AA5: 70 | AB5: 72 | AC5: 75 | AD5: 82 | AE5: 55 | AF5: 57 | AG5: 62 | AH5: 65 | AI5: 67 | AJ5: 70 | AK5: 77 | AL5: 52 | AM5: 55 | AN5: 57 | AO5: 60 | AP5: 62 | AQ5: 65 | AR5: 67 | AS5: 50 | AT5: 52 | AU5: 55 | AV5: 57 | AW5: 60 | AX5: 62 | AY5: 65 | AZ5: 45 | BA5: 47 | BB5: 49 | BC5: 52 | BD5: 55 | BE5: 57 | BF5: 60
B6: MONDE | C6: 82 | D6: 90 | E6: 95 | F6: 100 | G6: 102 | H6: 107 | I6: 112 | J6: 80 | K6: 85 | L6: 90 | M6: 95 | N6: 97 | O6: 100 | P6: 105 | Q6: 72 | R6: 77 | S6: 82 | T6: 85 | U6: 90 | V6: 92 | W6: 97 | X6: 67 | Y6: 72 | Z6: 75 | AA6: 77 | AB6: 82 | AC6: 85 | AD6: 90 | AE6: 60 | AF6: 65 | AG6: 67 | AH6: 70 | AI6: 75 | AJ6: 77 | AK6: 82 | AL6: 55 | AM6: 57 | AN6: 62 | AO6: 65 | AP6: 67 | AQ6: 70 | AR6: 72 | AS6: 50 | AT6: 52 | AU6: 55 | AV6: 57 | AW6: 60 | AX6: 62 | AY6: 65 | AZ6: 46 | BA6: 48 | BB6: 50 | BC6: 53 | BD6: 56 | BE6: 58 | BF6: 61
B7: INTERNATIONAL B | C7: 1000 | D7: 1000 | E7: 1000 | F7: 1000 | G7: 1000 | H7: 1000 | I7: 1000 | J7: 1000 | K7: 1000 | L7: 1000 | M7: 1000 | N7: 1000 | O7: 1000 | P7: 1000 | Q7: 1000 | R7: 1000 | S7: 1000 | T7: 1000 | U7: 1000 | V7: 1000 | W7: 1000 | X7: 1000 | Y7: 1000 | Z7: 1000 | AA7: 1000 | AB7: 1000 | AC7: 1000 | AD7: 1000 | AE7: 1000 | AF7: 1000 | AG7: 1000 | AH7: 1000 | AI7: 1000 | AJ7: 1000 | AK7: 1000 | AL7: 1000 | AM7: 1000 | AN7: 1000 | AO7: 1000 | AP7: 1000 | AQ7: 1000 | AR7: 1000 | AS7: 1000 | AT7: 1000 | AU7: 1000 | AV7: 1000 | AW7: 1000 | AX7: 1000 | AY7: 1000 | AZ7: 1000 | BA7: 1000 | BB7: 1000 | BC7: 1000 | BD7: 1000 | BE7: 1000 | BF7: 1000
B8: INTERNATIONAL A | C8: 1000 | D8: 1000 | E8: 1000 | F8: 1000 | G8: 1000 | H8: 1000 | I8: 1000 | J8: 1000 | K8: 1000 | L8: 1000 | M8: 1000 | N8: 1000 | O8: 1000 | P8: 1000 | Q8: 1000 | R8: 1000 | S8: 1000 | T8: 1000 | U8: 1000 | V8: 1000 | W8: 1000 | X8: 1000 | Y8: 1000 | Z8: 1000 | AA8: 1000 | AB8: 1000 | AC8: 1000 | AD8: 1000 | AE8: 1000 | AF8: 1000 | AG8: 1000 | AH8: 1000 | AI8: 1000 | AJ8: 1000 | AK8: 1000 | AL8: 1000 | AM8: 1000 | AN8: 1000 | AO8: 1000 | AP8: 1000 | AQ8: 1000 | AR8: 1000 | AS8: 1000 | AT8: 1000 | AU8: 1000 | AV8: 1000 | AW8: 1000 | AX8: 1000 | AY8: 1000 | AZ8: 1000 | BA8: 1000 | BB8: 1000 | BC8: 1000 | BD8: 1000 | BE8: 1000 | BF8: 1000
B9: OLYMPIQUE | C9: 1000 | D9: 1000 | E9: 1000 | F9: 1000 | G9: 1000 | H9: 1000 | I9: 1000 | J9: 1000 | K9: 1000 | L9: 1000 | M9: 1000 | N9: 1000 | O9: 1000 | P9: 1000 | Q9: 1000 | R9: 1000 | S9: 1000 | T9: 1000 | U9: 1000 | V9: 1000 | W9: 1000 | X9: 1000 | Y9: 1000 | Z9: 1000 | AA9: 1000 | AB9: 1000 | AC9: 1000 | AD9: 1000 | AE9: 1000 | AF9: 1000 | AG9: 1000 | AH9: 1000 | AI9: 1000 | AJ9: 1000 | AK9: 1000 | AL9: 1000 | AM9: 1000 | AN9: 1000 | AO9: 1000 | AP9: 1000 | AQ9: 1000 | AR9: 1000 | AS9: 1000 | AT9: 1000 | AU9: 1000 | AV9: 1000 | AW9: 1000 | AX9: 1000 | AY9: 1000 | AZ9: 1000 | BA9: 1000 | BB9: 1000 | BC9: 1000 | BD9: 1000 | BE9: 1000 | BF9: 1000
G10: VF35 | H10: VF40 | I10: VF45 | J10: VF50 | K10: VF55 | L10: VF60 | M10: VF65 | N10: VF70+
F11: 20.01 | G11: VF35-48 | H11: VF40-48 | I11: VF45-48 | J11: VF50-48 | K11: VF55-48 | L11: VF60-48 | M11: VF65-48 | N11: VF70+-48
F12: 30.01 | G12: VF35-48 | H12: VF40-48 | I12: VF45-48 | J12: VF50-48 | K12: VF55-48 | L12: VF60-48 | M12: VF65-48 | N12: VF70+-48
F13: 35.01 | G13: VF35-48 | H13: VF40-48 | I13: VF45-48 | J13: VF50-48 | K13: VF55-48 | L13: VF60-48 | M13: VF65-48 | N13: VF70+-48
F14: 36.01 | G14: VF35-48 | H14: VF40-48 | I14: VF45-48 | J14: VF50-48 | K14: VF55-48 | L14: VF60-48 | M14: VF65-48 | N14: VF70+-48
F15: 40.01 | G15: VF35-48 | H15: VF40-48 | I15: VF45-48 | J15: VF50-48 | K15: VF55-48 | L15: VF60-48 | M15: VF65-48 | N15: VF70+-48
F16: 44.01 | G16: VF35-48 | H16: VF40-48 | I16: VF45-48 | J16: VF50-48 | K16: VF55-48 | L16: VF60-48 | M16: VF65-48 | N16: VF70+-48
F17: 48.01 | G17: VF35-53 | H17: VF40-53 | I17: VF45-53 | J17: VF50-53 | K17: VF55-53 | L17: VF60-53 | M17: VF65-53 | N17: VF70+-53
F18: 53.01 | G18: VF35-58 | H18: VF40-58 | I18: VF45-58 | J18: VF50-58 | K18: VF55-58 | L18: VF60-58 | M18: VF65-58 | N18: VF70+-58
F19: 58.01 | G19: VF35-63 | H19: VF40-63 | I19: VF45-63 | J19: VF50-63 | K19: VF55-63 | L19: VF60-63 | M19: VF65-63 | N19: VF70+-63
F20: 63.01 | G20: VF35-69 | H20: VF40-69 | I20: VF45-69 | J20: VF50-69 | K20: VF55-69 | L20: VF60-69 | M20: VF65-69 | N20: VF70+-69
F21: 69.01 | G21: VF35-75 | H21: VF40-75 | I21: VF45-75 | J21: VF50-75 | K21: VF55-75 | L21: VF60-75 | M21: VF65-75 | N21: VF70+-75
F22: 75.01 | G22: VF35+75 | H22: VF40+75 | I22: VF45+75 | J22: VF50+75 | K22: VF55+75 | L22: VF60+75 | M22: VF65+75 | N22: VF70++75
F23: 110 | G23: VF35+75 | H23: VF40+75 | I23: VF45+75 | J23: VF50+75 | K23: VF55+75 | L23: VF60+75 | M23: VF65+75 | N23: VF70++75
F24: 140 | G24: VF35+75 | H24: VF40+75 | I24: VF45+75 | J24: VF50+75 | K24: VF55+75 | L24: VF60+75 | M24: VF65+75 | N24: VF70++75

Sheet Feuil2 (hidden)
C1: VH35-56 | D1: VH35-62 | E1: VH35-69 | F1: VH35-77 | G1: VH35-85 | H1: VH35-94 | I1: VH35-105 | J1: VH35+105 | K1: VH40-56 | L1: VH40-62 | M1: VH40-69 | N1: VH40-77 | O1: VH40-85 | P1: VH40-94 | Q1: VH40-105 | R1: VH40+105 | S1: VH45-56 | T1: VH45-62 | U1: VH45-69 | V1: VH45-77 | W1: VH45-85 | X1: VH45-94 | Y1: VH45-105 | Z1: VH45+105 | AA1: VH50-56 | AB1: VH50-62 | AC1: VH50-69 | AD1: VH50-77 | AE1: VH50-85 | AF1: VH50-94 | AG1: VH50-105 | AH1: VH50+105 | AI1: VH55-56 | AJ1: VH55-62 | AK1: VH55-69 | AL1: VH55-77 | AM1: VH55-85 | AN1: VH55-94 | AO1: VH55-105 | AP1: VH55+105 | AQ1: VH60-56 | AR1: VH60-62 | AS1: VH60-69 | AT1: VH60-77 | AU1: VH60-85 | AV1: VH60-94 | AW1: VH60-105 | AX1: VH60+105 | AY1: VH65-56 | AZ1: VH65-62 | BA1: VH65-69 | BB1: VH65-77 | BC1: VH65-85 | BD1: VH65-94 | BE1: VH65-105 | BF1: VH65+105 | BG1: VH70-56 | BH1: VH70-62 | BI1: VH70-69 | BJ1: VH70-77 | BK1: VH70-85 | BL1: VH70-94 | BM1: VH70-105 | BN1: VH70+105 | BO1: VH75-56 | BP1: VH75-62 | BQ1: VH75-69 | BR1: VH75-77 | BS1: VH75-85 | BT1: VH75-94 | BU1: VH75-105 | BV1: VH75+105 | BW1: VH80+-56 | BX1: VH80+-62 | BY1: VH80+-69 | BZ1: VH80+-77 | CA1: VH80+-85 | CB1: VH80+-94 | CC1: VH80+-105 | CD1: VH80++105
B3: REGION | C3: 117 | D3: 132 | E3: 147 | F3: 162 | G3: 172 | H3: 182 | I3: 190 | J3: 197 | K3: 110 | L3: 125 | M3: 140 | N3: 152 | O3: 162 | P3: 172 | Q3: 180 | R3: 187 | S3: 105 | T3: 117 | U3: 130 | V3: 145 | W3: 155 | X3: 162 | Y3: 170 | Z3: 177 | AA3: 95 | AB3: 107 | AC3: 120 | AD3: 130 | AE3: 140 | AF3: 147 | AG3: 155 | AH3: 162 | AI3: 82 | AJ3: 92 | AK3: 105 | AL3: 115 | AM3: 122 | AN3: 130 | AO3: 137 | AP3: 145 | AQ3: 72 | AR3: 82 | AS3: 92 | AT3: 102 | AU3: 110 | AV3: 117 | AW3: 122 | AX3: 130 | AY3: 60 | AZ3: 70 | BA3: 77 | BB3: 87 | BC3: 92 | BD3: 100 | BE3: 102 | BF3: 107 | BG3: 47 | BH3: 55 | BI3: 62 | BJ3: 70 | BK3: 75 | BL3: 80 | BM3: 82 | BN3: 87 | BO3: 42 | BP3: 47 | BQ3: 55 | BR3: 62 | BS3: 67 | BT3: 70 | BU3: 75 | BV3: 80 | BW3: 40 | BX3: 45 | BY3: 50 | BZ3: 60 | CA3: 63 | CB3: 64 | CC3: 69 | CD3: 70 | CE3: REGIONAL
B4: France | C4: 127 | D4: 142 | E4: 157 | F4: 172 | G4: 182 | H4: 192 | I4: 200 | J4: 202 | K4: 120 | L4: 135 | M4: 150 | N4: 162 | O4: 172 | P4: 18 | Q4: 190 | R4: 197 | S4: 115 | T4: 127 | U4: 140 | V4: 155 | W4: 165 | X4: 172 | Y4: 180 | Z4: 187 | AA4: 105 | AB4: 117 | AC4: 130 | AD4: 140 | AE4: 150 | AF4: 157 | AG4: 165 | AH4: 172 | AI4: 92 | AJ4: 102 | AK4: 115 | AL4: 125 | AM4: 132 | AN4: 140 | AO4: 147 | AP4: 155 | AQ4: 82 | AR4: 92 | AS4: 102 | AT4: 112 | AU4: 120 | AV4: 127 | AW4: 132 | AX4: 140 | AY4: 70 | AZ4: 80 | BA4: 87 | BB4: 97 | BC4: 102 | BD4: 110 | BE4: 112 | BF4: 117 | BG4: 57 | BH4: 65 | BI4: 72 | BJ4: 80 | BK4: 85 | BL4: 90 | BM4: 92 | BN4: 97 | BO4: 52 | BP4: 57 | BQ4: 65 | BR4: 72 | BS4: 77 | BT4: 80 | BU4: 85 | BV4: 90 | BW4: 50 | BX4: 55 | BY4: 58 | BZ4: 62 | CA4: 64 | CB4: 65 | CC4: 70 | CD4: 75 | CE4: France
B5: EUROPE | C5: 137 | D5: 152 | E5: 167 | F5: 182 | G5: 192 | H5: 202 | I5: 210 | J5: 217 | K5: 130 | L5: 145 | M5: 160 | N5: 172 | O5: 182 | P5: 192 | Q5: 200 | R5: 207 | S5: 125 | T5: 137 | U5: 150 | V5: 165 | W5: 175 | X5: 182 | Y5: 190 | Z5: 197 | AA5: 115 | AB5: 127 | AC5: 140 | AD5: 150 | AE5: 160 | AF5: 167 | AG5: 175 | AH5: 182 | AI5: 102 | AJ5: 112 | AK5: 125 | AL5: 135 | AM5: 142 | AN5: 150 | AO5: 157 | AP5: 165 | AQ5: 92 | AR5: 102 | AS5: 112 | AT5: 122 | AU5: 130 | AV5: 137 | AW5: 142 | AX5: 150 | AY5: 80 | AZ5: 90 | BA5: 97 | BB5: 107 | BC5: 112 | BD5: 120 | BE5: 122 | BF5: 127 | BG5: 67 | BH5: 75 | BI5: 82 | BJ5: 90 | BK5: 95 | BL5: 100 | BM5: 102 | BN5: 107 | BO5: 62 | BP5: 67 | BQ5: 75 | BR5: 82 | BS5: 87 | BT5: 90 | BU5: 95 | BV5: 100 | BW5: 54 | BX5: 56 | BY5: 59 | BZ5: 64 | CA5: 69 | CB5: 71 | CC5: 76 | CD5: 79 | CE5: EUROPE
B6: MONDE | C6: 155 | D6: 172 | E6: 187 | F6: 202 | G6: 215 | H6: 227 | I6: 237 | J6: 245 | K6: 147 | L6: 162 | M6: 177 | N6: 192 | O6: 205 | P6: 215 | Q6: 225 | R6: 232 | S6: 140 | T6: 155 | U6: 170 | V6: 185 | W6: 195 | X6: 205 | Y6: 212 | Z6: 222 | AA6: 130 | AB6: 142 | AC6: 157 | AD6: 170 | AE6: 180 | AF6: 190 | AG6: 197 | AH6: 205 | AI6: 115 | AJ6: 127 | AK6: 140 | AL6: 152 | AM6: 162 | AN6: 170 | AO6: 177 | AP6: 182 | AQ6: 105 | AR6: 117 | AS6: 127 | AT6: 137 | AU6: 147 | AV6: 155 | AW6: 160 | AX6: 167 | AY6: 92 | AZ6: 102 | BA6: 112 | BB6: 120 | BC6: 127 | BD6: 135 | BE6: 140 | BF6: 145 | BG6: 75 | BH6: 82 | BI6: 90 | BJ6: 97 | BK6: 102 | BL6: 107 | BM6: 112 | BN6: 117 | BO6: 67 | BP6: 75 | BQ6: 82 | BR6: 87 | BS6: 95 | BT6: 97 | BU6: 102 | BV6: 107 | BW6: 55 | BX6: 57 | BY6: 60 | BZ6: 65 | CA6: 70 | CB6: 72 | CC6: 77 | CD6: 80 | CE6: MONDE
B7: INTERNATIONAL B | C7: 1000 | D7: 1000 | E7: 1000 | F7: 1000 | G7: 1000 | H7: 1000 | I7: 1000 | J7: 1000 | K7: 1000 | L7: 1000 | M7: 1000 | N7: 1000 | O7: 1000 | P7: 1000 | Q7: 1000 | R7: 1000 | S7: 1000 | T7: 1000 | U7: 1000 | V7: 1000 | W7: 1000 | X7: 1000 | Y7: 1000 | Z7: 1000 | AA7: 1000 | AB7: 1000 | AC7: 1000 | AD7: 1000 | AE7: 1000 | AF7: 1000 | AG7: 1000 | AH7: 1000 | AI7: 1000 | AJ7: 1000 | AK7: 1000 | AL7: 1000 | AM7: 1000 | AN7: 1000 | AO7: 1000 | AP7: 1000 | AQ7: 1000 | AR7: 1000 | AS7: 1000 | AT7: 1000 | AU7: 1000 | AV7: 1000 | AW7: 1000 | AX7: 1000 | AY7: 1000 | AZ7: 1000 | BA7: 1000 | BB7: 1000 | BC7: 1000 | BD7: 1000 | BE7: 1000 | BF7: 1000 | BG7: 1000 | BH7: 1000 | BI7: 1000 | BJ7: 1000 | BK7: 1000 | BL7: 1000 | BM7: 1000 | BN7: 1000 | BO7: 1000 | BP7: 1000 | BQ7: 1000 | BR7: 1000 | BS7: 1000 | BT7: 1000 | BU7: 1000 | BV7: 1000 | BW7: 1000 | BX7: 1000 | BY7: 1000 | BZ7: 1000 | CA7: 1000 | CB7: 1000 | CC7: 1000 | CD7: 1000
B8: INTERNATIONAL A | C8: 1000 | D8: 1000 | E8: 1000 | F8: 1000 | G8: 1000 | H8: 1000 | I8: 1000 | J8: 1000 | K8: 1000 | L8: 1000 | M8: 1000 | N8: 1000 | O8: 1000 | P8: 1000 | Q8: 1000 | R8: 1000 | S8: 1000 | T8: 1000 | U8: 1000 | V8: 1000 | W8: 1000 | X8: 1000 | Y8: 1000 | Z8: 1000 | AA8: 1000 | AB8: 1000 | AC8: 1000 | AD8: 1000 | AE8: 1000 | AF8: 1000 | AG8: 1000 | AH8: 1000 | AI8: 1000 | AJ8: 1000 | AK8: 1000 | AL8: 1000 | AM8: 1000 | AN8: 1000 | AO8: 1000 | AP8: 1000 | AQ8: 1000 | AR8: 1000 | AS8: 1000 | AT8: 1000 | AU8: 1000 | AV8: 1000 | AW8: 1000 | AX8: 1000 | AY8: 1000 | AZ8: 1000 | BA8: 1000 | BB8: 1000 | BC8: 1000 | BD8: 1000 | BE8: 1000 | BF8: 1000 | BG8: 1000 | BH8: 1000 | BI8: 1000 | BJ8: 1000 | BK8: 1000 | BL8: 1000 | BM8: 1000 | BN8: 1000 | BO8: 1000 | BP8: 1000 | BQ8: 1000 | BR8: 1000 | BS8: 1000 | BT8: 1000 | BU8: 1000 | BV8: 1000 | BW8: 1000 | BX8: 1000 | BY8: 1000 | BZ8: 1000 | CA8: 1000 | CB8: 1000 | CC8: 1000 | CD8: 1000
B9: OLYMPIQUE | C9: 1000 | D9: 1000 | E9: 1000 | F9: 1000 | G9: 1000 | H9: 1000 | I9: 1000 | J9: 1000 | K9: 1000 | L9: 1000 | M9: 1000 | N9: 1000 | O9: 1000 | P9: 1000 | Q9: 1000 | R9: 1000 | S9: 1000 | T9: 1000 | U9: 1000 | V9: 1000 | W9: 1000 | X9: 1000 | Y9: 1000 | Z9: 1000 | AA9: 1000 | AB9: 1000 | AC9: 1000 | AD9: 1000 | AE9: 1000 | AF9: 1000 | AG9: 1000 | AH9: 1000 | AI9: 1000 | AJ9: 1000 | AK9: 1000 | AL9: 1000 | AM9: 1000 | AN9: 1000 | AO9: 1000 | AP9: 1000 | AQ9: 1000 | AR9: 1000 | AS9: 1000 | AT9: 1000 | AU9: 1000 | AV9: 1000 | AW9: 1000 | AX9: 1000 | AY9: 1000 | AZ9: 1000 | BA9: 1000 | BB9: 1000 | BC9: 1000 | BD9: 1000 | BE9: 1000 | BF9: 1000 | BG9: 1000 | BH9: 1000 | BI9: 1000 | BJ9: 1000 | BK9: 1000 | BL9: 1000 | BM9: 1000 | BN9: 1000 | BO9: 1000 | BP9: 1000 | BQ9: 1000 | BR9: 1000 | BS9: 1000 | BT9: 1000 | BU9: 1000 | BV9: 1000 | BW9: 1000 | BX9: 1000 | BY9: 1000 | BZ9: 1000 | CA9: 1000 | CB9: 1000 | CC9: 1000 | CD9: 1000
G10: VH35 | H10: VH40 | I10: VH45 | J10: VH50 | K10: VH55 | L10: VH60 | M10: VH65 | N10: VH70 | O10: VH75 | P10: VH80+
F11: 20.01 | G11: VH35-56 | H11: VH40-56 | I11: VH45-56 | J11: VH50-56 | K11: VH55-56 | L11: VH60-56 | M11: VH65-56 | N11: VH70-56 | O11: VH75-56 | P11: VH80+-56
F12: 34.01 | G12: VH35-56 | H12: VH40-56 | I12: VH45-56 | J12: VH50-56 | K12: VH55-56 | L12: VH60-56 | M12: VH65-56 | N12: VH70-56 | O12: VH75-56 | P12: VH80+-56
F13: 38.01 | G13: VH35-56 | H13: VH40-56 | I13: VH45-56 | J13: VH50-56 | K13: VH55-56 | L13: VH60-56 | M13: VH65-56 | N13: VH70-56 | O13: VH75-56 | P13: VH80+-56
F14: 40.01 | G14: VH35-56 | H14: VH40-56 | I14: VH45-56 | J14: VH50-56 | K14: VH55-56 | L14: VH60-56 | M14: VH65-56 | N14: VH70-56 | O14: VH75-56 | P14: VH80+-56
F15: 45.01 | G15: VH35-56 | H15: VH40-56 | I15: VH45-56 | J15: VH50-56 | K15: VH55-56 | L15: VH60-56 | M15: VH65-56 | N15: VH70-56 | O15: VH75-56 | P15: VH80+-56
F16: 50.01 | G16: VH35-56 | H16: VH40-56 | I16: VH45-56 | J16: VH50-56 | K16: VH55-56 | L16: VH60-56 | M16: VH65-56 | N16: VH70-56 | O16: VH75-56 | P16: VH80+-56
F17: 52.05 | G17: VH35-56 | H17: VH40-56 | I17: VH45-56 | J17: VH50-56 | K17: VH55-56 | L17: VH60-56 | M17: VH65-56 | N17: VH70-56 | O17: VH75-56 | P17: VH80+-56
F18: 56.01 | G18: VH35-62 | H18: VH40-62 | I18: VH45-62 | J18: VH50-62 | K18: VH55-62 | L18: VH60-62 | M18: VH65-62 | N18: VH70-62 | O18: VH75-62 | P18: VH80+-62
F19: 62.01 | G19: VH35-69 | H19: VH40-69 | I19: VH45-69 | J19: VH50-69 | K19: VH55-69 | L19: VH60-69 | M19: VH65-69 | N19: VH70-69 | O19: VH75-69 | P19: VH80+-69
F20: 69.01 | G20: VH35-77 | H20: VH40-77 | I20: VH45-77 | J20: VH50-77 | K20: VH55-77 | L20: VH60-77 | M20: VH65-77 | N20: VH70-77 | O20: VH75-77 | P20: VH80+-77
F21: 77.01 | G21: VH35-85 | H21: VH40-85 | I21: VH45-85 | J21: VH50-85 | K21: VH55-85 | L21: VH60-85 | M21: VH65-85 | N21: VH70-85 | O21: VH75-85 | P21: VH80+-85
F22: 85.01 | G22: VH35-94 | H22: VH40-94 | I22: VH45-94 | J22: VH50-94 | K22: VH55-94 | L22: VH60-94 | M22: VH65-94 | N22: VH70-94 | O22: VH75-94 | P22: VH80+-94
F23: 94.01 | G23: VH35-105 | H23: VH40-105 | I23: VH45-105 | J23: VH50-105 | K23: VH55-105 | L23: VH60-105 | M23: VH65-105 | N23: VH70-105 | O23: VH75-105 | P23: VH80+-105
F24: 105.01 | G24: VH35+105 | H24: VH40+105 | I24: VH45+105 | J24: VH50+105 | K24: VH55+105 | L24: VH60+105 | M24: VH65+105 | N24: VH70+105 | O24: VH75+105 | P24: VH80++105
F25: 110 | G25: VH35+105 | H25: VH40+105 | I25: VH45+105 | J25: VH50+105 | K25: VH55+105 | L25: VH60+105 | M25: VH65+105 | N25: VH70+105 | O25: VH75+105 | P25: VH80++105
F26: 120 | G26: VH35+105 | H26: VH40+105 | I26: VH45+105 | J26: VH50+105 | K26: VH55+105 | L26: VH60+105 | M26: VH65+105 | N26: VH70+105 | O26: VH75+105 | P26: VH80++105
F27: 130 | G27: VH35+105 | H27: VH40+105 | I27: VH45+105 | J27: VH50+105 | K27: VH55+105 | L27: VH60+105 | M27: VH65+105 | N27: VH70+105 | O27: VH75+105 | P27: VH80++105
F28: 140 | G28: VH35+105 | H28: VH40+105 | I28: VH45+105 | J28: VH50+105 | K28: VH55+105 | L28: VH60+105 | M28: VH65+105 | N28: VH70+105 | O28: VH75+105 | P28: VH80++105
F30: 35 | G30: 1.072
F31: 36 | G31: 1.087
F32: 37 | G32: 1.1
F33: 38 | G33: 1.113
F34: 39 | G34: 1.125
F35: 40 | G35: 1.136
F36: 41 | G36: 1.147
F37: 42 | G37: 1.158
F38: 43 | G38: 1.17
F39: 44 | G39: 1.183
F40: 45 | G40: 1.195
F41: 46 | G41: 1.207
F42: 47 | G42: 1.217
F43: 48 | G43: 1.226
F44: 49 | G44: 1.234
F45: 50 | G45: 1.243
F46: 51 | G46: 1.255
F47: 52 | G47: 1.271
F48: 53 | G48: 1.293
F49: 54 | G49: 1.319
F50: 55 | G50: 1.35
F51: 56 | G51: 1.384
F52: 57 | G52: 1.417
F53: 58 | G53: 1.449
F54: 59 | G54: 1.48
F55: 60 | G55: 1.509
F56: 61 | G56: 1.536
F57: 62 | G57: 1.561
F58: 63 | G58: 1.584
F59: 64 | G59: 1.608
F60: 65 | G60: 1.636
F61: 66 | G61: 1.671
F62: 67 | G62: 1.719
F63: 68 | G63: 1.782
F64: 69 | G64: 1.856
F65: 70 | G65: 1.933
F66: 71 | G66: 2.002
F67: 72 | G67: 2.053
F68: 73 | G68: 2.087
F69: 74 | G69: 2.113
F70: 75 | G70: 2.142
F71: 76 | G71: 2.184
F72: 77 | G72: 2.251
F73: 78 | G73: 2.358
F74: 79 | G74: 2.5
F75: 80 | G75: 2.669
F76: 81 | G76: 2.849
F77: 82 | G77: 3.018
F78: 83 | G78: 3.166
F79: 84 | G79: 3.288
F80: 85 | G80: 3.386
F81: 86 | G81: 3.458
F82: 87 | G82: 3.508
F83: 88 | G83: 3.54
F84: 89 | G84: 3.559
F85: 90 | G85: 3.571

Sheet Feuil3 (hidden)
